Workbook

Sheet GUIA PARA PREENCHIMENTO
A1: GUIA PARA PREENCHIMENTO
A3: 1 - Preencher apenas as guias azuis:
A5: 2 - Recomendamos preencher somente as células com fundo azul claro. As demais possuem fórmulas e sugerimos não alterá-las.

Sheet MODELO PROPOSTA
B2: MODELO DA PROPOSTA COMPLETA
B4: .
B5: I – FORMALIZAÇÃO
B7: PREGÃO ELETRÔNICO N. 18/22
B8: OBJETO: Prestação de serviços continuados na área de operação de equipamentos de áudio, vídeo e geração de imagens para transmissão ao vivo por rádio, televisão e internet, pelo período de trinta meses.
B9: LICITANTE: _____________________________________________________
B10: CNPJ: ________________________________________________________
B11: ENDEREÇO COMPLETO: _________________________________________
B12: TELEFONE:_____________________________________________________
B13: E-MAIL: ________________________________________________________
B15: Apresentamos nossa proposta para o item único da presente licitação, de acordo com as disposições do Edital.
B16: Decorre do conteúdo da presente proposta a explicitação do seguinte PREÇO DE JULGAMENTO (GLOBAL) PARA O ITEM:
B17: R$: ____________( em algarismos) (*)
B20: (por extenso)
B22: No valor proposto estão incluídos todos os custos e todas as despesas, diretas e indiretas, para a execução dos serviços objeto da licitação, em conformidade com as especificações e demais condições e exigências constantes do Edital.
B23: Informamos que eventuais rubricas dispostas em Acordo ou Convenção Coletiva de Trabalho que não se relacionem ao custo direto da venda do serviço, tais como “Participação nos Resultados” e “Abono substitutivo de Participação nos Resultados”, serão consideradas nos custos indiretos da proposta.
B24: O prazo de validade da presente proposta é de ______ (por extenso) dias. (observado o disposto no Título 11 do Edital).
B26: Convenção coletiva de trabalho ou a norma coletiva a que estamos obrigados:
B27: Data-Base:
B28: Número do Registro SRT:
B29: Regime de tributação da empresa:
B30: Empresa é beneficiada pela desoneração da folha de pagamento instituída pela Lei n. 12.546, de 2001, alterada pela Lei n. 13.161, de 2015?
B31: Empresa adere ao PAT (Programa de Alimentação do Trabalhador)?
B32: (Se adere ao PAT): Os valores do auxílio-alimentação apresentados na presente proposta correspondem somente aos efetivamente pagos pela empresa aos empregados?
A33: DECLARAÇÕES
A34: A SEREM PRESTADAS SOMENTE NA HIPÓTESE DE LICITANTE MICROEMPRESA OU EMPRESA DE PEQUENO PORTE, EM CONFORMIDADE COM OS ARTIGOS 17, 18, 30 E 31 DA LEI COMPLEMENTAR N. 123, de 2006, E O ACÓRDÃO TCU 2798/2010-PLENÁRIO
A35: Declaramos que: a) em se tratando dos serviços vedados descritos no artigo 17 da Lei Complementar n. 123, de 2006, notadamente os descritos no inciso XII (cessão ou locação de mão de obra), ressalvados os serviços listados nos parágrafos 5o-B a 5o-E do artigo 18 da referida Lei, a proposta apresentada não contempla qualquer benefício tributário referente ao SIMPLES NACIONAL, conforme os subitens 5.7 e 5.8 do Edital; b) na hipótese de contratação desta Microempresa ou Empresa de Pequeno Porte inscrita no SIMPLES NACIONAL e executora de atividade vedada, ficamos sujeitos à exclusão obrigatória no SIMPLES NACIONAL a contar do mês seguinte ao da contratação, em consequência do que dispõem o artigo 17, inciso XII e o artigo 31, inciso II da Lei Complementar n, 123, de 2006, devendo entregar à Câmara dos Deputados, à título de comprovação, cópia de ofício – com comprovante de entrega e recebimento, que comunique a assinatura do contrato de prestação de serviços mediante cessão de mão de obra e encaminhado pela contratada à Secretaria Especial da Receita Federal do Brasil até o último dia útil do mês subsequente ao da contratação, consoante artigo 30, § 1º, inciso II da Lei Complementar n. 123, de 2006
A36: A SEREM PRESTADAS SOMENTE NA HIPÓTESE DE LICITANTE BENEFICIADA PELA DESONERAÇÃO DA FOLHA DE PAGAMENTO INSTITUÍDA PELA LEI N. 12.546, DE 2011, ALTERADA PELA LEI N. 13.161, DE 2015.
A37: Declaramos, sob as penas da Lei, que: a) recolhemos a contribuição previdenciária incidente sobre o valor da receita bruta, em substituição às contribuições previdenciárias incidentes sobre a folha de pagamento, previstas nos incisos I e III do caput do artigo 22 da Lei n. 8.212, de 24 de julho de 1991, na forma do caput do artigo 7º (ou 8º) da Lei n. 12.546, de 14 de dezembro de 2011, alterada pela Lei n. 13.161, de 31 de agosto de 2015; b) temos ciência que nossa manifestação, conforme alínea “a” anterior, será remetida à Secretaria Especial da Receita Federal do Brasil e que, em caso de constatação de falsidade, estará sujeita às sanções administrativas cabíveis, sem prejuízo do encaminhamento dos documentos ao Ministério Público para apuração de eventual responsabilidade criminal desta declarante.
A38: É OBRIGATÓRIA A COMPROVAÇÃO A QUE SE REFERE A ALÍNEA “A” DO SUBITEM 5.9.4 DO TÍTULO 5 DO EDITAL.
B41: DADOS PARA ASSINATURA DO CONTRATO
B42: Nome do signatário
B43: Cargo
B44: Qualificação (CPF, naturalidade e domicílio)
B45: OBS.: O signatário deve possuir poderes de administração estabelecidos em contrato social e/ou possuir procuração com poderes para assinar contratos em nome da empresa. A documentação comprobatória deverá ser encaminhada quando da assinatura do contrato.
B48: Brasília, de de 2022.
B50: Assinatura do representante legal da empresa
B53: Nome do representante legal da empresa

Sheet Remunerações
B1: QUADRO DE REMUNERAÇÕES
C3: ITEM | D3: POSTO DE TRABALHO | E3: QUANTIDADE | F3: SALÁRIO | G3: ADICIONAL DE PERICULOSIDADE | H3: ADICIONAL DE INSALUBRIDADE | I3: ADICIONAL NOTURNO | J3: OUTROS | K3: SALÁRIO COM ADICIONAIS
D4: POSTO DE TRABALHO - EQUIPE DE TRABALHO
C5: 1 | D5: =HLOOKUP($C5,'Dados Gerais'!$D$6:$O$68,6) -> SUPERVISOR TÉCNICO OPERACIONAL | E5: =HLOOKUP($C5,'Dados Gerais'!$D$6:$O$68,10) -> 2 | F5: =HLOOKUP($C5,'Dados Gerais'!$D$6:$O$68,8) -> 12954.17 | G5: =HLOOKUP($C5,'Dados Gerais'!$D$6:$O$68,25) -> 0 | H5: =HLOOKUP($C5,'Dados Gerais'!$D$6:$O$68,31) -> 0 | I5: =HLOOKUP($C5,'Dados Gerais'!$D$6:$O$68,46) -> 0 | J5: =HLOOKUP($C5,'Dados Gerais'!$D$6:$O$68,33) -> 0 | K5: =SUM(F5:J5) -> 12954.17 | M5: =E5*K5 -> 25908.34
C6: 2 | D6: =HLOOKUP($C6,'Dados Gerais'!$D$6:$O$68,6) -> SUPERVISOR TÉCNICO | E6: =HLOOKUP($C6,'Dados Gerais'!$D$6:$O$68,10) -> 3 | F6: =HLOOKUP($C6,'Dados Gerais'!$D$6:$O$68,8) -> 9252.98 | G6: =HLOOKUP($C6,'Dados Gerais'!$D$6:$O$68,25) -> 0 | H6: =HLOOKUP($C6,'Dados Gerais'!$D$6:$O$68,31) -> 0 | I6: =HLOOKUP($C6,'Dados Gerais'!$D$6:$O$68,46) -> 0 | J6: =HLOOKUP($C6,'Dados Gerais'!$D$6:$O$68,33) -> 0 | K6: =SUM(F6:J6) -> 9252.98 | M6: =E6*K6 -> 27758.94
C7: 3 | D7: =HLOOKUP($C7,'Dados Gerais'!$D$6:$O$68,6) -> SUPERVISOR OPERACIONAL | E7: =HLOOKUP($C7,'Dados Gerais'!$D$6:$O$68,10) -> 2 | F7: =HLOOKUP($C7,'Dados Gerais'!$D$6:$O$68,8) -> 8894.19 | G7: =HLOOKUP($C7,'Dados Gerais'!$D$6:$O$68,25) -> 0 | H7: =HLOOKUP($C7,'Dados Gerais'!$D$6:$O$68,31) -> 0 | I7: =HLOOKUP($C7,'Dados Gerais'!$D$6:$O$68,46) -> 0 | J7: =HLOOKUP($C7,'Dados Gerais'!$D$6:$O$68,33) -> 0 | K7: 8894.19 | M7: 17788.38
C8: 4 | D8: =HLOOKUP($C8,'Dados Gerais'!$D$6:$O$68,6) -> DIRETOR DE IMAGENS – 30H | E8: =HLOOKUP($C8,'Dados Gerais'!$D$6:$O$68,10) -> 24 | F8: =HLOOKUP($C8,'Dados Gerais'!$D$6:$O$68,8) -> 5845.04 | G8: =HLOOKUP($C8,'Dados Gerais'!$D$6:$O$68,25) -> 0 | H8: =HLOOKUP($C8,'Dados Gerais'!$D$6:$O$68,31) -> 0 | I8: =HLOOKUP($C8,'Dados Gerais'!$D$6:$O$68,46) -> 0 | J8: =HLOOKUP($C8,'Dados Gerais'!$D$6:$O$68,33) -> 0 | K8: 5845.04 | M8: 140280.96
C9: 5 | D9: =HLOOKUP($C9,'Dados Gerais'!$D$6:$O$68,6) -> DIRETOR DE IMAGENS – 18H | E9: =HLOOKUP($C9,'Dados Gerais'!$D$6:$O$68,10) -> 21 | F9: =HLOOKUP($C9,'Dados Gerais'!$D$6:$O$68,8) -> 3507.03 | G9: =HLOOKUP($C9,'Dados Gerais'!$D$6:$O$68,25) -> 0 | H9: =HLOOKUP($C9,'Dados Gerais'!$D$6:$O$68,31) -> 0 | I9: =HLOOKUP($C9,'Dados Gerais'!$D$6:$O$68,46) -> 0 | J9: =HLOOKUP($C9,'Dados Gerais'!$D$6:$O$68,33) -> 0 | K9: 3507.03 | M9: 73647.63
C10: 6 | D10: =HLOOKUP($C10,'Dados Gerais'!$D$6:$O$68,6) -> TÉCNICO DE SISTEMAS AUDIOVISUAIS – especialidade Sistemas e Vídeo | E10: =HLOOKUP($C10,'Dados Gerais'!$D$6:$O$68,10) -> 4 | F10: =HLOOKUP($C10,'Dados Gerais'!$D$6:$O$68,8) -> 4996.54 | G10: =HLOOKUP($C10,'Dados Gerais'!$D$6:$O$68,25) -> 0 | H10: =HLOOKUP($C10,'Dados Gerais'!$D$6:$O$68,31) -> 0 | I10: =HLOOKUP($C10,'Dados Gerais'!$D$6:$O$68,46) -> 0 | J10: =HLOOKUP($C10,'Dados Gerais'!$D$6:$O$68,33) -> 0 | K10: 4996.54 | M10: 19986.16
C11: 7 | D11: =HLOOKUP($C11,'Dados Gerais'!$D$6:$O$68,6) -> OPERADOR DE MÍDIA AUDIOVISUAL – 30H | E11: =HLOOKUP($C11,'Dados Gerais'!$D$6:$O$68,10) -> 34 | F11: =HLOOKUP($C11,'Dados Gerais'!$D$6:$O$68,8) -> 4856.02 | G11: =HLOOKUP($C11,'Dados Gerais'!$D$6:$O$68,25) -> 0 | H11: =HLOOKUP($C11,'Dados Gerais'!$D$6:$O$68,31) -> 0 | I11: =HLOOKUP($C11,'Dados Gerais'!$D$6:$O$68,46) -> 0 | J11: =HLOOKUP($C11,'Dados Gerais'!$D$6:$O$68,33) -> 0 | K11: 4856.02 | M11: 165104.68
C12: 8 | D12: =HLOOKUP($C12,'Dados Gerais'!$D$6:$O$68,6) -> OPERADOR DE MÍDIA AUDIOVISUAL – 18H | E12: =HLOOKUP($C12,'Dados Gerais'!$D$6:$O$68,10) -> 26 | F12: =HLOOKUP($C12,'Dados Gerais'!$D$6:$O$68,8) -> 2913.61 | G12: =HLOOKUP($C12,'Dados Gerais'!$D$6:$O$68,25) -> 0 | H12: =HLOOKUP($C12,'Dados Gerais'!$D$6:$O$68,31) -> 0 | I12: =HLOOKUP($C12,'Dados Gerais'!$D$6:$O$68,46) -> 0 | J12: =HLOOKUP($C12,'Dados Gerais'!$D$6:$O$68,33) -> 0 | K12: 2913.61 | M12: 75753.86
C13: 9 | D13: =HLOOKUP($C13,'Dados Gerais'!$D$6:$O$68,6) -> OPERADOR DE TRANSMISSOR – Rádio e TV - 24H | E13: =HLOOKUP($C13,'Dados Gerais'!$D$6:$O$68,10) -> 5 | F13: =HLOOKUP($C13,'Dados Gerais'!$D$6:$O$68,8) -> 3454.59 | G13: =HLOOKUP($C13,'Dados Gerais'!$D$6:$O$68,25) -> 0 | H13: =HLOOKUP($C13,'Dados Gerais'!$D$6:$O$68,31) -> 0 | I13: =HLOOKUP($C13,'Dados Gerais'!$D$6:$O$68,46) -> 0 | J13: =HLOOKUP($C13,'Dados Gerais'!$D$6:$O$68,33) -> 0 | K13: 3454.59 | M13: 17272.95
M14: 0
D15: TOTAL DE POSTOS | E15: =SUM(E5:E14) -> 121

Sheet Resumo
B3: RESUMO - TOTAIS MENSAIS - FATURA ORDINÁRIA (SEM O 13º E SEM OS ITENS SOB DEMANDA)
C6: ITEM | D6: POSTO DE TRABALHO | E6: QUANTIDADE | F6: PREÇO UNIT (SEM O 13º) | G6: DESTAQUE DO 13º | H6: PREÇO POR EMPREGADO | I6: PREÇO TOTAL (MENSAL)
C7: 1 | D7: =HLOOKUP(C7,'Dados Gerais'!$D$6:$L$11,6) -> SUPERVISOR TÉCNICO OPERACIONAL | E7: ='Dados Gerais'!D$15 -> 2 | F7: ='1'!$E$115 -> 24492.72382 | G7: 0 | H7: =G7+F7 -> 24492.72382 | I7: =H7*E7 -> 48985.44765
C8: 2 | D8: =HLOOKUP(C8,'Dados Gerais'!$D$6:$L$11,6) -> SUPERVISOR TÉCNICO | E8: ='Dados Gerais'!E$15 -> 3 | F8: ='2'!$E$115 -> 17886.98922 | G8: 0 | H8: 17886.98922 | I8: 53660.96765
C9: 3 | D9: =HLOOKUP(C9,'Dados Gerais'!$D$6:$L$11,6) -> SUPERVISOR OPERACIONAL | E9: ='Dados Gerais'!F$15 -> 2 | F9: ='3'!$E$115 -> 17230.33704 | G9: 0 | H9: 17230.33704 | I9: 34460.67408
C10: 4 | D10: =HLOOKUP(C10,'Dados Gerais'!$D$6:$L$11,6) -> DIRETOR DE IMAGENS – 30H | E10: ='Dados Gerais'!G$15 -> 24 | F10: ='4'!$E$115 -> 11776.07227 | G10: 0 | H10: 11776.07227 | I10: 282625.7345
C11: 5 | D11: =HLOOKUP(C11,'Dados Gerais'!$D$6:$L$11,6) -> DIRETOR DE IMAGENS – 18H | E11: ='Dados Gerais'!H$15 -> 21 | F11: ='5'!$E$115 -> 7165.11136 | G11: 0 | H11: 7165.11136 | I11: 150467.3386
C12: 6 | D12: =HLOOKUP(C12,'Dados Gerais'!$D$6:$L$11,6) -> TÉCNICO DE SISTEMAS AUDIOVISUAIS – especialidade Sistemas e Vídeo | E12: ='Dados Gerais'!I$15 -> 4 | F12: ='6'!$E$115 -> 10261.67134 | G12: 0 | H12: 10261.67134 | I12: 41046.68538
C13: 7 | D13: =HLOOKUP(C13,'Dados Gerais'!$D$6:$L$11,6) -> OPERADOR DE MÍDIA AUDIOVISUAL – 30H | E13: ='Dados Gerais'!J$15 -> 34 | F13: ='7'!$E$115 -> 10020.6729 | G13: 0 | H13: 10020.6729 | I13: 340702.8785
C14: 8 | D14: =HLOOKUP(C14,'Dados Gerais'!$D$6:$L$11,6) -> OPERADOR DE MÍDIA AUDIOVISUAL – 18H | E14: ='Dados Gerais'!K$15 -> 26 | F14: ='8'!$E$115 -> 6108.456144 | G14: 0 | H14: 6108.456144 | I14: 158819.8597
C15: 9 | D15: =HLOOKUP(C15,'Dados Gerais'!$D$6:$L$11,6) -> OPERADOR DE TRANSMISSOR – Rádio e TV - 24H | E15: ='Dados Gerais'!L$15 -> 5 | F15: ='9'!$E$115 -> 7208.323008 | G15: 0 | H15: 7208.323008 | I15: 36041.61504
D17: TOTAL MENSAL - SALÁRIOS | I17: =SUM(I7:I16) -> 1146811.201
B20: RESUMO - TOTAIS MENSAIS - DESTAQUE DO 13º SALÁRIO
C23: ITEM | D23: POSTO DE TRABALHO | E23: QUANTIDADE | F23: PREÇO UNIT (SEM O 13º) | G23: DESTAQUE DO 13º | H23: PREÇO POR EMPREGADO | I23: PREÇO TOTAL (MENSAL)
C24: 1 | D24: =HLOOKUP(C24,'Dados Gerais'!$D$6:$L$11,6) -> SUPERVISOR TÉCNICO OPERACIONAL | E24: =E7 -> 2 | F24: 0 | G24: ='1'!$E$116 -> 1790.45 | H24: =G24+F24 -> 1790.45 | I24: =H24*E24 -> 3580.9
C25: 2 | D25: =HLOOKUP(C25,'Dados Gerais'!$D$6:$L$11,6) -> SUPERVISOR TÉCNICO | E25: 3 | F25: 0 | G25: ='2'!$E$116 -> 1278.9 | H25: 1278.9 | I25: 3836.7
C26: 3 | D26: =HLOOKUP(C26,'Dados Gerais'!$D$6:$L$11,6) -> SUPERVISOR OPERACIONAL | E26: 2 | F26: 0 | G26: ='3'!$E$116 -> 1229.3 | H26: 1229.3 | I26: 2458.6
C27: 4 | D27: =HLOOKUP(C27,'Dados Gerais'!$D$6:$L$11,6) -> DIRETOR DE IMAGENS – 30H | E27: 24 | F27: 0 | G27: ='4'!$E$116 -> 807.88 | H27: 807.88 | I27: 19389.12
C28: 5 | D28: =HLOOKUP(C28,'Dados Gerais'!$D$6:$L$11,6) -> DIRETOR DE IMAGENS – 18H | E28: 21 | F28: 0 | G28: ='5'!$E$116 -> 484.72 | H28: 484.72 | I28: 10179.12
C29: 6 | D29: =HLOOKUP(C29,'Dados Gerais'!$D$6:$L$11,6) -> TÉCNICO DE SISTEMAS AUDIOVISUAIS – especialidade Sistemas e Vídeo | E29: 4 | F29: 0 | G29: ='6'!$E$116 -> 690.6 | H29: 690.6 | I29: 2762.4
C30: 7 | D30: =HLOOKUP(C30,'Dados Gerais'!$D$6:$L$11,6) -> OPERADOR DE MÍDIA AUDIOVISUAL – 30H | E30: 34 | F30: 0 | G30: ='7'!$E$116 -> 671.18 | H30: 671.18 | I30: 22820.12
C31: 8 | D31: =HLOOKUP(C31,'Dados Gerais'!$D$6:$L$11,6) -> OPERADOR DE MÍDIA AUDIOVISUAL – 18H | E31: 26 | F31: 0 | G31: ='8'!$E$116 -> 402.7 | H31: 402.7 | I31: 10470.2
C32: 9 | D32: =HLOOKUP(C32,'Dados Gerais'!$D$6:$L$11,6) -> OPERADOR DE TRANSMISSOR – Rádio e TV - 24H | E32: 5 | F32: 0 | G32: ='9'!$E$116 -> 477.47 | H32: 477.47 | I32: 2387.35
D34: TOTAL MENSAL - DESTAQUE DO 13º | I34: =SUM(I24:I33) -> 77884.51
B37: RESUMO - TOTAIS MENSAIS - FATURA ORDINÁRIA TOTAL
C40: ITEM | D40: POSTO DE TRABALHO | E40: QUANTIDADE | F40: PREÇO UNIT (SEM O 13º) | G40: DESTAQUE DO 13º | H40: PREÇO POR EMPREGADO | I40: PREÇO TOTAL (MENSAL)
C41: 1 | D41: =HLOOKUP(C41,'Dados Gerais'!$D$6:$L$11,6) -> SUPERVISOR TÉCNICO OPERACIONAL | E41: =E7 -> 2 | F41: =F7 -> 24492.72382 | G41: =G24 -> 1790.45 | H41: =G41+F41 -> 26283.17382 | I41: =H41*E41 -> 52566.34765
C42: 2 | D42: =HLOOKUP(C42,'Dados Gerais'!$D$6:$L$11,6) -> SUPERVISOR TÉCNICO | E42: 3 | F42: 17886.98922 | G42: 1278.9 | H42: 19165.88922 | I42: 57497.66765
C43: 3 | D43: =HLOOKUP(C43,'Dados Gerais'!$D$6:$L$11,6) -> SUPERVISOR OPERACIONAL | E43: 2 | F43: 17230.33704 | G43: 1229.3 | H43: 18459.63704 | I43: 36919.27408
C44: 4 | D44: =HLOOKUP(C44,'Dados Gerais'!$D$6:$L$11,6) -> DIRETOR DE IMAGENS – 30H | E44: 24 | F44: 11776.07227 | G44: 807.88 | H44: 12583.95227 | I44: 302014.8545
C45: 5 | D45: =HLOOKUP(C45,'Dados Gerais'!$D$6:$L$11,6) -> DIRETOR DE IMAGENS – 18H | E45: 21 | F45: 7165.11136 | G45: 484.72 | H45: 7649.83136 | I45: 160646.4586
C46: 6 | D46: =HLOOKUP(C46,'Dados Gerais'!$D$6:$L$11,6) -> TÉCNICO DE SISTEMAS AUDIOVISUAIS – especialidade Sistemas e Vídeo | E46: 4 | F46: 10261.67134 | G46: 690.6 | H46: 10952.27134 | I46: 43809.08538
C47: 7 | D47: =HLOOKUP(C47,'Dados Gerais'!$D$6:$L$11,6) -> OPERADOR DE MÍDIA AUDIOVISUAL – 30H | E47: 34 | F47: 10020.6729 | G47: 671.18 | H47: 10691.8529 | I47: 363522.9985
C48: 8 | D48: =HLOOKUP(C48,'Dados Gerais'!$D$6:$L$11,6) -> OPERADOR DE MÍDIA AUDIOVISUAL – 18H | E48: 26 | F48: 6108.456144 | G48: 402.7 | H48: 6511.156144 | I48: 169290.0597
C49: 9 | D49: =HLOOKUP(C49,'Dados Gerais'!$D$6:$L$11,6) -> OPERADOR DE TRANSMISSOR – Rádio e TV - 24H | E49: 5 | F49: 7208.323008 | G49: 477.47 | H49: 7685.793008 | I49: 38428.96504
D51: TOTAL MENSAL - SALÁRIOS | I51: =SUM(I41:I50) -> 1224695.711 | K51: =I51*12 -> 14696348.53
B57: RESUMO - TOTAIS MENSAIS - ITENS SOB DEMANDA
C60: ITEM | D60: DESCRIÇÃO | I60: PREÇO TOTAL (MENSAL)
C61: SREP | D61: SISTEMA DE REGISTRO ELETRÔNICO DE PRESENÇA - SREP | I61: =SREP!M46 -> 830.8
C62: NOT.DEMANDA | D62: ADICIONAL DE HORAS NOTURNAS (SOB DEMANDA) | I62: 3100.135818
D64: TOTAL MENSAL - ITENS SOB DEMANDA | I64: =SUM(I61:I62) -> 3930.935818
D66: TOTAL MENSAL
D67: DESCRIÇÃO | H67: VALOR
D68: FATURA MENSAL QUANTITATIVO INICIAL DE POSTOS | H68: =I51 -> 1224695.711
D69: ESTIMATIVA MENSAL - ITENS SOB DEMANDA | H69: =I64 -> 3930.935818
G71: TOTAL MENSAL DA CONTRATAÇÃO | H71: =SUM(H68:H70) -> 1228626.647 | K71: =Extenso_Valor(H71) -> um milhão, duzentos e vinte e oito mil, seiscentos e vinte e seis reais e sessenta e cinco centavos
D73: TOTAL GLOBAL DA CONTRATAÇÃO - 12 MESES
G75: 12 x TOTAL MENSAL | H75: =H71*12 -> 14743519.76 | K75: =Extenso_Valor(H75) -> quatorze milhões, setecentos e quarenta e três mil, quinhentos e dezenove reais e setenta e seis centavos
D77: TOTAL GLOBAL DA CONTRATAÇÃO - 30 MESES
G79: 30 x TOTAL MENSAL | H79: =H71*30 -> 36858799.41

Sheet 1
B2: PLANILHA DE ESTIMATIVA DE CUSTOS
B3: Padrão IN 05/2017 e IN 07/2018 - MPDG
B5: 1 | D5: =HLOOKUP($B$5,'Dados Gerais'!$D$6:$L$22,6) -> SUPERVISOR TÉCNICO OPERACIONAL | E5: QUANTIDADE | F5: =HLOOKUP($B$5,'Dados Gerais'!$D$6:$L$22,10) -> 2
B6: CCT | D6: =HLOOKUP($B$5,'Dados Gerais'!$D$6:$L$22,16) -> SINRAD/DF x SEAC/DF CCT 2022/2022 N.º DF000077/2022 | E6: DATA-BASE | F6: =HLOOKUP($B$5,'Dados Gerais'!$D$6:$L$22,17) -> 2022-01-01
B8: MÓDULO 1 - COMPOSIÇÃO DA REMUNERAÇÃO | F8: Valor
C9: A | D9: Salário-Base | F9: =HLOOKUP($B$5,'Dados Gerais'!$D$6:$L$22,8) -> 12954.17
C10: B | D10: Adicional de Periculosidade | F10: =HLOOKUP($B$5,'Dados Gerais'!$D$6:$L$39,26) -> 0
C11: C | D11: Adicional de Insalubridade | F11: =HLOOKUP($B$5,'Dados Gerais'!$D$6:$L$39,32) -> 0
C12: D | D12: Adicional Noturno | F12: =HLOOKUP($B$5,'Dados Gerais'!$D$6:$L$52,47) -> 0 | H12: * Nota 1 - O Módulo 1 refere-se ao valor mensal devido ao empregado pela prestação do serviço no período de 12 meses.
C13: E | D13: Adicional de Hora Extra | F13: =HLOOKUP($B$5,'Dados Gerais'!$D$6:$L$69,64) -> 0 | H13: * Nota 2 - O adicional de hora extra no feriado trabalhado foi suprimido pela Lei 13.467/17
C14: F | D14: Outros (especificar) | F14: 0 | H14: * Nota 3 - ART. 7º, § 2º, DA LEI Nº 605/49.Sendo mensalista o obreiro, o adicional noturno pago de forma fixa já é considerado integrado para os efeitos do pagamento do repouso semanal remunerado, nos termos do art. 7º, § 2º, da Lei nº 605/49.
D16: TOTAL DA REMUNERAÇÃO | F16: =SUM(F9:F14) -> 12954.17
B18: MÓDULO 2 - ENCARGOS E BENEFÍCIOS ANUAIS, MENSAIS E DIÁRIOS | E18: Percentuais | F18: Valor
B19: Submódulo 2.1 - 13º Salário, Férias e Adicional de Férias
C20: A | D20: 13º Salário - Calculado no Módulo 7 - Destacado | E20: 0 | F20: =ROUND(E20*F$16,2) -> 0
C21: B | D21: Férias e Adicional de Férias | E21: ='Encargos Sociais'!E25+'Encargos Sociais'!E31 -> 0.0303030303 | F21: =ROUND(E21*F$16,2) -> 392.55 | H21: * Nota 1 - Provisiona-se, mensalmente, o proporcional a 1/12 dos valores referentes a gratificação natalina, férias e adicional de férias.
H22: * Nota 2 - O adicional de férias contido no Submódulo 2.1 corresponde a 1/3 da remuneração que, por sua vez, é dividida por 12 contome Nota 1.
B23: Submódulo 2.2 - Encargos Previdenciários (GPS), Fundo de Garantia por Tempo de Serviço (FGTS) e Outras Contribuições
C24: A | D24: INSS (art. 22, inciso I, Lei nº 8.212/91) | E24: ='Encargos Sociais'!E14 -> 0.2 | F24: =ROUND(E24*($F$16+$F$41+$F$73),2) -> 2721.25
C25: B | D25: Salário Educação (art. 3º, inciso I, Decreto nº 87.043/82) | E25: ='Encargos Sociais'!E15 -> 0.025 | F25: 340.16
C26: C | D26: SAT/RAT (art. 22, II, Lei 8.212/91 e Anexo V, Decreto 6.042/07) - Enquadramento 8211-3/00 | E26: ='Encargos Sociais'!E16 -> 0.01 | F26: 136.06
C27: D | D27: SESC ou SESI (art. 30, Lei nº 8.036/90 e art. 1º, Lei 8.154/90) | E27: ='Encargos Sociais'!E17 -> 0.015 | F27: 204.09
C28: E | D28: SENAI ou SENAC (Decreto nº 2.318/86) | E28: ='Encargos Sociais'!E18 -> 0.01 | F28: 136.06
C29: F | D29: SEBRAE (§ 3º, art. 8º, Lei 8.029/90, alterada pela Lei nº 8.154/90) | E29: ='Encargos Sociais'!E19 -> 0.006 | F29: 81.64
C30: G | D30: INCRA (art. 1º, I, Decreto Lei 1.146/70 e Lei 7.787, de 30/06/89) | E30: ='Encargos Sociais'!E20 -> 0.002 | F30: 27.21 | H30: * Nota 1 - Os percentuais dos encargos previdenciários, do FGTS e demais contribuições são estabelecidos por legislação vigente.
C31: H | D31: FGTS (Lei Complementar nº 110/01 e art. 30, Lei nº 8.036/90) | E31: ='Encargos Sociais'!E21 -> 0.08 | F31: 1088.5 | H31: * Nota 2 - O SAT, a depender do grau de risco do serviço, irá variar entre 1%, para risco leve, de 2%, para risco médio, e de 3% para risco grave.
C32: I | D32: SECONCI (Convenções Coletivas de Trabalho da construção) | E32: ='Encargos Sociais'!E22 -> 0 | F32: 0 | H32: * Nota 3 - Os percentuais do Submódulo 2.2 incidem sobre o Módulo 1 e o Submódulo 2.1.
B34: Submódulo 2.3 - Benefícios Mensais e Diários
C35: A | D35: Auxílio Transporte | F35: =HLOOKUP($B$5,'Dados Gerais'!$D$6:$L$95,83) -> 0
C36: B | D36: Auxílio Alimentação | F36: =HLOOKUP($B$5,'Dados Gerais'!$D$6:$L$95,90) -> 851.84
C37: C | D37: Assistência Médica e Familiar | F37: =HLOOKUP($B$5,'Dados Gerais'!$D$6:$L$103,98) -> 0
C38: D | D38: Outros (Seguro de vida, auxílio funeral, auxílio odontológico e auxílio creche) | F38: =HLOOKUP($B$5,'Dados Gerais'!$D$6:$L$133,127) -> 221.45 | H38: * Nota 1 - O valor informado deverá ser o custo real do benefício (descontado o valor eventualmente pago pelo empregado).
H39: * Nota 2 - Observar a previsão dos benefícios contidos em Acordos, Convenções e Dissídios Coletivos de Trabalho e o disposto no art. 6º da IN 5/2017
D40: QUADRO-RESUMO DO MÓDULO 2
D41: 2.1 - 13º Salário, Férias e Adicional de Férias - 13º Destacado - Calculado no Módulo 7 | E41: =SUM(E20:E21) -> 0.0303030303 | F41: =F20+F21 -> 392.55
D42: 2.2 - Encargos Previdenciários (GPS), Fundo de Garantia por Tempo de Serviço (FGTS) e Contribuições | E42: =SUM(E24:E32) -> 0.348 | F42: =SUM(F24:F32) -> 4734.97
D43: 2.3 - Benefícios Mensais e Diários | F43: =SUM(F35:F38) -> 1073.29
D45: TOTAL DOS ENCARGOS E BENEFÍCIOS | F45: =SUM(F41:F43) -> 6200.81
B47: MÓDULO 3 - PREVISÃO PARA RESCISÃO | E47: Percentuais | F47: Valor
C48: A | D48: Aviso Prévio Indenizado (Art. 7º, inciso XXI, da CF/1988 e arts. 477, 487, §1º, e 491 da CLT) | E48: ='Encargos Sociais'!E36 -> 0.008333333333 | F48: =ROUND(E48*$F$16,2) -> 107.95
C49: B | D49: Incidência do FGTS sobre o Aviso Prévio Indenizado (Súmula 305 TST) | E49: ='Encargos Sociais'!E37 -> 0.0006666666667 | F49: 8.64 | H49: * Nota 1 - Adotou-se os parâmetros do estudo do STF (http://www.stf.jus.br/arquivo/cms/sobrestfestudosci/anexo/encargos_sociais_03102007.pdf), onde 5% do pessoal é demitido pelo empregador no decurso do contrato (para estes, considerou-se o aviso prévio indenizado). Desprezou-se as demissões por justa causa e os pedidos de demissão.
C50: C | D50: Multa do FGTS e Contribuição Social sobre o Aviso Prévio Indenizado (Art. 18, §1º, da Lei 8.036/1990 e art. 1º da LC nº 110/2001) | E50: ='Encargos Sociais'!E38 -> 0.001274074074 | F50: 16.5 | H50: * Nota 2 - No cálculo do percentual, considerou-se 36 dias, correspondendo à metade da duração média dos contratos (2 anos)
C51: D | D51: Aviso Prévio Trabalhado (Art. 488, parágrafo único, CLT) | E51: ='Encargos Sociais'!E39 -> 0.01203703704 | F51: 155.93 | H51: * Nota 3 - Incide sobre a Remuneração + 13º salário (1/12) + Férias (1/12) + Adicional de Férias (1/36) x 50% multa (40% para o empregado e 10% de contribuição social) x 8% FGTS
C52: E | D52: Incidência de GPS, FGTS e outras contribuições sobre o Aviso Prévio Trabalhado | E52: ='Encargos Sociais'!E40 -> 0.004188888889 | F52: 54.26 | H52: * Nota 4 - Os 95% restantes do cálculo, a um prazo médio de contrato de 4 anos. Assim, calcula-se 7 dias para o 1º ano de contrato e mais 3 dias para os 3 anos seguintes.
C53: F | D53: Multa do FGTS e Contribuição Social sobre o Aviso Prévio Trabalhado | E53: ='Encargos Sociais'!E41 -> 0.01146666667 | F53: 148.54
D55: TOTAL DE PREVISÃO PARA RESCISÃO | F55: =SUM(F48:F53) -> 491.82
B57: MÓDULO 4 - CUSTO DE REPOSIÇÃO DO PROFISSIONAL AUSENTE | E57: Percentuais | F57: Valor
B58: Submódulo 4.1 - Ausências Legais
C59: A | D59: Férias (Arts. 129 e 130, inc. I, da CLT) - Calculado no Submódulo 2.1 | E59: 0 | F59: =ROUND(E59*$F$16,2) -> 0 | H59: * Nota 1 - As alíneas “A” a “F” referem-se somente ao custo que será pago ao repositor pelos dias trabalhados quando da necessidade de substituir a mão de obra alocada na prestação do serviço.
C60: B | D60: Ausências Legais (Arts. 131 e 473 da CLT) | E60: ='Encargos Sociais'!E26 -> 0.007936507937 | F60: 102.81 | H60: * Nota 2 - Adotou-se a estimativa do SINAPI de 2 dias por ano.
C61: C | D61: Licença-Paternidade (Art. 7º, XIX, e art. 10, §1º, do ADCT, CF/1988 e Art. 1º, II, da Lei 11.770/2008) | E61: ='Encargos Sociais'!E27 -> 0.0008277777778 | F61: 10.72 | H61: * Nota 3 - Utilizada a proporção de 50% para homens, 5 dias de afastamento, e a probabilidade de um trabalhador requerer a Licença Paternidade em 5,22%, conforme SINAPI (citando dados da PNAD 2015)
C62: D | D62: Ausência por Acidente de Trabalho (Art. 131, III, da CLT) | E62: ='Encargos Sociais'!E28 -> 0.0008541666667 | F62: 11.07 | H62: * Nota 4 - Utilzada a estatística de 1,96% dos contribuintes beneficiados com a emissão do auxílio, conforme Anuário Estatístico da Previdência Social. Afastamento de 15 dias a cargo da empresa.
C63: E | D63: Afastamento Maternidade (Art. 71 da Lei nº 8.213/1991) | E63: ='Encargos Sociais'!E29 -> 0.003292592593 | F63: 42.65 | H63: * Nota 5 - Utilizada a proporção de 50% para mulheres, 180 dias de afastamento, e a probabilidade de uma trabalhadora requerer a Licença Maternidade em 4,91%, conforme SINAPI (citando dados do IBGE 2016)
C64: F | D64: Auxílio Enfermidade - Doença (Art. 59 da Lei nº 8.213/1991) | E64: ='Encargos Sociais'!E30 -> 0.007122222222 | F64: 92.26 | H64: * Nota 6 - Utilizada a estatística de 3,37% dos contribuintes beneficiados com o auxílio, conforme Anuário Estatístico da Previdência Social de 2015 (acrescidos de 2 dias ao ano, para os quais o trabalhador nem requer o benefício da Previdência - conforme SINAPI)
B66: Submódulo 4.2 - Intrajornada
C67: A | D67: Intervalo para repouso ou alimentação | E67: ='Encargos Sociais'!E33 -> 0 | F67: =ROUND(E67*$F$16,2) -> 0
D69: QUADRO-RESUMO DO MÓDULO 4 | F69: Valor
D70: 4.1 - Ausências Legais | E70: =SUM(E59:E64) -> 0.0200332672 | F70: =ROUND(E70*$F$16,2) -> 259.51
D71: 4.2 - Intrajornada | E71: =E67 -> 0 | F71: =ROUND(E71*$F$16,2) -> 0
D73: TOTAL DE PREVISÃO PARA RESCISÃO E INTERVALO INTRAJORNADA | F73: =SUM(F70:F71) -> 259.51
B75: MÓDULO 5 - INSUMOS DIVERSOS | F75: Valor
C76: A | D76: Uniformes - aquisição | F76: =ROUND(HLOOKUP($B$5,Uniformes!K4:DZ6,3)/12,2) -> 0
C77: B | D77: Materiais de consumo relacionados ao posto - aquisição | F77: 0
C78: C | D78: Ferramentas relacionadas ao posto - remuneração da sua depreciação / manutenção | F78: 0
C79: D | D79: Equipamentos relacionados ao posto - remuneração da sua depreciação / manutenção | F79: 0
C80: E | D80: Equipamentos de Proteção Individual - EPI - aquisição | F80: =ROUND(HLOOKUP(B5,EPI!I4:DX6,3)/12,2) -> 0
D82: TOTAL DE INSUMOS DIVERSOS | F82: =SUM(F76:F81) -> 0 | H82: * Nota - Valores mensais por empregado
B84: MÓDULO 6 - CUSTOS INDIRETOS, TRIBUTOS E LUCRO - BDI | E84: Percentuais | F84: Valor
C85: A | D85: Custos Indiretos | E85: ='BDI - Geral'!E7 -> 0.0314
C86: A.1 | D86: Administração Central | E86: ='BDI - Geral'!E8 -> 0.026
C87: A.2 | D87: Seguros, Garantias e Riscos | E87: ='BDI - Geral'!E9 -> 0.0054
C88: B | D88: Lucro | E88: ='BDI - Geral'!E11 -> 0.04
C89: C | D89: Tributos | E89: =SUM(E90:E91) -> 0.124
C90: C.1 | D90: Tributos Federais (COFINS, PIS e CPRB) | E90: ='BDI - Geral'!E19 -> 0.074
C91: C.2 | D91: Tributos Distritais (ISS) | E91: ='BDI - Geral'!E24 -> 0.05 | H91: * Nota - Utilizou-se o indicado pelo Sindicato da Arquitetura e da Engenharia (Sinaenco, 2008, p. 22), que adota um percentual redutor de 20% no cálculo dos custos tributários relativos às contribuições PIS e COFINS
C92: D | D92: Despesas Financeiras | E92: ='BDI - Geral'!E14 -> 0.004861120438
D94: TOTAL DE BDI | E94: ='BDI - Geral'!E27 -> 0.2304 | F94: =E94*E102 -> 4586.413824
D96: QUADRO-RESUMO DO CUSTO MENSAL POR EMPREGADO - SEM O 13º | E96: Valor
D97: Módulo 1 - Composição da Remuneração | E97: =F16 -> 12954.17
D98: Módulo 2 - Encargos e Benefícios Anuais, Mensais e Diários | E98: =F45 -> 6200.81
D99: Módulo 3 - Provisão para Rescisão | E99: =F55 -> 491.82
D100: Módulo 4 - Custo de Reposição do Profissional Ausente | E100: =F73 -> 259.51
D101: Módulo 5 - Insumos Diversos | E101: =F82 -> 0
D102: SUBTOTAL (A+B+C+D+E) | E102: =SUM(E97:E101) -> 19906.31
D103: Módulo 6 - Custos Indiretos, Tributos e Lucro | E103: =F94 -> 4586.413824
D105: TOTAL DO POSTO | E105: =SUM(E102:E103) -> 24492.72382
B107: MÓDULO 7 - DESTAQUE DO MÓDULO 2 - 13º SALÁRIO | E107: Percentuais | F107: Valor
C108: A | D108: 13º Salário | E108: ='Encargos Sociais'!E32 -> 0.08333333333 | F108: =ROUND(E108*F$16,2) -> 1079.51
C109: B | D109: Encargos Sociais sobre o 13º Salário - Taxa calculada no SUBMÓDULO 2.2 | E109: =SUM($E$24:$E$32) -> 0.348 | F109: =ROUND(E109*$F$108,2) -> 375.67 | H109: * Nota 1 - Provisiona-se, mensalmente, o proporcional a 1/12 dos valores referentes a gratificação natalina e adicional de férias.
C110: C | D110: BDI sobre o 13º Salário - Taxa calculada no MÓDULO 6 | E110: =E94 -> 0.2304 | F110: =ROUND(E110*($F$108+$F$109),2) -> 335.27
D112: TOTAL DO DESTAQUE DO 13º SALÁRIO | F112: =SUM(F108:F110) -> 1790.45
D114: QUADRO-RESUMO DO CUSTO MENSAL POR EMPREGADO | E114: Valor
D115: Custo total - sem o 13º Salário | E115: =E105 -> 24492.72382
D116: Destaque do 13º Salário (valor mensal) | E116: =F112 -> 1790.45
D118: TOTAL DO POSTO | E118: =E115+E116 -> 26283.17382

Sheet 2
B2: PLANILHA DE ESTIMATIVA DE CUSTOS
B3: Padrão IN 05/2017 e IN 07/2018 - MPDG
B5: 2 | D5: =HLOOKUP($B$5,'Dados Gerais'!$D$6:$L$22,6) -> SUPERVISOR TÉCNICO | E5: QUANTIDADE | F5: =HLOOKUP($B$5,'Dados Gerais'!$D$6:$L$22,10) -> 3
B6: CCT | D6: =HLOOKUP($B$5,'Dados Gerais'!$D$6:$L$22,16) -> SINRAD/DF x SEAC/DF CCT 2022/2022 N.º DF000077/2022 | E6: DATA-BASE | F6: =HLOOKUP($B$5,'Dados Gerais'!$D$6:$L$22,17) -> 2022-01-01
B8: MÓDULO 1 - COMPOSIÇÃO DA REMUNERAÇÃO | F8: Valor
C9: A | D9: Salário-Base | F9: =HLOOKUP($B$5,'Dados Gerais'!$D$6:$L$22,8) -> 9252.98
C10: B | D10: Adicional de Periculosidade | F10: =HLOOKUP($B$5,'Dados Gerais'!$D$6:$L$39,26) -> 0
C11: C | D11: Adicional de Insalubridade | F11: =HLOOKUP($B$5,'Dados Gerais'!$D$6:$L$39,32) -> 0
C12: D | D12: Adicional Noturno | F12: =HLOOKUP($B$5,'Dados Gerais'!$D$6:$L$52,47) -> 0 | H12: * Nota 1 - O Módulo 1 refere-se ao valor mensal devido ao empregado pela prestação do serviço no período de 12 meses.
C13: E | D13: Adicional de Hora Extra | F13: =HLOOKUP($B$5,'Dados Gerais'!$D$6:$L$69,64) -> 0 | H13: * Nota 2 - O adicional de hora extra no feriado trabalhado foi suprimido pela Lei 13.467/17
C14: F | D14: Outros (especificar) | F14: 0 | H14: * Nota 3 - ART. 7º, § 2º, DA LEI Nº 605/49.Sendo mensalista o obreiro, o adicional noturno pago de forma fixa já é considerado integrado para os efeitos do pagamento do repouso semanal remunerado, nos termos do art. 7º, § 2º, da Lei nº 605/49.
D16: TOTAL DA REMUNERAÇÃO | F16: =SUM(F9:F14) -> 9252.98
B18: MÓDULO 2 - ENCARGOS E BENEFÍCIOS ANUAIS, MENSAIS E DIÁRIOS | E18: Percentuais | F18: Valor
B19: Submódulo 2.1 - 13º Salário, Férias e Adicional de Férias
C20: A | D20: 13º Salário - Calculado no Módulo 7 - Destacado | E20: 0 | F20: =ROUND(E20*F$16,2) -> 0
C21: B | D21: Férias e Adicional de Férias | E21: ='Encargos Sociais'!E25+'Encargos Sociais'!E31 -> 0.0303030303 | F21: =ROUND(E21*F$16,2) -> 280.39 | H21: * Nota 1 - Provisiona-se, mensalmente, o proporcional a 1/12 dos valores referentes a gratificação natalina, férias e adicional de férias.
H22: * Nota 2 - O adicional de férias contido no Submódulo 2.1 corresponde a 1/3 da remuneração que, por sua vez, é dividida por 12 contome Nota 1.
B23: Submódulo 2.2 - Encargos Previdenciários (GPS), Fundo de Garantia por Tempo de Serviço (FGTS) e Outras Contribuições
C24: A | D24: INSS (art. 22, inciso I, Lei nº 8.212/91) | E24: ='Encargos Sociais'!E14 -> 0.2 | F24: =ROUND(E24*($F$16+$F$41+$F$73),2) -> 1943.75
C25: B | D25: Salário Educação (art. 3º, inciso I, Decreto nº 87.043/82) | E25: ='Encargos Sociais'!E15 -> 0.025 | F25: 242.97
C26: C | D26: SAT/RAT (art. 22, II, Lei 8.212/91 e Anexo V, Decreto 6.042/07) - Enquadramento 8211-3/00 | E26: ='Encargos Sociais'!E16 -> 0.01 | F26: 97.19
C27: D | D27: SESC ou SESI (art. 30, Lei nº 8.036/90 e art. 1º, Lei 8.154/90) | E27: ='Encargos Sociais'!E17 -> 0.015 | F27: 145.78
C28: E | D28: SENAI ou SENAC (Decreto nº 2.318/86) | E28: ='Encargos Sociais'!E18 -> 0.01 | F28: 97.19
C29: F | D29: SEBRAE (§ 3º, art. 8º, Lei 8.029/90, alterada pela Lei nº 8.154/90) | E29: ='Encargos Sociais'!E19 -> 0.006 | F29: 58.31
C30: G | D30: INCRA (art. 1º, I, Decreto Lei 1.146/70 e Lei 7.787, de 30/06/89) | E30: ='Encargos Sociais'!E20 -> 0.002 | F30: 19.44 | H30: * Nota 1 - Os percentuais dos encargos previdenciários, do FGTS e demais contribuições são estabelecidos por legislação vigente.
C31: H | D31: FGTS (Lei Complementar nº 110/01 e art. 30, Lei nº 8.036/90) | E31: ='Encargos Sociais'!E21 -> 0.08 | F31: 777.5 | H31: * Nota 2 - O SAT, a depender do grau de risco do serviço, irá variar entre 1%, para risco leve, de 2%, para risco médio, e de 3% para risco grave.
C32: I | D32: SECONCI (Convenções Coletivas de Trabalho da construção) | E32: ='Encargos Sociais'!E22 -> 0 | F32: 0 | H32: * Nota 3 - Os percentuais do Submódulo 2.2 incidem sobre o Módulo 1 e o Submódulo 2.1.
B34: Submódulo 2.3 - Benefícios Mensais e Diários
C35: A | D35: Auxílio Transporte | F35: =HLOOKUP($B$5,'Dados Gerais'!$D$6:$L$95,83) -> 0
C36: B | D36: Auxílio Alimentação | F36: =HLOOKUP($B$5,'Dados Gerais'!$D$6:$L$95,90) -> 851.84
C37: C | D37: Assistência Médica e Familiar | F37: =HLOOKUP($B$5,'Dados Gerais'!$D$6:$L$103,98) -> 0
C38: D | D38: Outros (Seguro de vida, auxílio funeral, auxílio odontológico e auxílio creche) | F38: =HLOOKUP($B$5,'Dados Gerais'!$D$6:$L$133,127) -> 221.45 | H38: * Nota 1 - O valor informado deverá ser o custo real do benefício (descontado o valor eventualmente pago pelo empregado).
H39: * Nota 2 - Observar a previsão dos benefícios contidos em Acordos, Convenções e Dissídios Coletivos de Trabalho e o disposto no art. 6º da IN 5/2017
D40: QUADRO-RESUMO DO MÓDULO 2
D41: 2.1 - 13º Salário, Férias e Adicional de Férias - 13º Destacado - Calculado no Módulo 7 | E41: =SUM(E20:E21) -> 0.0303030303 | F41: =F20+F21 -> 280.39
D42: 2.2 - Encargos Previdenciários (GPS), Fundo de Garantia por Tempo de Serviço (FGTS) e Contribuições | E42: =SUM(E24:E32) -> 0.348 | F42: =SUM(F24:F32) -> 3382.13
D43: 2.3 - Benefícios Mensais e Diários | F43: =SUM(F35:F38) -> 1073.29
D45: TOTAL DOS ENCARGOS E BENEFÍCIOS | F45: =SUM(F41:F43) -> 4735.81
B47: MÓDULO 3 - PREVISÃO PARA RESCISÃO | E47: Percentuais | F47: Valor
C48: A | D48: Aviso Prévio Indenizado (Art. 7º, inciso XXI, da CF/1988 e arts. 477, 487, §1º, e 491 da CLT) | E48: ='Encargos Sociais'!E36 -> 0.008333333333 | F48: =ROUND(E48*$F$16,2) -> 77.11
C49: B | D49: Incidência do FGTS sobre o Aviso Prévio Indenizado (Súmula 305 TST) | E49: ='Encargos Sociais'!E37 -> 0.0006666666667 | F49: 6.17 | H49: * Nota 1 - Adotou-se os parâmetros do estudo do STF (http://www.stf.jus.br/arquivo/cms/sobrestfestudosci/anexo/encargos_sociais_03102007.pdf), onde 5% do pessoal é demitido pelo empregador no decurso do contrato (para estes, considerou-se o aviso prévio indenizado). Desprezou-se as demissões por justa causa e os pedidos de demissão.
C50: C | D50: Multa do FGTS e Contribuição Social sobre o Aviso Prévio Indenizado (Art. 18, §1º, da Lei 8.036/1990 e art. 1º da LC nº 110/2001) | E50: ='Encargos Sociais'!E38 -> 0.001274074074 | F50: 11.79 | H50: * Nota 2 - No cálculo do percentual, considerou-se 36 dias, correspondendo à metade da duração média dos contratos (2 anos)
C51: D | D51: Aviso Prévio Trabalhado (Art. 488, parágrafo único, CLT) | E51: ='Encargos Sociais'!E39 -> 0.01203703704 | F51: 111.38 | H51: * Nota 3 - Incide sobre a Remuneração + 13º salário (1/12) + Férias (1/12) + Adicional de Férias (1/36) x 50% multa (40% para o empregado e 10% de contribuição social) x 8% FGTS
C52: E | D52: Incidência de GPS, FGTS e outras contribuições sobre o Aviso Prévio Trabalhado | E52: ='Encargos Sociais'!E40 -> 0.004188888889 | F52: 38.76 | H52: * Nota 4 - Os 95% restantes do cálculo, a um prazo médio de contrato de 4 anos. Assim, calcula-se 7 dias para o 1º ano de contrato e mais 3 dias para os 3 anos seguintes.
C53: F | D53: Multa do FGTS e Contribuição Social sobre o Aviso Prévio Trabalhado | E53: ='Encargos Sociais'!E41 -> 0.01146666667 | F53: 106.1
D55: TOTAL DE PREVISÃO PARA RESCISÃO | F55: =SUM(F48:F53) -> 351.31
B57: MÓDULO 4 - CUSTO DE REPOSIÇÃO DO PROFISSIONAL AUSENTE | E57: Percentuais | F57: Valor
B58: Submódulo 4.1 - Ausências Legais
C59: A | D59: Férias (Arts. 129 e 130, inc. I, da CLT) - Calculado no Submódulo 2.1 | E59: 0 | F59: =ROUND(E59*$F$16,2) -> 0 | H59: * Nota 1 - As alíneas “A” a “F” referem-se somente ao custo que será pago ao repositor pelos dias trabalhados quando da necessidade de substituir a mão de obra alocada na prestação do serviço.
C60: B | D60: Ausências Legais (Arts. 131 e 473 da CLT) | E60: ='Encargos Sociais'!E26 -> 0.007936507937 | F60: 73.44 | H60: * Nota 2 - Adotou-se a estimativa do SINAPI de 2 dias por ano.
C61: C | D61: Licença-Paternidade (Art. 7º, XIX, e art. 10, §1º, do ADCT, CF/1988 e Art. 1º, II, da Lei 11.770/2008) | E61: ='Encargos Sociais'!E27 -> 0.0008277777778 | F61: 7.66 | H61: * Nota 3 - Utilizada a proporção de 50% para homens, 5 dias de afastamento, e a probabilidade de um trabalhador requerer a Licença Paternidade em 5,22%, conforme SINAPI (citando dados da PNAD 2015)
C62: D | D62: Ausência por Acidente de Trabalho (Art. 131, III, da CLT) | E62: ='Encargos Sociais'!E28 -> 0.0008541666667 | F62: 7.9 | H62: * Nota 4 - Utilzada a estatística de 1,96% dos contribuintes beneficiados com a emissão do auxílio, conforme Anuário Estatístico da Previdência Social. Afastamento de 15 dias a cargo da empresa.
C63: E | D63: Afastamento Maternidade (Art. 71 da Lei nº 8.213/1991) | E63: ='Encargos Sociais'!E29 -> 0.003292592593 | F63: 30.47 | H63: * Nota 5 - Utilizada a proporção de 50% para mulheres, 180 dias de afastamento, e a probabilidade de uma trabalhadora requerer a Licença Maternidade em 4,91%, conforme SINAPI (citando dados do IBGE 2016)
C64: F | D64: Auxílio Enfermidade - Doença (Art. 59 da Lei nº 8.213/1991) | E64: ='Encargos Sociais'!E30 -> 0.007122222222 | F64: 65.9 | H64: * Nota 6 - Utilizada a estatística de 3,37% dos contribuintes beneficiados com o auxílio, conforme Anuário Estatístico da Previdência Social de 2015 (acrescidos de 2 dias ao ano, para os quais o trabalhador nem requer o benefício da Previdência - conforme SINAPI)
B66: Submódulo 4.2 - Intrajornada
C67: A | D67: Intervalo para repouso ou alimentação | E67: ='Encargos Sociais'!E33 -> 0 | F67: =ROUND(E67*$F$16,2) -> 0
D69: QUADRO-RESUMO DO MÓDULO 4 | F69: Valor
D70: 4.1 - Ausências Legais | E70: =SUM(E59:E64) -> 0.0200332672 | F70: =ROUND(E70*$F$16,2) -> 185.37
D71: 4.2 - Intrajornada | E71: =E67 -> 0 | F71: =ROUND(E71*$F$16,2) -> 0
D73: TOTAL DE PREVISÃO PARA RESCISÃO E INTERVALO INTRAJORNADA | F73: =SUM(F70:F71) -> 185.37
B75: MÓDULO 5 - INSUMOS DIVERSOS | F75: Valor
C76: A | D76: Uniformes - aquisição | F76: =ROUND(HLOOKUP($B$5,Uniformes!K4:DZ6,3)/12,2) -> 0
C77: B | D77: Materiais de consumo relacionados ao posto - aquisição | F77: 0
C78: C | D78: Ferramentas relacionadas ao posto - remuneração da sua depreciação / manutenção | F78: 0
C79: D | D79: Equipamentos relacionados ao posto - remuneração da sua depreciação / manutenção | F79: 0
C80: E | D80: Equipamentos de Proteção Individual - EPI - aquisição | F80: =ROUND(HLOOKUP(B5,EPI!I4:DX6,3)/12,2) -> 12.07
D82: TOTAL DE INSUMOS DIVERSOS | F82: =SUM(F76:F81) -> 12.07 | H82: * Nota - Valores mensais por empregado
B84: MÓDULO 6 - CUSTOS INDIRETOS, TRIBUTOS E LUCRO - BDI | E84: Percentuais | F84: Valor
C85: A | D85: Custos Indiretos | E85: ='BDI - Geral'!E7 -> 0.0314
C86: A.1 | D86: Administração Central | E86: ='BDI - Geral'!E8 -> 0.026
C87: A.2 | D87: Seguros, Garantias e Riscos | E87: ='BDI - Geral'!E9 -> 0.0054
C88: B | D88: Lucro | E88: ='BDI - Geral'!E11 -> 0.04
C89: C | D89: Tributos | E89: =SUM(E90:E91) -> 0.124
C90: C.1 | D90: Tributos Federais (COFINS, PIS e CPRB) | E90: ='BDI - Geral'!E19 -> 0.074
C91: C.2 | D91: Tributos Distritais (ISS) | E91: ='BDI - Geral'!E24 -> 0.05 | H91: * Nota - Utilizou-se o indicado pelo Sindicato da Arquitetura e da Engenharia (Sinaenco, 2008, p. 22), que adota um percentual redutor de 20% no cálculo dos custos tributários relativos às contribuições PIS e COFINS
C92: D | D92: Despesas Financeiras | E92: ='BDI - Geral'!E14 -> 0.004861120438
D94: TOTAL DE BDI | E94: ='BDI - Geral'!E27 -> 0.2304 | F94: =E94*E102 -> 3349.449216
D96: QUADRO-RESUMO DO CUSTO MENSAL POR EMPREGADO - SEM O 13º | E96: Valor
D97: Módulo 1 - Composição da Remuneração | E97: =F16 -> 9252.98
D98: Módulo 2 - Encargos e Benefícios Anuais, Mensais e Diários | E98: =F45 -> 4735.81
D99: Módulo 3 - Provisão para Rescisão | E99: =F55 -> 351.31
D100: Módulo 4 - Custo de Reposição do Profissional Ausente | E100: =F73 -> 185.37
D101: Módulo 5 - Insumos Diversos | E101: =F82 -> 12.07
D102: SUBTOTAL (A+B+C+D+E) | E102: =SUM(E97:E101) -> 14537.54
D103: Módulo 6 - Custos Indiretos, Tributos e Lucro | E103: =F94 -> 3349.449216
D105: TOTAL DO POSTO | E105: =SUM(E102:E103) -> 17886.98922
B107: MÓDULO 7 - DESTAQUE DO MÓDULO 2 - 13º SALÁRIO | E107: Percentuais | F107: Valor
C108: A | D108: 13º Salário | E108: ='Encargos Sociais'!E32 -> 0.08333333333 | F108: =ROUND(E108*F$16,2) -> 771.08
C109: B | D109: Encargos Sociais sobre o 13º Salário - Taxa calculada no SUBMÓDULO 2.2 | E109: =SUM($E$24:$E$32) -> 0.348 | F109: =ROUND(E109*$F$108,2) -> 268.34 | H109: * Nota 1 - Provisiona-se, mensalmente, o proporcional a 1/12 dos valores referentes a gratificação natalina e adicional de férias.
C110: C | D110: BDI sobre o 13º Salário - Taxa calculada no MÓDULO 6 | E110: =E94 -> 0.2304 | F110: =ROUND(E110*($F$108+$F$109),2) -> 239.48
D112: TOTAL DO DESTAQUE DO 13º SALÁRIO | F112: =SUM(F108:F110) -> 1278.9
D114: QUADRO-RESUMO DO CUSTO MENSAL POR EMPREGADO | E114: Valor
D115: Custo total - sem o 13º Salário | E115: =E105 -> 17886.98922
D116: Destaque do 13º Salário (valor mensal) | E116: =F112 -> 1278.9
D118: TOTAL DO POSTO | E118: =E115+E116 -> 19165.88922

Sheet 3
B2: PLANILHA DE ESTIMATIVA DE CUSTOS
B3: Padrão IN 05/2017 e IN 07/2018 - MPDG
B5: 3 | D5: =HLOOKUP($B$5,'Dados Gerais'!$D$6:$L$22,6) -> SUPERVISOR OPERACIONAL | E5: QUANTIDADE | F5: =HLOOKUP($B$5,'Dados Gerais'!$D$6:$L$22,10) -> 2
B6: CCT | D6: =HLOOKUP($B$5,'Dados Gerais'!$D$6:$L$22,16) -> SINRAD/DF x SEAC/DF CCT 2022/2022 N.º DF000077/2022 | E6: DATA-BASE | F6: =HLOOKUP($B$5,'Dados Gerais'!$D$6:$L$22,17) -> 2022-01-01
B8: MÓDULO 1 - COMPOSIÇÃO DA REMUNERAÇÃO | F8: Valor
C9: A | D9: Salário-Base | F9: =HLOOKUP($B$5,'Dados Gerais'!$D$6:$L$22,8) -> 8894.19
C10: B | D10: Adicional de Periculosidade | F10: =HLOOKUP($B$5,'Dados Gerais'!$D$6:$L$39,26) -> 0
C11: C | D11: Adicional de Insalubridade | F11: =HLOOKUP($B$5,'Dados Gerais'!$D$6:$L$39,32) -> 0
C12: D | D12: Adicional Noturno | F12: =HLOOKUP($B$5,'Dados Gerais'!$D$6:$L$52,47) -> 0 | H12: * Nota 1 - O Módulo 1 refere-se ao valor mensal devido ao empregado pela prestação do serviço no período de 12 meses.
C13: E | D13: Adicional de Hora Extra | F13: =HLOOKUP($B$5,'Dados Gerais'!$D$6:$L$69,64) -> 0 | H13: * Nota 2 - O adicional de hora extra no feriado trabalhado foi suprimido pela Lei 13.467/17
C14: F | D14: Outros (especificar) | F14: 0 | H14: * Nota 3 - ART. 7º, § 2º, DA LEI Nº 605/49.Sendo mensalista o obreiro, o adicional noturno pago de forma fixa já é considerado integrado para os efeitos do pagamento do repouso semanal remunerado, nos termos do art. 7º, § 2º, da Lei nº 605/49.
D16: TOTAL DA REMUNERAÇÃO | F16: =SUM(F9:F14) -> 8894.19
B18: MÓDULO 2 - ENCARGOS E BENEFÍCIOS ANUAIS, MENSAIS E DIÁRIOS | E18: Percentuais | F18: Valor
B19: Submódulo 2.1 - 13º Salário, Férias e Adicional de Férias
C20: A | D20: 13º Salário - Calculado no Módulo 7 - Destacado | E20: 0 | F20: =ROUND(E20*F$16,2) -> 0
C21: B | D21: Férias e Adicional de Férias | E21: ='Encargos Sociais'!E25+'Encargos Sociais'!E31 -> 0.0303030303 | F21: =ROUND(E21*F$16,2) -> 269.52 | H21: * Nota 1 - Provisiona-se, mensalmente, o proporcional a 1/12 dos valores referentes a gratificação natalina, férias e adicional de férias.
H22: * Nota 2 - O adicional de férias contido no Submódulo 2.1 corresponde a 1/3 da remuneração que, por sua vez, é dividida por 12 contome Nota 1.
B23: Submódulo 2.2 - Encargos Previdenciários (GPS), Fundo de Garantia por Tempo de Serviço (FGTS) e Outras Contribuições
C24: A | D24: INSS (art. 22, inciso I, Lei nº 8.212/91) | E24: ='Encargos Sociais'!E14 -> 0.2 | F24: =ROUND(E24*($F$16+$F$41+$F$73),2) -> 1868.38
C25: B | D25: Salário Educação (art. 3º, inciso I, Decreto nº 87.043/82) | E25: ='Encargos Sociais'!E15 -> 0.025 | F25: 233.55
C26: C | D26: SAT/RAT (art. 22, II, Lei 8.212/91 e Anexo V, Decreto 6.042/07) - Enquadramento 8211-3/00 | E26: ='Encargos Sociais'!E16 -> 0.01 | F26: 93.42
C27: D | D27: SESC ou SESI (art. 30, Lei nº 8.036/90 e art. 1º, Lei 8.154/90) | E27: ='Encargos Sociais'!E17 -> 0.015 | F27: 140.13
C28: E | D28: SENAI ou SENAC (Decreto nº 2.318/86) | E28: ='Encargos Sociais'!E18 -> 0.01 | F28: 93.42
C29: F | D29: SEBRAE (§ 3º, art. 8º, Lei 8.029/90, alterada pela Lei nº 8.154/90) | E29: ='Encargos Sociais'!E19 -> 0.006 | F29: 56.05
C30: G | D30: INCRA (art. 1º, I, Decreto Lei 1.146/70 e Lei 7.787, de 30/06/89) | E30: ='Encargos Sociais'!E20 -> 0.002 | F30: 18.68 | H30: * Nota 1 - Os percentuais dos encargos previdenciários, do FGTS e demais contribuições são estabelecidos por legislação vigente.
C31: H | D31: FGTS (Lei Complementar nº 110/01 e art. 30, Lei nº 8.036/90) | E31: ='Encargos Sociais'!E21 -> 0.08 | F31: 747.35 | H31: * Nota 2 - O SAT, a depender do grau de risco do serviço, irá variar entre 1%, para risco leve, de 2%, para risco médio, e de 3% para risco grave.
C32: I | D32: SECONCI (Convenções Coletivas de Trabalho da construção) | E32: ='Encargos Sociais'!E22 -> 0 | F32: 0 | H32: * Nota 3 - Os percentuais do Submódulo 2.2 incidem sobre o Módulo 1 e o Submódulo 2.1.
B34: Submódulo 2.3 - Benefícios Mensais e Diários
C35: A | D35: Auxílio Transporte | F35: =HLOOKUP($B$5,'Dados Gerais'!$D$6:$L$95,83) -> 0
C36: B | D36: Auxílio Alimentação | F36: =HLOOKUP($B$5,'Dados Gerais'!$D$6:$L$95,90) -> 851.84
C37: C | D37: Assistência Médica e Familiar | F37: =HLOOKUP($B$5,'Dados Gerais'!$D$6:$L$103,98) -> 0
C38: D | D38: Outros (Seguro de vida, auxílio funeral, auxílio odontológico e auxílio creche) | F38: =HLOOKUP($B$5,'Dados Gerais'!$D$6:$L$133,127) -> 221.45 | H38: * Nota 1 - O valor informado deverá ser o custo real do benefício (descontado o valor eventualmente pago pelo empregado).
H39: * Nota 2 - Observar a previsão dos benefícios contidos em Acordos, Convenções e Dissídios Coletivos de Trabalho e o disposto no art. 6º da IN 5/2017
D40: QUADRO-RESUMO DO MÓDULO 2
D41: 2.1 - 13º Salário, Férias e Adicional de Férias - 13º Destacado - Calculado no Módulo 7 | E41: =SUM(E20:E21) -> 0.0303030303 | F41: =F20+F21 -> 269.52
D42: 2.2 - Encargos Previdenciários (GPS), Fundo de Garantia por Tempo de Serviço (FGTS) e Contribuições | E42: =SUM(E24:E32) -> 0.348 | F42: =SUM(F24:F32) -> 3250.98
D43: 2.3 - Benefícios Mensais e Diários | F43: =SUM(F35:F38) -> 1073.29
D45: TOTAL DOS ENCARGOS E BENEFÍCIOS | F45: =SUM(F41:F43) -> 4593.79
B47: MÓDULO 3 - PREVISÃO PARA RESCISÃO | E47: Percentuais | F47: Valor
C48: A | D48: Aviso Prévio Indenizado (Art. 7º, inciso XXI, da CF/1988 e arts. 477, 487, §1º, e 491 da CLT) | E48: ='Encargos Sociais'!E36 -> 0.008333333333 | F48: =ROUND(E48*$F$16,2) -> 74.12
C49: B | D49: Incidência do FGTS sobre o Aviso Prévio Indenizado (Súmula 305 TST) | E49: ='Encargos Sociais'!E37 -> 0.0006666666667 | F49: 5.93 | H49: * Nota 1 - Adotou-se os parâmetros do estudo do STF (http://www.stf.jus.br/arquivo/cms/sobrestfestudosci/anexo/encargos_sociais_03102007.pdf), onde 5% do pessoal é demitido pelo empregador no decurso do contrato (para estes, considerou-se o aviso prévio indenizado). Desprezou-se as demissões por justa causa e os pedidos de demissão.
C50: C | D50: Multa do FGTS e Contribuição Social sobre o Aviso Prévio Indenizado (Art. 18, §1º, da Lei 8.036/1990 e art. 1º da LC nº 110/2001) | E50: ='Encargos Sociais'!E38 -> 0.001274074074 | F50: 11.33 | H50: * Nota 2 - No cálculo do percentual, considerou-se 36 dias, correspondendo à metade da duração média dos contratos (2 anos)
C51: D | D51: Aviso Prévio Trabalhado (Art. 488, parágrafo único, CLT) | E51: ='Encargos Sociais'!E39 -> 0.01203703704 | F51: 107.06 | H51: * Nota 3 - Incide sobre a Remuneração + 13º salário (1/12) + Férias (1/12) + Adicional de Férias (1/36) x 50% multa (40% para o empregado e 10% de contribuição social) x 8% FGTS
C52: E | D52: Incidência de GPS, FGTS e outras contribuições sobre o Aviso Prévio Trabalhado | E52: ='Encargos Sociais'!E40 -> 0.004188888889 | F52: 37.26 | H52: * Nota 4 - Os 95% restantes do cálculo, a um prazo médio de contrato de 4 anos. Assim, calcula-se 7 dias para o 1º ano de contrato e mais 3 dias para os 3 anos seguintes.
C53: F | D53: Multa do FGTS e Contribuição Social sobre o Aviso Prévio Trabalhado | E53: ='Encargos Sociais'!E41 -> 0.01146666667 | F53: 101.99
D55: TOTAL DE PREVISÃO PARA RESCISÃO | F55: =SUM(F48:F53) -> 337.69
B57: MÓDULO 4 - CUSTO DE REPOSIÇÃO DO PROFISSIONAL AUSENTE | E57: Percentuais | F57: Valor
B58: Submódulo 4.1 - Ausências Legais
C59: A | D59: Férias (Arts. 129 e 130, inc. I, da CLT) - Calculado no Submódulo 2.1 | E59: 0 | F59: =ROUND(E59*$F$16,2) -> 0 | H59: * Nota 1 - As alíneas “A” a “F” referem-se somente ao custo que será pago ao repositor pelos dias trabalhados quando da necessidade de substituir a mão de obra alocada na prestação do serviço.
C60: B | D60: Ausências Legais (Arts. 131 e 473 da CLT) | E60: ='Encargos Sociais'!E26 -> 0.007936507937 | F60: 70.59 | H60: * Nota 2 - Adotou-se a estimativa do SINAPI de 2 dias por ano.
C61: C | D61: Licença-Paternidade (Art. 7º, XIX, e art. 10, §1º, do ADCT, CF/1988 e Art. 1º, II, da Lei 11.770/2008) | E61: ='Encargos Sociais'!E27 -> 0.0008277777778 | F61: 7.36 | H61: * Nota 3 - Utilizada a proporção de 50% para homens, 5 dias de afastamento, e a probabilidade de um trabalhador requerer a Licença Paternidade em 5,22%, conforme SINAPI (citando dados da PNAD 2015)
C62: D | D62: Ausência por Acidente de Trabalho (Art. 131, III, da CLT) | E62: ='Encargos Sociais'!E28 -> 0.0008541666667 | F62: 7.6 | H62: * Nota 4 - Utilzada a estatística de 1,96% dos contribuintes beneficiados com a emissão do auxílio, conforme Anuário Estatístico da Previdência Social. Afastamento de 15 dias a cargo da empresa.
C63: E | D63: Afastamento Maternidade (Art. 71 da Lei nº 8.213/1991) | E63: ='Encargos Sociais'!E29 -> 0.003292592593 | F63: 29.28 | H63: * Nota 5 - Utilizada a proporção de 50% para mulheres, 180 dias de afastamento, e a probabilidade de uma trabalhadora requerer a Licença Maternidade em 4,91%, conforme SINAPI (citando dados do IBGE 2016)
C64: F | D64: Auxílio Enfermidade - Doença (Art. 59 da Lei nº 8.213/1991) | E64: ='Encargos Sociais'!E30 -> 0.007122222222 | F64: 63.35 | H64: * Nota 6 - Utilizada a estatística de 3,37% dos contribuintes beneficiados com o auxílio, conforme Anuário Estatístico da Previdência Social de 2015 (acrescidos de 2 dias ao ano, para os quais o trabalhador nem requer o benefício da Previdência - conforme SINAPI)
B66: Submódulo 4.2 - Intrajornada
C67: A | D67: Intervalo para repouso ou alimentação | E67: ='Encargos Sociais'!E33 -> 0 | F67: =ROUND(E67*$F$16,2) -> 0
D69: QUADRO-RESUMO DO MÓDULO 4 | F69: Valor
D70: 4.1 - Ausências Legais | E70: =SUM(E59:E64) -> 0.0200332672 | F70: =ROUND(E70*$F$16,2) -> 178.18
D71: 4.2 - Intrajornada | E71: =E67 -> 0 | F71: =ROUND(E71*$F$16,2) -> 0
D73: TOTAL DE PREVISÃO PARA RESCISÃO E INTERVALO INTRAJORNADA | F73: =SUM(F70:F71) -> 178.18
B75: MÓDULO 5 - INSUMOS DIVERSOS | F75: Valor
C76: A | D76: Uniformes - aquisição | F76: =ROUND(HLOOKUP($B$5,Uniformes!K4:DZ6,3)/12,2) -> 0
C77: B | D77: Materiais de consumo relacionados ao posto - aquisição | F77: 0
C78: C | D78: Ferramentas relacionadas ao posto - remuneração da sua depreciação / manutenção | F78: 0
C79: D | D79: Equipamentos relacionados ao posto - remuneração da sua depreciação / manutenção | F79: 0
C80: E | D80: Equipamentos de Proteção Individual - EPI - aquisição | F80: =ROUND(HLOOKUP(B5,EPI!I4:DX6,3)/12,2) -> 0
D82: TOTAL DE INSUMOS DIVERSOS | F82: =SUM(F76:F81) -> 0 | H82: * Nota - Valores mensais por empregado
B84: MÓDULO 6 - CUSTOS INDIRETOS, TRIBUTOS E LUCRO - BDI | E84: Percentuais | F84: Valor
C85: A | D85: Custos Indiretos | E85: ='BDI - Geral'!E7 -> 0.0314
C86: A.1 | D86: Administração Central | E86: ='BDI - Geral'!E8 -> 0.026
C87: A.2 | D87: Seguros, Garantias e Riscos | E87: ='BDI - Geral'!E9 -> 0.0054
C88: B | D88: Lucro | E88: ='BDI - Geral'!E11 -> 0.04
C89: C | D89: Tributos | E89: =SUM(E90:E91) -> 0.124
C90: C.1 | D90: Tributos Federais (COFINS, PIS e CPRB) | E90: ='BDI - Geral'!E19 -> 0.074
C91: C.2 | D91: Tributos Distritais (ISS) | E91: ='BDI - Geral'!E24 -> 0.05 | H91: * Nota - Utilizou-se o indicado pelo Sindicato da Arquitetura e da Engenharia (Sinaenco, 2008, p. 22), que adota um percentual redutor de 20% no cálculo dos custos tributários relativos às contribuições PIS e COFINS
C92: D | D92: Despesas Financeiras | E92: ='BDI - Geral'!E14 -> 0.004861120438
D94: TOTAL DE BDI | E94: ='BDI - Geral'!E27 -> 0.2304 | F94: =E94*E102 -> 3226.48704
D96: QUADRO-RESUMO DO CUSTO MENSAL POR EMPREGADO - SEM O 13º | E96: Valor
D97: Módulo 1 - Composição da Remuneração | E97: =F16 -> 8894.19
D98: Módulo 2 - Encargos e Benefícios Anuais, Mensais e Diários | E98: =F45 -> 4593.79
D99: Módulo 3 - Provisão para Rescisão | E99: =F55 -> 337.69
D100: Módulo 4 - Custo de Reposição do Profissional Ausente | E100: =F73 -> 178.18
D101: Módulo 5 - Insumos Diversos | E101: =F82 -> 0
D102: SUBTOTAL (A+B+C+D+E) | E102: =SUM(E97:E101) -> 14003.85
D103: Módulo 6 - Custos Indiretos, Tributos e Lucro | E103: =F94 -> 3226.48704
D105: TOTAL DO POSTO | E105: =SUM(E102:E103) -> 17230.33704
B107: MÓDULO 7 - DESTAQUE DO MÓDULO 2 - 13º SALÁRIO | E107: Percentuais | F107: Valor
C108: A | D108: 13º Salário | E108: ='Encargos Sociais'!E32 -> 0.08333333333 | F108: =ROUND(E108*F$16,2) -> 741.18
C109: B | D109: Encargos Sociais sobre o 13º Salário - Taxa calculada no SUBMÓDULO 2.2 | E109: =SUM($E$24:$E$32) -> 0.348 | F109: =ROUND(E109*$F$108,2) -> 257.93 | H109: * Nota 1 - Provisiona-se, mensalmente, o proporcional a 1/12 dos valores referentes a gratificação natalina e adicional de férias.
C110: C | D110: BDI sobre o 13º Salário - Taxa calculada no MÓDULO 6 | E110: =E94 -> 0.2304 | F110: =ROUND(E110*($F$108+$F$109),2) -> 230.19
D112: TOTAL DO DESTAQUE DO 13º SALÁRIO | F112: =SUM(F108:F110) -> 1229.3
D114: QUADRO-RESUMO DO CUSTO MENSAL POR EMPREGADO | E114: Valor
D115: Custo total - sem o 13º Salário | E115: =E105 -> 17230.33704
D116: Destaque do 13º Salário (valor mensal) | E116: =F112 -> 1229.3
D118: TOTAL DO POSTO | E118: =E115+E116 -> 18459.63704

Sheet 4
B2: PLANILHA DE ESTIMATIVA DE CUSTOS
B3: Padrão IN 05/2017 e IN 07/2018 - MPDG
B5: 4 | D5: =HLOOKUP($B$5,'Dados Gerais'!$D$6:$L$22,6) -> DIRETOR DE IMAGENS – 30H | E5: QUANTIDADE | F5: =HLOOKUP($B$5,'Dados Gerais'!$D$6:$L$22,10) -> 24
B6: CCT | D6: =HLOOKUP($B$5,'Dados Gerais'!$D$6:$L$22,16) -> SINRAD/DF x SEAC/DF CCT 2022/2022 N.º DF000077/2022 | E6: DATA-BASE | F6: =HLOOKUP($B$5,'Dados Gerais'!$D$6:$L$22,17) -> 2022-01-01
B8: MÓDULO 1 - COMPOSIÇÃO DA REMUNERAÇÃO | F8: Valor
C9: A | D9: Salário-Base | F9: =HLOOKUP($B$5,'Dados Gerais'!$D$6:$L$22,8) -> 5845.04
C10: B | D10: Adicional de Periculosidade | F10: =HLOOKUP($B$5,'Dados Gerais'!$D$6:$L$39,26) -> 0
C11: C | D11: Adicional de Insalubridade | F11: =HLOOKUP($B$5,'Dados Gerais'!$D$6:$L$39,32) -> 0
C12: D | D12: Adicional Noturno | F12: =HLOOKUP($B$5,'Dados Gerais'!$D$6:$L$52,47) -> 0 | H12: * Nota 1 - O Módulo 1 refere-se ao valor mensal devido ao empregado pela prestação do serviço no período de 12 meses.
C13: E | D13: Adicional de Hora Extra | F13: =HLOOKUP($B$5,'Dados Gerais'!$D$6:$L$69,64) -> 0 | H13: * Nota 2 - O adicional de hora extra no feriado trabalhado foi suprimido pela Lei 13.467/17
C14: F | D14: Outros (especificar) | F14: 0 | H14: * Nota 3 - ART. 7º, § 2º, DA LEI Nº 605/49.Sendo mensalista o obreiro, o adicional noturno pago de forma fixa já é considerado integrado para os efeitos do pagamento do repouso semanal remunerado, nos termos do art. 7º, § 2º, da Lei nº 605/49.
D16: TOTAL DA REMUNERAÇÃO | F16: =SUM(F9:F14) -> 5845.04
B18: MÓDULO 2 - ENCARGOS E BENEFÍCIOS ANUAIS, MENSAIS E DIÁRIOS | E18: Percentuais | F18: Valor
B19: Submódulo 2.1 - 13º Salário, Férias e Adicional de Férias
C20: A | D20: 13º Salário - Calculado no Módulo 7 - Destacado | E20: 0 | F20: =ROUND(E20*F$16,2) -> 0
C21: B | D21: Férias e Adicional de Férias | E21: ='Encargos Sociais'!E25+'Encargos Sociais'!E31 -> 0.0303030303 | F21: =ROUND(E21*F$16,2) -> 177.12 | H21: * Nota 1 - Provisiona-se, mensalmente, o proporcional a 1/12 dos valores referentes a gratificação natalina, férias e adicional de férias.
H22: * Nota 2 - O adicional de férias contido no Submódulo 2.1 corresponde a 1/3 da remuneração que, por sua vez, é dividida por 12 contome Nota 1.
B23: Submódulo 2.2 - Encargos Previdenciários (GPS), Fundo de Garantia por Tempo de Serviço (FGTS) e Outras Contribuições
C24: A | D24: INSS (art. 22, inciso I, Lei nº 8.212/91) | E24: ='Encargos Sociais'!E14 -> 0.2 | F24: =ROUND(E24*($F$16+$F$41+$F$73),2) -> 1227.85
C25: B | D25: Salário Educação (art. 3º, inciso I, Decreto nº 87.043/82) | E25: ='Encargos Sociais'!E15 -> 0.025 | F25: 153.48
C26: C | D26: SAT/RAT (art. 22, II, Lei 8.212/91 e Anexo V, Decreto 6.042/07) - Enquadramento 8211-3/00 | E26: ='Encargos Sociais'!E16 -> 0.01 | F26: 61.39
C27: D | D27: SESC ou SESI (art. 30, Lei nº 8.036/90 e art. 1º, Lei 8.154/90) | E27: ='Encargos Sociais'!E17 -> 0.015 | F27: 92.09
C28: E | D28: SENAI ou SENAC (Decreto nº 2.318/86) | E28: ='Encargos Sociais'!E18 -> 0.01 | F28: 61.39
C29: F | D29: SEBRAE (§ 3º, art. 8º, Lei 8.029/90, alterada pela Lei nº 8.154/90) | E29: ='Encargos Sociais'!E19 -> 0.006 | F29: 36.84
C30: G | D30: INCRA (art. 1º, I, Decreto Lei 1.146/70 e Lei 7.787, de 30/06/89) | E30: ='Encargos Sociais'!E20 -> 0.002 | F30: 12.28 | H30: * Nota 1 - Os percentuais dos encargos previdenciários, do FGTS e demais contribuições são estabelecidos por legislação vigente.
C31: H | D31: FGTS (Lei Complementar nº 110/01 e art. 30, Lei nº 8.036/90) | E31: ='Encargos Sociais'!E21 -> 0.08 | F31: 491.14 | H31: * Nota 2 - O SAT, a depender do grau de risco do serviço, irá variar entre 1%, para risco leve, de 2%, para risco médio, e de 3% para risco grave.
C32: I | D32: SECONCI (Convenções Coletivas de Trabalho da construção) | E32: ='Encargos Sociais'!E22 -> 0 | F32: 0 | H32: * Nota 3 - Os percentuais do Submódulo 2.2 incidem sobre o Módulo 1 e o Submódulo 2.1.
B34: Submódulo 2.3 - Benefícios Mensais e Diários
C35: A | D35: Auxílio Transporte | F35: =HLOOKUP($B$5,'Dados Gerais'!$D$6:$L$95,83) -> 0
C36: B | D36: Auxílio Alimentação | F36: =HLOOKUP($B$5,'Dados Gerais'!$D$6:$L$95,90) -> 851.84
C37: C | D37: Assistência Médica e Familiar | F37: =HLOOKUP($B$5,'Dados Gerais'!$D$6:$L$103,98) -> 0
C38: D | D38: Outros (Seguro de vida, auxílio funeral, auxílio odontológico e auxílio creche) | F38: =HLOOKUP($B$5,'Dados Gerais'!$D$6:$L$133,127) -> 221.45 | H38: * Nota 1 - O valor informado deverá ser o custo real do benefício (descontado o valor eventualmente pago pelo empregado).
H39: * Nota 2 - Observar a previsão dos benefícios contidos em Acordos, Convenções e Dissídios Coletivos de Trabalho e o disposto no art. 6º da IN 5/2017
D40: QUADRO-RESUMO DO MÓDULO 2
D41: 2.1 - 13º Salário, Férias e Adicional de Férias - 13º Destacado - Calculado no Módulo 7 | E41: =SUM(E20:E21) -> 0.0303030303 | F41: =F20+F21 -> 177.12
D42: 2.2 - Encargos Previdenciários (GPS), Fundo de Garantia por Tempo de Serviço (FGTS) e Contribuições | E42: =SUM(E24:E32) -> 0.348 | F42: =SUM(F24:F32) -> 2136.46
D43: 2.3 - Benefícios Mensais e Diários | F43: =SUM(F35:F38) -> 1073.29
D45: TOTAL DOS ENCARGOS E BENEFÍCIOS | F45: =SUM(F41:F43) -> 3386.87
B47: MÓDULO 3 - PREVISÃO PARA RESCISÃO | E47: Percentuais | F47: Valor
C48: A | D48: Aviso Prévio Indenizado (Art. 7º, inciso XXI, da CF/1988 e arts. 477, 487, §1º, e 491 da CLT) | E48: ='Encargos Sociais'!E36 -> 0.008333333333 | F48: =ROUND(E48*$F$16,2) -> 48.71
C49: B | D49: Incidência do FGTS sobre o Aviso Prévio Indenizado (Súmula 305 TST) | E49: ='Encargos Sociais'!E37 -> 0.0006666666667 | F49: 3.9 | H49: * Nota 1 - Adotou-se os parâmetros do estudo do STF (http://www.stf.jus.br/arquivo/cms/sobrestfestudosci/anexo/encargos_sociais_03102007.pdf), onde 5% do pessoal é demitido pelo empregador no decurso do contrato (para estes, considerou-se o aviso prévio indenizado). Desprezou-se as demissões por justa causa e os pedidos de demissão.
C50: C | D50: Multa do FGTS e Contribuição Social sobre o Aviso Prévio Indenizado (Art. 18, §1º, da Lei 8.036/1990 e art. 1º da LC nº 110/2001) | E50: ='Encargos Sociais'!E38 -> 0.001274074074 | F50: 7.45 | H50: * Nota 2 - No cálculo do percentual, considerou-se 36 dias, correspondendo à metade da duração média dos contratos (2 anos)
C51: D | D51: Aviso Prévio Trabalhado (Art. 488, parágrafo único, CLT) | E51: ='Encargos Sociais'!E39 -> 0.01203703704 | F51: 70.36 | H51: * Nota 3 - Incide sobre a Remuneração + 13º salário (1/12) + Férias (1/12) + Adicional de Férias (1/36) x 50% multa (40% para o empregado e 10% de contribuição social) x 8% FGTS
C52: E | D52: Incidência de GPS, FGTS e outras contribuições sobre o Aviso Prévio Trabalhado | E52: ='Encargos Sociais'!E40 -> 0.004188888889 | F52: 24.48 | H52: * Nota 4 - Os 95% restantes do cálculo, a um prazo médio de contrato de 4 anos. Assim, calcula-se 7 dias para o 1º ano de contrato e mais 3 dias para os 3 anos seguintes.
C53: F | D53: Multa do FGTS e Contribuição Social sobre o Aviso Prévio Trabalhado | E53: ='Encargos Sociais'!E41 -> 0.01146666667 | F53: 67.02
D55: TOTAL DE PREVISÃO PARA RESCISÃO | F55: =SUM(F48:F53) -> 221.92
B57: MÓDULO 4 - CUSTO DE REPOSIÇÃO DO PROFISSIONAL AUSENTE | E57: Percentuais | F57: Valor
B58: Submódulo 4.1 - Ausências Legais
C59: A | D59: Férias (Arts. 129 e 130, inc. I, da CLT) - Calculado no Submódulo 2.1 | E59: 0 | F59: =ROUND(E59*$F$16,2) -> 0 | H59: * Nota 1 - As alíneas “A” a “F” referem-se somente ao custo que será pago ao repositor pelos dias trabalhados quando da necessidade de substituir a mão de obra alocada na prestação do serviço.
C60: B | D60: Ausências Legais (Arts. 131 e 473 da CLT) | E60: ='Encargos Sociais'!E26 -> 0.007936507937 | F60: 46.39 | H60: * Nota 2 - Adotou-se a estimativa do SINAPI de 2 dias por ano.
C61: C | D61: Licença-Paternidade (Art. 7º, XIX, e art. 10, §1º, do ADCT, CF/1988 e Art. 1º, II, da Lei 11.770/2008) | E61: ='Encargos Sociais'!E27 -> 0.0008277777778 | F61: 4.84 | H61: * Nota 3 - Utilizada a proporção de 50% para homens, 5 dias de afastamento, e a probabilidade de um trabalhador requerer a Licença Paternidade em 5,22%, conforme SINAPI (citando dados da PNAD 2015)
C62: D | D62: Ausência por Acidente de Trabalho (Art. 131, III, da CLT) | E62: ='Encargos Sociais'!E28 -> 0.0008541666667 | F62: 4.99 | H62: * Nota 4 - Utilzada a estatística de 1,96% dos contribuintes beneficiados com a emissão do auxílio, conforme Anuário Estatístico da Previdência Social. Afastamento de 15 dias a cargo da empresa.
C63: E | D63: Afastamento Maternidade (Art. 71 da Lei nº 8.213/1991) | E63: ='Encargos Sociais'!E29 -> 0.003292592593 | F63: 19.25 | H63: * Nota 5 - Utilizada a proporção de 50% para mulheres, 180 dias de afastamento, e a probabilidade de uma trabalhadora requerer a Licença Maternidade em 4,91%, conforme SINAPI (citando dados do IBGE 2016)
C64: F | D64: Auxílio Enfermidade - Doença (Art. 59 da Lei nº 8.213/1991) | E64: ='Encargos Sociais'!E30 -> 0.007122222222 | F64: 41.63 | H64: * Nota 6 - Utilizada a estatística de 3,37% dos contribuintes beneficiados com o auxílio, conforme Anuário Estatístico da Previdência Social de 2015 (acrescidos de 2 dias ao ano, para os quais o trabalhador nem requer o benefício da Previdência - conforme SINAPI)
B66: Submódulo 4.2 - Intrajornada
C67: A | D67: Intervalo para repouso ou alimentação | E67: ='Encargos Sociais'!E33 -> 0 | F67: =ROUND(E67*$F$16,2) -> 0
D69: QUADRO-RESUMO DO MÓDULO 4 | F69: Valor
D70: 4.1 - Ausências Legais | E70: =SUM(E59:E64) -> 0.0200332672 | F70: =ROUND(E70*$F$16,2) -> 117.1
D71: 4.2 - Intrajornada | E71: =E67 -> 0 | F71: =ROUND(E71*$F$16,2) -> 0
D73: TOTAL DE PREVISÃO PARA RESCISÃO E INTERVALO INTRAJORNADA | F73: =SUM(F70:F71) -> 117.1
B75: MÓDULO 5 - INSUMOS DIVERSOS | F75: Valor
C76: A | D76: Uniformes - aquisição | F76: =ROUND(HLOOKUP($B$5,Uniformes!K4:DZ6,3)/12,2) -> 0
C77: B | D77: Materiais de consumo relacionados ao posto - aquisição | F77: 0
C78: C | D78: Ferramentas relacionadas ao posto - remuneração da sua depreciação / manutenção | F78: 0
C79: D | D79: Equipamentos relacionados ao posto - remuneração da sua depreciação / manutenção | F79: 0
C80: E | D80: Equipamentos de Proteção Individual - EPI - aquisição | F80: =ROUND(HLOOKUP(B5,EPI!I4:DX6,3)/12,2) -> 0
D82: TOTAL DE INSUMOS DIVERSOS | F82: =SUM(F76:F81) -> 0 | H82: * Nota - Valores mensais por empregado
B84: MÓDULO 6 - CUSTOS INDIRETOS, TRIBUTOS E LUCRO - BDI | E84: Percentuais | F84: Valor
C85: A | D85: Custos Indiretos | E85: ='BDI - Geral'!E7 -> 0.0314
C86: A.1 | D86: Administração Central | E86: ='BDI - Geral'!E8 -> 0.026
C87: A.2 | D87: Seguros, Garantias e Riscos | E87: ='BDI - Geral'!E9 -> 0.0054
C88: B | D88: Lucro | E88: ='BDI - Geral'!E11 -> 0.04
C89: C | D89: Tributos | E89: =SUM(E90:E91) -> 0.124
C90: C.1 | D90: Tributos Federais (COFINS, PIS e CPRB) | E90: ='BDI - Geral'!E19 -> 0.074
C91: C.2 | D91: Tributos Distritais (ISS) | E91: ='BDI - Geral'!E24 -> 0.05 | H91: * Nota - Utilizou-se o indicado pelo Sindicato da Arquitetura e da Engenharia (Sinaenco, 2008, p. 22), que adota um percentual redutor de 20% no cálculo dos custos tributários relativos às contribuições PIS e COFINS
C92: D | D92: Despesas Financeiras | E92: ='BDI - Geral'!E14 -> 0.004861120438
D94: TOTAL DE BDI | E94: ='BDI - Geral'!E27 -> 0.2304 | F94: =E94*E102 -> 2205.142272
D96: QUADRO-RESUMO DO CUSTO MENSAL POR EMPREGADO - SEM O 13º | E96: Valor
D97: Módulo 1 - Composição da Remuneração | E97: =F16 -> 5845.04
D98: Módulo 2 - Encargos e Benefícios Anuais, Mensais e Diários | E98: =F45 -> 3386.87
D99: Módulo 3 - Provisão para Rescisão | E99: =F55 -> 221.92
D100: Módulo 4 - Custo de Reposição do Profissional Ausente | E100: =F73 -> 117.1
D101: Módulo 5 - Insumos Diversos | E101: =F82 -> 0
D102: SUBTOTAL (A+B+C+D+E) | E102: =SUM(E97:E101) -> 9570.93
D103: Módulo 6 - Custos Indiretos, Tributos e Lucro | E103: =F94 -> 2205.142272
D105: TOTAL DO POSTO | E105: =SUM(E102:E103) -> 11776.07227
B107: MÓDULO 7 - DESTAQUE DO MÓDULO 2 - 13º SALÁRIO | E107: Percentuais | F107: Valor
C108: A | D108: 13º Salário | E108: ='Encargos Sociais'!E32 -> 0.08333333333 | F108: =ROUND(E108*F$16,2) -> 487.09
C109: B | D109: Encargos Sociais sobre o 13º Salário - Taxa calculada no SUBMÓDULO 2.2 | E109: =SUM($E$24:$E$32) -> 0.348 | F109: =ROUND(E109*$F$108,2) -> 169.51 | H109: * Nota 1 - Provisiona-se, mensalmente, o proporcional a 1/12 dos valores referentes a gratificação natalina e adicional de férias.
C110: C | D110: BDI sobre o 13º Salário - Taxa calculada no MÓDULO 6 | E110: =E94 -> 0.2304 | F110: =ROUND(E110*($F$108+$F$109),2) -> 151.28
D112: TOTAL DO DESTAQUE DO 13º SALÁRIO | F112: =SUM(F108:F110) -> 807.88
D114: QUADRO-RESUMO DO CUSTO MENSAL POR EMPREGADO | E114: Valor
D115: Custo total - sem o 13º Salário | E115: =E105 -> 11776.07227
D116: Destaque do 13º Salário (valor mensal) | E116: =F112 -> 807.88
D118: TOTAL DO POSTO | E118: =E115+E116 -> 12583.95227

Sheet 5
B2: PLANILHA DE ESTIMATIVA DE CUSTOS
B3: Padrão IN 05/2017 e IN 07/2018 - MPDG
B5: 5 | D5: =HLOOKUP($B$5,'Dados Gerais'!$D$6:$L$22,6) -> DIRETOR DE IMAGENS – 18H | E5: QUANTIDADE | F5: =HLOOKUP($B$5,'Dados Gerais'!$D$6:$L$22,10) -> 21
B6: CCT | D6: =HLOOKUP($B$5,'Dados Gerais'!$D$6:$L$22,16) -> SINRAD/DF x SEAC/DF CCT 2022/2022 N.º DF000077/2022 | E6: DATA-BASE | F6: =HLOOKUP($B$5,'Dados Gerais'!$D$6:$L$22,17) -> 2022-01-01
B8: MÓDULO 1 - COMPOSIÇÃO DA REMUNERAÇÃO | F8: Valor
C9: A | D9: Salário-Base | F9: =HLOOKUP($B$5,'Dados Gerais'!$D$6:$L$22,8) -> 3507.03
C10: B | D10: Adicional de Periculosidade | F10: =HLOOKUP($B$5,'Dados Gerais'!$D$6:$L$39,26) -> 0
C11: C | D11: Adicional de Insalubridade | F11: =HLOOKUP($B$5,'Dados Gerais'!$D$6:$L$39,32) -> 0
C12: D | D12: Adicional Noturno | F12: =HLOOKUP($B$5,'Dados Gerais'!$D$6:$L$52,47) -> 0 | H12: * Nota 1 - O Módulo 1 refere-se ao valor mensal devido ao empregado pela prestação do serviço no período de 12 meses.
C13: E | D13: Adicional de Hora Extra | F13: =HLOOKUP($B$5,'Dados Gerais'!$D$6:$L$69,64) -> 0 | H13: * Nota 2 - O adicional de hora extra no feriado trabalhado foi suprimido pela Lei 13.467/17
C14: F | D14: Outros (especificar) | F14: 0 | H14: * Nota 3 - ART. 7º, § 2º, DA LEI Nº 605/49.Sendo mensalista o obreiro, o adicional noturno pago de forma fixa já é considerado integrado para os efeitos do pagamento do repouso semanal remunerado, nos termos do art. 7º, § 2º, da Lei nº 605/49.
D16: TOTAL DA REMUNERAÇÃO | F16: =SUM(F9:F14) -> 3507.03
B18: MÓDULO 2 - ENCARGOS E BENEFÍCIOS ANUAIS, MENSAIS E DIÁRIOS | E18: Percentuais | F18: Valor
B19: Submódulo 2.1 - 13º Salário, Férias e Adicional de Férias
C20: A | D20: 13º Salário - Calculado no Módulo 7 - Destacado | E20: 0 | F20: =ROUND(E20*F$16,2) -> 0
C21: B | D21: Férias e Adicional de Férias | E21: ='Encargos Sociais'!E25+'Encargos Sociais'!E31 -> 0.0303030303 | F21: =ROUND(E21*F$16,2) -> 106.27 | H21: * Nota 1 - Provisiona-se, mensalmente, o proporcional a 1/12 dos valores referentes a gratificação natalina, férias e adicional de férias.
H22: * Nota 2 - O adicional de férias contido no Submódulo 2.1 corresponde a 1/3 da remuneração que, por sua vez, é dividida por 12 contome Nota 1.
B23: Submódulo 2.2 - Encargos Previdenciários (GPS), Fundo de Garantia por Tempo de Serviço (FGTS) e Outras Contribuições
C24: A | D24: INSS (art. 22, inciso I, Lei nº 8.212/91) | E24: ='Encargos Sociais'!E14 -> 0.2 | F24: =ROUND(E24*($F$16+$F$41+$F$73),2) -> 736.71
C25: B | D25: Salário Educação (art. 3º, inciso I, Decreto nº 87.043/82) | E25: ='Encargos Sociais'!E15 -> 0.025 | F25: 92.09
C26: C | D26: SAT/RAT (art. 22, II, Lei 8.212/91 e Anexo V, Decreto 6.042/07) - Enquadramento 8211-3/00 | E26: ='Encargos Sociais'!E16 -> 0.01 | F26: 36.84
C27: D | D27: SESC ou SESI (art. 30, Lei nº 8.036/90 e art. 1º, Lei 8.154/90) | E27: ='Encargos Sociais'!E17 -> 0.015 | F27: 55.25
C28: E | D28: SENAI ou SENAC (Decreto nº 2.318/86) | E28: ='Encargos Sociais'!E18 -> 0.01 | F28: 36.84
C29: F | D29: SEBRAE (§ 3º, art. 8º, Lei 8.029/90, alterada pela Lei nº 8.154/90) | E29: ='Encargos Sociais'!E19 -> 0.006 | F29: 22.1
C30: G | D30: INCRA (art. 1º, I, Decreto Lei 1.146/70 e Lei 7.787, de 30/06/89) | E30: ='Encargos Sociais'!E20 -> 0.002 | F30: 7.37 | H30: * Nota 1 - Os percentuais dos encargos previdenciários, do FGTS e demais contribuições são estabelecidos por legislação vigente.
C31: H | D31: FGTS (Lei Complementar nº 110/01 e art. 30, Lei nº 8.036/90) | E31: ='Encargos Sociais'!E21 -> 0.08 | F31: 294.68 | H31: * Nota 2 - O SAT, a depender do grau de risco do serviço, irá variar entre 1%, para risco leve, de 2%, para risco médio, e de 3% para risco grave.
C32: I | D32: SECONCI (Convenções Coletivas de Trabalho da construção) | E32: ='Encargos Sociais'!E22 -> 0 | F32: 0 | H32: * Nota 3 - Os percentuais do Submódulo 2.2 incidem sobre o Módulo 1 e o Submódulo 2.1.
B34: Submódulo 2.3 - Benefícios Mensais e Diários
C35: A | D35: Auxílio Transporte | F35: =HLOOKUP($B$5,'Dados Gerais'!$D$6:$L$95,83) -> 0
C36: B | D36: Auxílio Alimentação | F36: =HLOOKUP($B$5,'Dados Gerais'!$D$6:$L$95,90) -> 503.36
C37: C | D37: Assistência Médica e Familiar | F37: =HLOOKUP($B$5,'Dados Gerais'!$D$6:$L$103,98) -> 0
C38: D | D38: Outros (Seguro de vida, auxílio funeral, auxílio odontológico e auxílio creche) | F38: =HLOOKUP($B$5,'Dados Gerais'!$D$6:$L$133,127) -> 221.45 | H38: * Nota 1 - O valor informado deverá ser o custo real do benefício (descontado o valor eventualmente pago pelo empregado).
H39: * Nota 2 - Observar a previsão dos benefícios contidos em Acordos, Convenções e Dissídios Coletivos de Trabalho e o disposto no art. 6º da IN 5/2017
D40: QUADRO-RESUMO DO MÓDULO 2
D41: 2.1 - 13º Salário, Férias e Adicional de Férias - 13º Destacado - Calculado no Módulo 7 | E41: =SUM(E20:E21) -> 0.0303030303 | F41: =F20+F21 -> 106.27
D42: 2.2 - Encargos Previdenciários (GPS), Fundo de Garantia por Tempo de Serviço (FGTS) e Contribuições | E42: =SUM(E24:E32) -> 0.348 | F42: =SUM(F24:F32) -> 1281.88
D43: 2.3 - Benefícios Mensais e Diários | F43: =SUM(F35:F38) -> 724.81
D45: TOTAL DOS ENCARGOS E BENEFÍCIOS | F45: =SUM(F41:F43) -> 2112.96
B47: MÓDULO 3 - PREVISÃO PARA RESCISÃO | E47: Percentuais | F47: Valor
C48: A | D48: Aviso Prévio Indenizado (Art. 7º, inciso XXI, da CF/1988 e arts. 477, 487, §1º, e 491 da CLT) | E48: ='Encargos Sociais'!E36 -> 0.008333333333 | F48: =ROUND(E48*$F$16,2) -> 29.23
C49: B | D49: Incidência do FGTS sobre o Aviso Prévio Indenizado (Súmula 305 TST) | E49: ='Encargos Sociais'!E37 -> 0.0006666666667 | F49: 2.34 | H49: * Nota 1 - Adotou-se os parâmetros do estudo do STF (http://www.stf.jus.br/arquivo/cms/sobrestfestudosci/anexo/encargos_sociais_03102007.pdf), onde 5% do pessoal é demitido pelo empregador no decurso do contrato (para estes, considerou-se o aviso prévio indenizado). Desprezou-se as demissões por justa causa e os pedidos de demissão.
C50: C | D50: Multa do FGTS e Contribuição Social sobre o Aviso Prévio Indenizado (Art. 18, §1º, da Lei 8.036/1990 e art. 1º da LC nº 110/2001) | E50: ='Encargos Sociais'!E38 -> 0.001274074074 | F50: 4.47 | H50: * Nota 2 - No cálculo do percentual, considerou-se 36 dias, correspondendo à metade da duração média dos contratos (2 anos)
C51: D | D51: Aviso Prévio Trabalhado (Art. 488, parágrafo único, CLT) | E51: ='Encargos Sociais'!E39 -> 0.01203703704 | F51: 42.21 | H51: * Nota 3 - Incide sobre a Remuneração + 13º salário (1/12) + Férias (1/12) + Adicional de Férias (1/36) x 50% multa (40% para o empregado e 10% de contribuição social) x 8% FGTS
C52: E | D52: Incidência de GPS, FGTS e outras contribuições sobre o Aviso Prévio Trabalhado | E52: ='Encargos Sociais'!E40 -> 0.004188888889 | F52: 14.69 | H52: * Nota 4 - Os 95% restantes do cálculo, a um prazo médio de contrato de 4 anos. Assim, calcula-se 7 dias para o 1º ano de contrato e mais 3 dias para os 3 anos seguintes.
C53: F | D53: Multa do FGTS e Contribuição Social sobre o Aviso Prévio Trabalhado | E53: ='Encargos Sociais'!E41 -> 0.01146666667 | F53: 40.21
D55: TOTAL DE PREVISÃO PARA RESCISÃO | F55: =SUM(F48:F53) -> 133.15
B57: MÓDULO 4 - CUSTO DE REPOSIÇÃO DO PROFISSIONAL AUSENTE | E57: Percentuais | F57: Valor
B58: Submódulo 4.1 - Ausências Legais
C59: A | D59: Férias (Arts. 129 e 130, inc. I, da CLT) - Calculado no Submódulo 2.1 | E59: 0 | F59: =ROUND(E59*$F$16,2) -> 0 | H59: * Nota 1 - As alíneas “A” a “F” referem-se somente ao custo que será pago ao repositor pelos dias trabalhados quando da necessidade de substituir a mão de obra alocada na prestação do serviço.
C60: B | D60: Ausências Legais (Arts. 131 e 473 da CLT) | E60: ='Encargos Sociais'!E26 -> 0.007936507937 | F60: 27.83 | H60: * Nota 2 - Adotou-se a estimativa do SINAPI de 2 dias por ano.
C61: C | D61: Licença-Paternidade (Art. 7º, XIX, e art. 10, §1º, do ADCT, CF/1988 e Art. 1º, II, da Lei 11.770/2008) | E61: ='Encargos Sociais'!E27 -> 0.0008277777778 | F61: 2.9 | H61: * Nota 3 - Utilizada a proporção de 50% para homens, 5 dias de afastamento, e a probabilidade de um trabalhador requerer a Licença Paternidade em 5,22%, conforme SINAPI (citando dados da PNAD 2015)
C62: D | D62: Ausência por Acidente de Trabalho (Art. 131, III, da CLT) | E62: ='Encargos Sociais'!E28 -> 0.0008541666667 | F62: 3 | H62: * Nota 4 - Utilzada a estatística de 1,96% dos contribuintes beneficiados com a emissão do auxílio, conforme Anuário Estatístico da Previdência Social. Afastamento de 15 dias a cargo da empresa.
C63: E | D63: Afastamento Maternidade (Art. 71 da Lei nº 8.213/1991) | E63: ='Encargos Sociais'!E29 -> 0.003292592593 | F63: 11.55 | H63: * Nota 5 - Utilizada a proporção de 50% para mulheres, 180 dias de afastamento, e a probabilidade de uma trabalhadora requerer a Licença Maternidade em 4,91%, conforme SINAPI (citando dados do IBGE 2016)
C64: F | D64: Auxílio Enfermidade - Doença (Art. 59 da Lei nº 8.213/1991) | E64: ='Encargos Sociais'!E30 -> 0.007122222222 | F64: 24.98 | H64: * Nota 6 - Utilizada a estatística de 3,37% dos contribuintes beneficiados com o auxílio, conforme Anuário Estatístico da Previdência Social de 2015 (acrescidos de 2 dias ao ano, para os quais o trabalhador nem requer o benefício da Previdência - conforme SINAPI)
B66: Submódulo 4.2 - Intrajornada
C67: A | D67: Intervalo para repouso ou alimentação | E67: ='Encargos Sociais'!E33 -> 0 | F67: =ROUND(E67*$F$16,2) -> 0
D69: QUADRO-RESUMO DO MÓDULO 4 | F69: Valor
D70: 4.1 - Ausências Legais | E70: =SUM(E59:E64) -> 0.0200332672 | F70: =ROUND(E70*$F$16,2) -> 70.26
D71: 4.2 - Intrajornada | E71: =E67 -> 0 | F71: =ROUND(E71*$F$16,2) -> 0
D73: TOTAL DE PREVISÃO PARA RESCISÃO E INTERVALO INTRAJORNADA | F73: =SUM(F70:F71) -> 70.26
B75: MÓDULO 5 - INSUMOS DIVERSOS | F75: Valor
C76: A | D76: Uniformes - aquisição | F76: =ROUND(HLOOKUP($B$5,Uniformes!K4:DZ6,3)/12,2) -> 0
C77: B | D77: Materiais de consumo relacionados ao posto - aquisição | F77: 0
C78: C | D78: Ferramentas relacionadas ao posto - remuneração da sua depreciação / manutenção | F78: 0
C79: D | D79: Equipamentos relacionados ao posto - remuneração da sua depreciação / manutenção | F79: 0
C80: E | D80: Equipamentos de Proteção Individual - EPI - aquisição | F80: =ROUND(HLOOKUP(B5,EPI!I4:DX6,3)/12,2) -> 0
D82: TOTAL DE INSUMOS DIVERSOS | F82: =SUM(F76:F81) -> 0 | H82: * Nota - Valores mensais por empregado
B84: MÓDULO 6 - CUSTOS INDIRETOS, TRIBUTOS E LUCRO - BDI | E84: Percentuais | F84: Valor
C85: A | D85: Custos Indiretos | E85: ='BDI - Geral'!E7 -> 0.0314
C86: A.1 | D86: Administração Central | E86: ='BDI - Geral'!E8 -> 0.026
C87: A.2 | D87: Seguros, Garantias e Riscos | E87: ='BDI - Geral'!E9 -> 0.0054
C88: B | D88: Lucro | E88: ='BDI - Geral'!E11 -> 0.04
C89: C | D89: Tributos | E89: =SUM(E90:E91) -> 0.124
C90: C.1 | D90: Tributos Federais (COFINS, PIS e CPRB) | E90: ='BDI - Geral'!E19 -> 0.074
C91: C.2 | D91: Tributos Distritais (ISS) | E91: ='BDI - Geral'!E24 -> 0.05 | H91: * Nota - Utilizou-se o indicado pelo Sindicato da Arquitetura e da Engenharia (Sinaenco, 2008, p. 22), que adota um percentual redutor de 20% no cálculo dos custos tributários relativos às contribuições PIS e COFINS
C92: D | D92: Despesas Financeiras | E92: ='BDI - Geral'!E14 -> 0.004861120438
D94: TOTAL DE BDI | E94: ='BDI - Geral'!E27 -> 0.2304 | F94: =E94*E102 -> 1341.71136
D96: QUADRO-RESUMO DO CUSTO MENSAL POR EMPREGADO - SEM O 13º | E96: Valor
D97: Módulo 1 - Composição da Remuneração | E97: =F16 -> 3507.03
D98: Módulo 2 - Encargos e Benefícios Anuais, Mensais e Diários | E98: =F45 -> 2112.96
D99: Módulo 3 - Provisão para Rescisão | E99: =F55 -> 133.15
D100: Módulo 4 - Custo de Reposição do Profissional Ausente | E100: =F73 -> 70.26
D101: Módulo 5 - Insumos Diversos | E101: =F82 -> 0
D102: SUBTOTAL (A+B+C+D+E) | E102: =SUM(E97:E101) -> 5823.4
D103: Módulo 6 - Custos Indiretos, Tributos e Lucro | E103: =F94 -> 1341.71136
D105: TOTAL DO POSTO | E105: =SUM(E102:E103) -> 7165.11136
B107: MÓDULO 7 - DESTAQUE DO MÓDULO 2 - 13º SALÁRIO | E107: Percentuais | F107: Valor
C108: A | D108: 13º Salário | E108: ='Encargos Sociais'!E32 -> 0.08333333333 | F108: =ROUND(E108*F$16,2) -> 292.25
C109: B | D109: Encargos Sociais sobre o 13º Salário - Taxa calculada no SUBMÓDULO 2.2 | E109: =SUM($E$24:$E$32) -> 0.348 | F109: =ROUND(E109*$F$108,2) -> 101.7 | H109: * Nota 1 - Provisiona-se, mensalmente, o proporcional a 1/12 dos valores referentes a gratificação natalina e adicional de férias.
C110: C | D110: BDI sobre o 13º Salário - Taxa calculada no MÓDULO 6 | E110: =E94 -> 0.2304 | F110: =ROUND(E110*($F$108+$F$109),2) -> 90.77
D112: TOTAL DO DESTAQUE DO 13º SALÁRIO | F112: =SUM(F108:F110) -> 484.72
D114: QUADRO-RESUMO DO CUSTO MENSAL POR EMPREGADO | E114: Valor
D115: Custo total - sem o 13º Salário | E115: =E105 -> 7165.11136
D116: Destaque do 13º Salário (valor mensal) | E116: =F112 -> 484.72
D118: TOTAL DO POSTO | E118: =E115+E116 -> 7649.83136

Sheet 6
B2: PLANILHA DE ESTIMATIVA DE CUSTOS
B3: Padrão IN 05/2017 e IN 07/2018 - MPDG
B5: 6 | D5: =HLOOKUP($B$5,'Dados Gerais'!$D$6:$L$22,6) -> TÉCNICO DE SISTEMAS AUDIOVISUAIS – especialidade Sistemas e Vídeo | E5: QUANTIDADE | F5: =HLOOKUP($B$5,'Dados Gerais'!$D$6:$L$22,10) -> 4
B6: CCT | D6: =HLOOKUP($B$5,'Dados Gerais'!$D$6:$L$22,16) -> SINRAD/DF x SEAC/DF CCT 2022/2022 N.º DF000077/2022 | E6: DATA-BASE | F6: =HLOOKUP($B$5,'Dados Gerais'!$D$6:$L$22,17) -> 2022-01-01
B8: MÓDULO 1 - COMPOSIÇÃO DA REMUNERAÇÃO | F8: Valor
C9: A | D9: Salário-Base | F9: =HLOOKUP($B$5,'Dados Gerais'!$D$6:$L$22,8) -> 4996.54
C10: B | D10: Adicional de Periculosidade | F10: =HLOOKUP($B$5,'Dados Gerais'!$D$6:$L$39,26) -> 0
C11: C | D11: Adicional de Insalubridade | F11: =HLOOKUP($B$5,'Dados Gerais'!$D$6:$L$39,32) -> 0
C12: D | D12: Adicional Noturno | F12: =HLOOKUP($B$5,'Dados Gerais'!$D$6:$L$52,47) -> 0 | H12: * Nota 1 - O Módulo 1 refere-se ao valor mensal devido ao empregado pela prestação do serviço no período de 12 meses.
C13: E | D13: Adicional de Hora Extra | F13: =HLOOKUP($B$5,'Dados Gerais'!$D$6:$L$69,64) -> 0 | H13: * Nota 2 - O adicional de hora extra no feriado trabalhado foi suprimido pela Lei 13.467/17
C14: F | D14: Outros (especificar) | F14: 0 | H14: * Nota 3 - ART. 7º, § 2º, DA LEI Nº 605/49.Sendo mensalista o obreiro, o adicional noturno pago de forma fixa já é considerado integrado para os efeitos do pagamento do repouso semanal remunerado, nos termos do art. 7º, § 2º, da Lei nº 605/49.
D16: TOTAL DA REMUNERAÇÃO | F16: =SUM(F9:F14) -> 4996.54
B18: MÓDULO 2 - ENCARGOS E BENEFÍCIOS ANUAIS, MENSAIS E DIÁRIOS | E18: Percentuais | F18: Valor
B19: Submódulo 2.1 - 13º Salário, Férias e Adicional de Férias
C20: A | D20: 13º Salário - Calculado no Módulo 7 - Destacado | E20: 0 | F20: =ROUND(E20*F$16,2) -> 0
C21: B | D21: Férias e Adicional de Férias | E21: ='Encargos Sociais'!E25+'Encargos Sociais'!E31 -> 0.0303030303 | F21: =ROUND(E21*F$16,2) -> 151.41 | H21: * Nota 1 - Provisiona-se, mensalmente, o proporcional a 1/12 dos valores referentes a gratificação natalina, férias e adicional de férias.
H22: * Nota 2 - O adicional de férias contido no Submódulo 2.1 corresponde a 1/3 da remuneração que, por sua vez, é dividida por 12 contome Nota 1.
B23: Submódulo 2.2 - Encargos Previdenciários (GPS), Fundo de Garantia por Tempo de Serviço (FGTS) e Outras Contribuições
C24: A | D24: INSS (art. 22, inciso I, Lei nº 8.212/91) | E24: ='Encargos Sociais'!E14 -> 0.2 | F24: =ROUND(E24*($F$16+$F$41+$F$73),2) -> 1049.61
C25: B | D25: Salário Educação (art. 3º, inciso I, Decreto nº 87.043/82) | E25: ='Encargos Sociais'!E15 -> 0.025 | F25: 131.2
C26: C | D26: SAT/RAT (art. 22, II, Lei 8.212/91 e Anexo V, Decreto 6.042/07) - Enquadramento 8211-3/00 | E26: ='Encargos Sociais'!E16 -> 0.01 | F26: 52.48
C27: D | D27: SESC ou SESI (art. 30, Lei nº 8.036/90 e art. 1º, Lei 8.154/90) | E27: ='Encargos Sociais'!E17 -> 0.015 | F27: 78.72
C28: E | D28: SENAI ou SENAC (Decreto nº 2.318/86) | E28: ='Encargos Sociais'!E18 -> 0.01 | F28: 52.48
C29: F | D29: SEBRAE (§ 3º, art. 8º, Lei 8.029/90, alterada pela Lei nº 8.154/90) | E29: ='Encargos Sociais'!E19 -> 0.006 | F29: 31.49
C30: G | D30: INCRA (art. 1º, I, Decreto Lei 1.146/70 e Lei 7.787, de 30/06/89) | E30: ='Encargos Sociais'!E20 -> 0.002 | F30: 10.5 | H30: * Nota 1 - Os percentuais dos encargos previdenciários, do FGTS e demais contribuições são estabelecidos por legislação vigente.
C31: H | D31: FGTS (Lei Complementar nº 110/01 e art. 30, Lei nº 8.036/90) | E31: ='Encargos Sociais'!E21 -> 0.08 | F31: 419.84 | H31: * Nota 2 - O SAT, a depender do grau de risco do serviço, irá variar entre 1%, para risco leve, de 2%, para risco médio, e de 3% para risco grave.
C32: I | D32: SECONCI (Convenções Coletivas de Trabalho da construção) | E32: ='Encargos Sociais'!E22 -> 0 | F32: 0 | H32: * Nota 3 - Os percentuais do Submódulo 2.2 incidem sobre o Módulo 1 e o Submódulo 2.1.
B34: Submódulo 2.3 - Benefícios Mensais e Diários
C35: A | D35: Auxílio Transporte | F35: =HLOOKUP($B$5,'Dados Gerais'!$D$6:$L$95,83) -> 2.75
C36: B | D36: Auxílio Alimentação | F36: =HLOOKUP($B$5,'Dados Gerais'!$D$6:$L$95,90) -> 851.84
C37: C | D37: Assistência Médica e Familiar | F37: =HLOOKUP($B$5,'Dados Gerais'!$D$6:$L$103,98) -> 0
C38: D | D38: Outros (Seguro de vida, auxílio funeral, auxílio odontológico e auxílio creche) | F38: =HLOOKUP($B$5,'Dados Gerais'!$D$6:$L$133,127) -> 221.45 | H38: * Nota 1 - O valor informado deverá ser o custo real do benefício (descontado o valor eventualmente pago pelo empregado).
H39: * Nota 2 - Observar a previsão dos benefícios contidos em Acordos, Convenções e Dissídios Coletivos de Trabalho e o disposto no art. 6º da IN 5/2017
D40: QUADRO-RESUMO DO MÓDULO 2
D41: 2.1 - 13º Salário, Férias e Adicional de Férias - 13º Destacado - Calculado no Módulo 7 | E41: =SUM(E20:E21) -> 0.0303030303 | F41: =F20+F21 -> 151.41
D42: 2.2 - Encargos Previdenciários (GPS), Fundo de Garantia por Tempo de Serviço (FGTS) e Contribuições | E42: =SUM(E24:E32) -> 0.348 | F42: =SUM(F24:F32) -> 1826.32
D43: 2.3 - Benefícios Mensais e Diários | F43: =SUM(F35:F38) -> 1076.04
D45: TOTAL DOS ENCARGOS E BENEFÍCIOS | F45: =SUM(F41:F43) -> 3053.77
B47: MÓDULO 3 - PREVISÃO PARA RESCISÃO | E47: Percentuais | F47: Valor
C48: A | D48: Aviso Prévio Indenizado (Art. 7º, inciso XXI, da CF/1988 e arts. 477, 487, §1º, e 491 da CLT) | E48: ='Encargos Sociais'!E36 -> 0.008333333333 | F48: =ROUND(E48*$F$16,2) -> 41.64
C49: B | D49: Incidência do FGTS sobre o Aviso Prévio Indenizado (Súmula 305 TST) | E49: ='Encargos Sociais'!E37 -> 0.0006666666667 | F49: 3.33 | H49: * Nota 1 - Adotou-se os parâmetros do estudo do STF (http://www.stf.jus.br/arquivo/cms/sobrestfestudosci/anexo/encargos_sociais_03102007.pdf), onde 5% do pessoal é demitido pelo empregador no decurso do contrato (para estes, considerou-se o aviso prévio indenizado). Desprezou-se as demissões por justa causa e os pedidos de demissão.
C50: C | D50: Multa do FGTS e Contribuição Social sobre o Aviso Prévio Indenizado (Art. 18, §1º, da Lei 8.036/1990 e art. 1º da LC nº 110/2001) | E50: ='Encargos Sociais'!E38 -> 0.001274074074 | F50: 6.37 | H50: * Nota 2 - No cálculo do percentual, considerou-se 36 dias, correspondendo à metade da duração média dos contratos (2 anos)
C51: D | D51: Aviso Prévio Trabalhado (Art. 488, parágrafo único, CLT) | E51: ='Encargos Sociais'!E39 -> 0.01203703704 | F51: 60.14 | H51: * Nota 3 - Incide sobre a Remuneração + 13º salário (1/12) + Férias (1/12) + Adicional de Férias (1/36) x 50% multa (40% para o empregado e 10% de contribuição social) x 8% FGTS
C52: E | D52: Incidência de GPS, FGTS e outras contribuições sobre o Aviso Prévio Trabalhado | E52: ='Encargos Sociais'!E40 -> 0.004188888889 | F52: 20.93 | H52: * Nota 4 - Os 95% restantes do cálculo, a um prazo médio de contrato de 4 anos. Assim, calcula-se 7 dias para o 1º ano de contrato e mais 3 dias para os 3 anos seguintes.
C53: F | D53: Multa do FGTS e Contribuição Social sobre o Aviso Prévio Trabalhado | E53: ='Encargos Sociais'!E41 -> 0.01146666667 | F53: 57.29
D55: TOTAL DE PREVISÃO PARA RESCISÃO | F55: =SUM(F48:F53) -> 189.7
B57: MÓDULO 4 - CUSTO DE REPOSIÇÃO DO PROFISSIONAL AUSENTE | E57: Percentuais | F57: Valor
B58: Submódulo 4.1 - Ausências Legais
C59: A | D59: Férias (Arts. 129 e 130, inc. I, da CLT) - Calculado no Submódulo 2.1 | E59: 0 | F59: =ROUND(E59*$F$16,2) -> 0 | H59: * Nota 1 - As alíneas “A” a “F” referem-se somente ao custo que será pago ao repositor pelos dias trabalhados quando da necessidade de substituir a mão de obra alocada na prestação do serviço.
C60: B | D60: Ausências Legais (Arts. 131 e 473 da CLT) | E60: ='Encargos Sociais'!E26 -> 0.007936507937 | F60: 39.66 | H60: * Nota 2 - Adotou-se a estimativa do SINAPI de 2 dias por ano.
C61: C | D61: Licença-Paternidade (Art. 7º, XIX, e art. 10, §1º, do ADCT, CF/1988 e Art. 1º, II, da Lei 11.770/2008) | E61: ='Encargos Sociais'!E27 -> 0.0008277777778 | F61: 4.14 | H61: * Nota 3 - Utilizada a proporção de 50% para homens, 5 dias de afastamento, e a probabilidade de um trabalhador requerer a Licença Paternidade em 5,22%, conforme SINAPI (citando dados da PNAD 2015)
C62: D | D62: Ausência por Acidente de Trabalho (Art. 131, III, da CLT) | E62: ='Encargos Sociais'!E28 -> 0.0008541666667 | F62: 4.27 | H62: * Nota 4 - Utilzada a estatística de 1,96% dos contribuintes beneficiados com a emissão do auxílio, conforme Anuário Estatístico da Previdência Social. Afastamento de 15 dias a cargo da empresa.
C63: E | D63: Afastamento Maternidade (Art. 71 da Lei nº 8.213/1991) | E63: ='Encargos Sociais'!E29 -> 0.003292592593 | F63: 16.45 | H63: * Nota 5 - Utilizada a proporção de 50% para mulheres, 180 dias de afastamento, e a probabilidade de uma trabalhadora requerer a Licença Maternidade em 4,91%, conforme SINAPI (citando dados do IBGE 2016)
C64: F | D64: Auxílio Enfermidade - Doença (Art. 59 da Lei nº 8.213/1991) | E64: ='Encargos Sociais'!E30 -> 0.007122222222 | F64: 35.59 | H64: * Nota 6 - Utilizada a estatística de 3,37% dos contribuintes beneficiados com o auxílio, conforme Anuário Estatístico da Previdência Social de 2015 (acrescidos de 2 dias ao ano, para os quais o trabalhador nem requer o benefício da Previdência - conforme SINAPI)
B66: Submódulo 4.2 - Intrajornada
C67: A | D67: Intervalo para repouso ou alimentação | E67: ='Encargos Sociais'!E33 -> 0 | F67: =ROUND(E67*$F$16,2) -> 0
D69: QUADRO-RESUMO DO MÓDULO 4 | F69: Valor
D70: 4.1 - Ausências Legais | E70: =SUM(E59:E64) -> 0.0200332672 | F70: =ROUND(E70*$F$16,2) -> 100.1
D71: 4.2 - Intrajornada | E71: =E67 -> 0 | F71: =ROUND(E71*$F$16,2) -> 0
D73: TOTAL DE PREVISÃO PARA RESCISÃO E INTERVALO INTRAJORNADA | F73: =SUM(F70:F71) -> 100.1
B75: MÓDULO 5 - INSUMOS DIVERSOS | F75: Valor
C76: A | D76: Uniformes - aquisição | F76: =ROUND(HLOOKUP($B$5,Uniformes!K4:DZ6,3)/12,2) -> 0
C77: B | D77: Materiais de consumo relacionados ao posto - aquisição | F77: 0
C78: C | D78: Ferramentas relacionadas ao posto - remuneração da sua depreciação / manutenção | F78: 0
C79: D | D79: Equipamentos relacionados ao posto - remuneração da sua depreciação / manutenção | F79: 0
C80: E | D80: Equipamentos de Proteção Individual - EPI - aquisição | F80: =ROUND(HLOOKUP(B5,EPI!I4:DX6,3)/12,2) -> 0
D82: TOTAL DE INSUMOS DIVERSOS | F82: =SUM(F76:F81) -> 0 | H82: * Nota - Valores mensais por empregado
B84: MÓDULO 6 - CUSTOS INDIRETOS, TRIBUTOS E LUCRO - BDI | E84: Percentuais | F84: Valor
C85: A | D85: Custos Indiretos | E85: ='BDI - Geral'!E7 -> 0.0314
C86: A.1 | D86: Administração Central | E86: ='BDI - Geral'!E8 -> 0.026
C87: A.2 | D87: Seguros, Garantias e Riscos | E87: ='BDI - Geral'!E9 -> 0.0054
C88: B | D88: Lucro | E88: ='BDI - Geral'!E11 -> 0.04
C89: C | D89: Tributos | E89: =SUM(E90:E91) -> 0.124
C90: C.1 | D90: Tributos Federais (COFINS, PIS e CPRB) | E90: ='BDI - Geral'!E19 -> 0.074
C91: C.2 | D91: Tributos Distritais (ISS) | E91: ='BDI - Geral'!E24 -> 0.05 | H91: * Nota - Utilizou-se o indicado pelo Sindicato da Arquitetura e da Engenharia (Sinaenco, 2008, p. 22), que adota um percentual redutor de 20% no cálculo dos custos tributários relativos às contribuições PIS e COFINS
C92: D | D92: Despesas Financeiras | E92: ='BDI - Geral'!E14 -> 0.004861120438
D94: TOTAL DE BDI | E94: ='BDI - Geral'!E27 -> 0.2304 | F94: =E94*E102 -> 1921.561344
D96: QUADRO-RESUMO DO CUSTO MENSAL POR EMPREGADO - SEM O 13º | E96: Valor
D97: Módulo 1 - Composição da Remuneração | E97: =F16 -> 4996.54
D98: Módulo 2 - Encargos e Benefícios Anuais, Mensais e Diários | E98: =F45 -> 3053.77
D99: Módulo 3 - Provisão para Rescisão | E99: =F55 -> 189.7
D100: Módulo 4 - Custo de Reposição do Profissional Ausente | E100: =F73 -> 100.1
D101: Módulo 5 - Insumos Diversos | E101: =F82 -> 0
D102: SUBTOTAL (A+B+C+D+E) | E102: =SUM(E97:E101) -> 8340.11
D103: Módulo 6 - Custos Indiretos, Tributos e Lucro | E103: =F94 -> 1921.561344
D105: TOTAL DO POSTO | E105: =SUM(E102:E103) -> 10261.67134
B107: MÓDULO 7 - DESTAQUE DO MÓDULO 2 - 13º SALÁRIO | E107: Percentuais | F107: Valor
C108: A | D108: 13º Salário | E108: ='Encargos Sociais'!E32 -> 0.08333333333 | F108: =ROUND(E108*F$16,2) -> 416.38
C109: B | D109: Encargos Sociais sobre o 13º Salário - Taxa calculada no SUBMÓDULO 2.2 | E109: =SUM($E$24:$E$32) -> 0.348 | F109: =ROUND(E109*$F$108,2) -> 144.9 | H109: * Nota 1 - Provisiona-se, mensalmente, o proporcional a 1/12 dos valores referentes a gratificação natalina e adicional de férias.
C110: C | D110: BDI sobre o 13º Salário - Taxa calculada no MÓDULO 6 | E110: =E94 -> 0.2304 | F110: =ROUND(E110*($F$108+$F$109),2) -> 129.32
D112: TOTAL DO DESTAQUE DO 13º SALÁRIO | F112: =SUM(F108:F110) -> 690.6
D114: QUADRO-RESUMO DO CUSTO MENSAL POR EMPREGADO | E114: Valor
D115: Custo total - sem o 13º Salário | E115: =E105 -> 10261.67134
D116: Destaque do 13º Salário (valor mensal) | E116: =F112 -> 690.6
D118: TOTAL DO POSTO | E118: =E115+E116 -> 10952.27134

Sheet 7
B2: PLANILHA DE ESTIMATIVA DE CUSTOS
B3: Padrão IN 05/2017 e IN 07/2018 - MPDG
B5: 7 | D5: =HLOOKUP($B$5,'Dados Gerais'!$D$6:$L$22,6) -> OPERADOR DE MÍDIA AUDIOVISUAL – 30H | E5: QUANTIDADE | F5: =HLOOKUP($B$5,'Dados Gerais'!$D$6:$L$22,10) -> 34
B6: CCT | D6: =HLOOKUP($B$5,'Dados Gerais'!$D$6:$L$22,16) -> SINRAD/DF x SEAC/DF CCT 2022/2022 N.º DF000077/2022 | E6: DATA-BASE | F6: =HLOOKUP($B$5,'Dados Gerais'!$D$6:$L$22,17) -> 2022-01-01
B8: MÓDULO 1 - COMPOSIÇÃO DA REMUNERAÇÃO | F8: Valor
C9: A | D9: Salário-Base | F9: =HLOOKUP($B$5,'Dados Gerais'!$D$6:$L$22,8) -> 4856.02
C10: B | D10: Adicional de Periculosidade | F10: =HLOOKUP($B$5,'Dados Gerais'!$D$6:$L$39,26) -> 0
C11: C | D11: Adicional de Insalubridade | F11: =HLOOKUP($B$5,'Dados Gerais'!$D$6:$L$39,32) -> 0
C12: D | D12: Adicional Noturno | F12: =HLOOKUP($B$5,'Dados Gerais'!$D$6:$L$52,47) -> 0 | H12: * Nota 1 - O Módulo 1 refere-se ao valor mensal devido ao empregado pela prestação do serviço no período de 12 meses.
C13: E | D13: Adicional de Hora Extra | F13: =HLOOKUP($B$5,'Dados Gerais'!$D$6:$L$69,64) -> 0 | H13: * Nota 2 - O adicional de hora extra no feriado trabalhado foi suprimido pela Lei 13.467/17
C14: F | D14: Outros (especificar) | F14: 0 | H14: * Nota 3 - ART. 7º, § 2º, DA LEI Nº 605/49.Sendo mensalista o obreiro, o adicional noturno pago de forma fixa já é considerado integrado para os efeitos do pagamento do repouso semanal remunerado, nos termos do art. 7º, § 2º, da Lei nº 605/49.
D16: TOTAL DA REMUNERAÇÃO | F16: =SUM(F9:F14) -> 4856.02
B18: MÓDULO 2 - ENCARGOS E BENEFÍCIOS ANUAIS, MENSAIS E DIÁRIOS | E18: Percentuais | F18: Valor
B19: Submódulo 2.1 - 13º Salário, Férias e Adicional de Férias
C20: A | D20: 13º Salário - Calculado no Módulo 7 - Destacado | E20: 0 | F20: =ROUND(E20*F$16,2) -> 0
C21: B | D21: Férias e Adicional de Férias | E21: ='Encargos Sociais'!E25+'Encargos Sociais'!E31 -> 0.0303030303 | F21: =ROUND(E21*F$16,2) -> 147.15 | H21: * Nota 1 - Provisiona-se, mensalmente, o proporcional a 1/12 dos valores referentes a gratificação natalina, férias e adicional de férias.
H22: * Nota 2 - O adicional de férias contido no Submódulo 2.1 corresponde a 1/3 da remuneração que, por sua vez, é dividida por 12 contome Nota 1.
B23: Submódulo 2.2 - Encargos Previdenciários (GPS), Fundo de Garantia por Tempo de Serviço (FGTS) e Outras Contribuições
C24: A | D24: INSS (art. 22, inciso I, Lei nº 8.212/91) | E24: ='Encargos Sociais'!E14 -> 0.2 | F24: =ROUND(E24*($F$16+$F$41+$F$73),2) -> 1020.09
C25: B | D25: Salário Educação (art. 3º, inciso I, Decreto nº 87.043/82) | E25: ='Encargos Sociais'!E15 -> 0.025 | F25: 127.51
C26: C | D26: SAT/RAT (art. 22, II, Lei 8.212/91 e Anexo V, Decreto 6.042/07) - Enquadramento 8211-3/00 | E26: ='Encargos Sociais'!E16 -> 0.01 | F26: 51
C27: D | D27: SESC ou SESI (art. 30, Lei nº 8.036/90 e art. 1º, Lei 8.154/90) | E27: ='Encargos Sociais'!E17 -> 0.015 | F27: 76.51
C28: E | D28: SENAI ou SENAC (Decreto nº 2.318/86) | E28: ='Encargos Sociais'!E18 -> 0.01 | F28: 51
C29: F | D29: SEBRAE (§ 3º, art. 8º, Lei 8.029/90, alterada pela Lei nº 8.154/90) | E29: ='Encargos Sociais'!E19 -> 0.006 | F29: 30.6
C30: G | D30: INCRA (art. 1º, I, Decreto Lei 1.146/70 e Lei 7.787, de 30/06/89) | E30: ='Encargos Sociais'!E20 -> 0.002 | F30: 10.2 | H30: * Nota 1 - Os percentuais dos encargos previdenciários, do FGTS e demais contribuições são estabelecidos por legislação vigente.
C31: H | D31: FGTS (Lei Complementar nº 110/01 e art. 30, Lei nº 8.036/90) | E31: ='Encargos Sociais'!E21 -> 0.08 | F31: 408.04 | H31: * Nota 2 - O SAT, a depender do grau de risco do serviço, irá variar entre 1%, para risco leve, de 2%, para risco médio, e de 3% para risco grave.
C32: I | D32: SECONCI (Convenções Coletivas de Trabalho da construção) | E32: ='Encargos Sociais'!E22 -> 0 | F32: 0 | H32: * Nota 3 - Os percentuais do Submódulo 2.2 incidem sobre o Módulo 1 e o Submódulo 2.1.
B34: Submódulo 2.3 - Benefícios Mensais e Diários
C35: A | D35: Auxílio Transporte | F35: =HLOOKUP($B$5,'Dados Gerais'!$D$6:$L$95,83) -> 11.18
C36: B | D36: Auxílio Alimentação | F36: =HLOOKUP($B$5,'Dados Gerais'!$D$6:$L$95,90) -> 851.84
C37: C | D37: Assistência Médica e Familiar | F37: =HLOOKUP($B$5,'Dados Gerais'!$D$6:$L$103,98) -> 0
C38: D | D38: Outros (Seguro de vida, auxílio funeral, auxílio odontológico e auxílio creche) | F38: =HLOOKUP($B$5,'Dados Gerais'!$D$6:$L$133,127) -> 221.45 | H38: * Nota 1 - O valor informado deverá ser o custo real do benefício (descontado o valor eventualmente pago pelo empregado).
H39: * Nota 2 - Observar a previsão dos benefícios contidos em Acordos, Convenções e Dissídios Coletivos de Trabalho e o disposto no art. 6º da IN 5/2017
D40: QUADRO-RESUMO DO MÓDULO 2
D41: 2.1 - 13º Salário, Férias e Adicional de Férias - 13º Destacado - Calculado no Módulo 7 | E41: =SUM(E20:E21) -> 0.0303030303 | F41: =F20+F21 -> 147.15
D42: 2.2 - Encargos Previdenciários (GPS), Fundo de Garantia por Tempo de Serviço (FGTS) e Contribuições | E42: =SUM(E24:E32) -> 0.348 | F42: =SUM(F24:F32) -> 1774.95
D43: 2.3 - Benefícios Mensais e Diários | F43: =SUM(F35:F38) -> 1084.47
D45: TOTAL DOS ENCARGOS E BENEFÍCIOS | F45: =SUM(F41:F43) -> 3006.57
B47: MÓDULO 3 - PREVISÃO PARA RESCISÃO | E47: Percentuais | F47: Valor
C48: A | D48: Aviso Prévio Indenizado (Art. 7º, inciso XXI, da CF/1988 e arts. 477, 487, §1º, e 491 da CLT) | E48: ='Encargos Sociais'!E36 -> 0.008333333333 | F48: =ROUND(E48*$F$16,2) -> 40.47
C49: B | D49: Incidência do FGTS sobre o Aviso Prévio Indenizado (Súmula 305 TST) | E49: ='Encargos Sociais'!E37 -> 0.0006666666667 | F49: 3.24 | H49: * Nota 1 - Adotou-se os parâmetros do estudo do STF (http://www.stf.jus.br/arquivo/cms/sobrestfestudosci/anexo/encargos_sociais_03102007.pdf), onde 5% do pessoal é demitido pelo empregador no decurso do contrato (para estes, considerou-se o aviso prévio indenizado). Desprezou-se as demissões por justa causa e os pedidos de demissão.
C50: C | D50: Multa do FGTS e Contribuição Social sobre o Aviso Prévio Indenizado (Art. 18, §1º, da Lei 8.036/1990 e art. 1º da LC nº 110/2001) | E50: ='Encargos Sociais'!E38 -> 0.001274074074 | F50: 6.19 | H50: * Nota 2 - No cálculo do percentual, considerou-se 36 dias, correspondendo à metade da duração média dos contratos (2 anos)
C51: D | D51: Aviso Prévio Trabalhado (Art. 488, parágrafo único, CLT) | E51: ='Encargos Sociais'!E39 -> 0.01203703704 | F51: 58.45 | H51: * Nota 3 - Incide sobre a Remuneração + 13º salário (1/12) + Férias (1/12) + Adicional de Férias (1/36) x 50% multa (40% para o empregado e 10% de contribuição social) x 8% FGTS
C52: E | D52: Incidência de GPS, FGTS e outras contribuições sobre o Aviso Prévio Trabalhado | E52: ='Encargos Sociais'!E40 -> 0.004188888889 | F52: 20.34 | H52: * Nota 4 - Os 95% restantes do cálculo, a um prazo médio de contrato de 4 anos. Assim, calcula-se 7 dias para o 1º ano de contrato e mais 3 dias para os 3 anos seguintes.
C53: F | D53: Multa do FGTS e Contribuição Social sobre o Aviso Prévio Trabalhado | E53: ='Encargos Sociais'!E41 -> 0.01146666667 | F53: 55.68
D55: TOTAL DE PREVISÃO PARA RESCISÃO | F55: =SUM(F48:F53) -> 184.37
B57: MÓDULO 4 - CUSTO DE REPOSIÇÃO DO PROFISSIONAL AUSENTE | E57: Percentuais | F57: Valor
B58: Submódulo 4.1 - Ausências Legais
C59: A | D59: Férias (Arts. 129 e 130, inc. I, da CLT) - Calculado no Submódulo 2.1 | E59: 0 | F59: =ROUND(E59*$F$16,2) -> 0 | H59: * Nota 1 - As alíneas “A” a “F” referem-se somente ao custo que será pago ao repositor pelos dias trabalhados quando da necessidade de substituir a mão de obra alocada na prestação do serviço.
C60: B | D60: Ausências Legais (Arts. 131 e 473 da CLT) | E60: ='Encargos Sociais'!E26 -> 0.007936507937 | F60: 38.54 | H60: * Nota 2 - Adotou-se a estimativa do SINAPI de 2 dias por ano.
C61: C | D61: Licença-Paternidade (Art. 7º, XIX, e art. 10, §1º, do ADCT, CF/1988 e Art. 1º, II, da Lei 11.770/2008) | E61: ='Encargos Sociais'!E27 -> 0.0008277777778 | F61: 4.02 | H61: * Nota 3 - Utilizada a proporção de 50% para homens, 5 dias de afastamento, e a probabilidade de um trabalhador requerer a Licença Paternidade em 5,22%, conforme SINAPI (citando dados da PNAD 2015)
C62: D | D62: Ausência por Acidente de Trabalho (Art. 131, III, da CLT) | E62: ='Encargos Sociais'!E28 -> 0.0008541666667 | F62: 4.15 | H62: * Nota 4 - Utilzada a estatística de 1,96% dos contribuintes beneficiados com a emissão do auxílio, conforme Anuário Estatístico da Previdência Social. Afastamento de 15 dias a cargo da empresa.
C63: E | D63: Afastamento Maternidade (Art. 71 da Lei nº 8.213/1991) | E63: ='Encargos Sociais'!E29 -> 0.003292592593 | F63: 15.99 | H63: * Nota 5 - Utilizada a proporção de 50% para mulheres, 180 dias de afastamento, e a probabilidade de uma trabalhadora requerer a Licença Maternidade em 4,91%, conforme SINAPI (citando dados do IBGE 2016)
C64: F | D64: Auxílio Enfermidade - Doença (Art. 59 da Lei nº 8.213/1991) | E64: ='Encargos Sociais'!E30 -> 0.007122222222 | F64: 34.59 | H64: * Nota 6 - Utilizada a estatística de 3,37% dos contribuintes beneficiados com o auxílio, conforme Anuário Estatístico da Previdência Social de 2015 (acrescidos de 2 dias ao ano, para os quais o trabalhador nem requer o benefício da Previdência - conforme SINAPI)
B66: Submódulo 4.2 - Intrajornada
C67: A | D67: Intervalo para repouso ou alimentação | E67: ='Encargos Sociais'!E33 -> 0 | F67: =ROUND(E67*$F$16,2) -> 0
D69: QUADRO-RESUMO DO MÓDULO 4 | F69: Valor
D70: 4.1 - Ausências Legais | E70: =SUM(E59:E64) -> 0.0200332672 | F70: =ROUND(E70*$F$16,2) -> 97.28
D71: 4.2 - Intrajornada | E71: =E67 -> 0 | F71: =ROUND(E71*$F$16,2) -> 0
D73: TOTAL DE PREVISÃO PARA RESCISÃO E INTERVALO INTRAJORNADA | F73: =SUM(F70:F71) -> 97.28
B75: MÓDULO 5 - INSUMOS DIVERSOS | F75: Valor
C76: A | D76: Uniformes - aquisição | F76: =ROUND(HLOOKUP($B$5,Uniformes!K4:DZ6,3)/12,2) -> 0
C77: B | D77: Materiais de consumo relacionados ao posto - aquisição | F77: 0
C78: C | D78: Ferramentas relacionadas ao posto - remuneração da sua depreciação / manutenção | F78: 0
C79: D | D79: Equipamentos relacionados ao posto - remuneração da sua depreciação / manutenção | F79: 0
C80: E | D80: Equipamentos de Proteção Individual - EPI - aquisição | F80: =ROUND(HLOOKUP(B5,EPI!I4:DX6,3)/12,2) -> 0
D82: TOTAL DE INSUMOS DIVERSOS | F82: =SUM(F76:F81) -> 0 | H82: * Nota - Valores mensais por empregado
B84: MÓDULO 6 - CUSTOS INDIRETOS, TRIBUTOS E LUCRO - BDI | E84: Percentuais | F84: Valor
C85: A | D85: Custos Indiretos | E85: ='BDI - Geral'!E7 -> 0.0314
C86: A.1 | D86: Administração Central | E86: ='BDI - Geral'!E8 -> 0.026
C87: A.2 | D87: Seguros, Garantias e Riscos | E87: ='BDI - Geral'!E9 -> 0.0054
C88: B | D88: Lucro | E88: ='BDI - Geral'!E11 -> 0.04
C89: C | D89: Tributos | E89: =SUM(E90:E91) -> 0.124
C90: C.1 | D90: Tributos Federais (COFINS, PIS e CPRB) | E90: ='BDI - Geral'!E19 -> 0.074
C91: C.2 | D91: Tributos Distritais (ISS) | E91: ='BDI - Geral'!E24 -> 0.05 | H91: * Nota - Utilizou-se o indicado pelo Sindicato da Arquitetura e da Engenharia (Sinaenco, 2008, p. 22), que adota um percentual redutor de 20% no cálculo dos custos tributários relativos às contribuições PIS e COFINS
C92: D | D92: Despesas Financeiras | E92: ='BDI - Geral'!E14 -> 0.004861120438
D94: TOTAL DE BDI | E94: ='BDI - Geral'!E27 -> 0.2304 | F94: =E94*E102 -> 1876.432896
D96: QUADRO-RESUMO DO CUSTO MENSAL POR EMPREGADO - SEM O 13º | E96: Valor
D97: Módulo 1 - Composição da Remuneração | E97: =F16 -> 4856.02
D98: Módulo 2 - Encargos e Benefícios Anuais, Mensais e Diários | E98: =F45 -> 3006.57
D99: Módulo 3 - Provisão para Rescisão | E99: =F55 -> 184.37
D100: Módulo 4 - Custo de Reposição do Profissional Ausente | E100: =F73 -> 97.28
D101: Módulo 5 - Insumos Diversos | E101: =F82 -> 0
D102: SUBTOTAL (A+B+C+D+E) | E102: =SUM(E97:E101) -> 8144.24
D103: Módulo 6 - Custos Indiretos, Tributos e Lucro | E103: =F94 -> 1876.432896
D105: TOTAL DO POSTO | E105: =SUM(E102:E103) -> 10020.6729
B107: MÓDULO 7 - DESTAQUE DO MÓDULO 2 - 13º SALÁRIO | E107: Percentuais | F107: Valor
C108: A | D108: 13º Salário | E108: ='Encargos Sociais'!E32 -> 0.08333333333 | F108: =ROUND(E108*F$16,2) -> 404.67
C109: B | D109: Encargos Sociais sobre o 13º Salário - Taxa calculada no SUBMÓDULO 2.2 | E109: =SUM($E$24:$E$32) -> 0.348 | F109: =ROUND(E109*$F$108,2) -> 140.83 | H109: * Nota 1 - Provisiona-se, mensalmente, o proporcional a 1/12 dos valores referentes a gratificação natalina e adicional de férias.
C110: C | D110: BDI sobre o 13º Salário - Taxa calculada no MÓDULO 6 | E110: =E94 -> 0.2304 | F110: =ROUND(E110*($F$108+$F$109),2) -> 125.68
D112: TOTAL DO DESTAQUE DO 13º SALÁRIO | F112: =SUM(F108:F110) -> 671.18
D114: QUADRO-RESUMO DO CUSTO MENSAL POR EMPREGADO | E114: Valor
D115: Custo total - sem o 13º Salário | E115: =E105 -> 10020.6729
D116: Destaque do 13º Salário (valor mensal) | E116: =F112 -> 671.18
D118: TOTAL DO POSTO | E118: =E115+E116 -> 10691.8529

Sheet 8
B2: PLANILHA DE ESTIMATIVA DE CUSTOS
B3: Padrão IN 05/2017 e IN 07/2018 - MPDG
B5: 8 | D5: =HLOOKUP($B$5,'Dados Gerais'!$D$6:$L$22,6) -> OPERADOR DE MÍDIA AUDIOVISUAL – 18H | E5: QUANTIDADE | F5: =HLOOKUP($B$5,'Dados Gerais'!$D$6:$L$22,10) -> 26
B6: CCT | D6: =HLOOKUP($B$5,'Dados Gerais'!$D$6:$L$22,16) -> SINRAD/DF x SEAC/DF CCT 2022/2022 N.º DF000077/2022 | E6: DATA-BASE | F6: =HLOOKUP($B$5,'Dados Gerais'!$D$6:$L$22,17) -> 2022-01-01
B8: MÓDULO 1 - COMPOSIÇÃO DA REMUNERAÇÃO | F8: Valor
C9: A | D9: Salário-Base | F9: =HLOOKUP($B$5,'Dados Gerais'!$D$6:$L$22,8) -> 2913.61
C10: B | D10: Adicional de Periculosidade | F10: =HLOOKUP($B$5,'Dados Gerais'!$D$6:$L$39,26) -> 0
C11: C | D11: Adicional de Insalubridade | F11: =HLOOKUP($B$5,'Dados Gerais'!$D$6:$L$39,32) -> 0
C12: D | D12: Adicional Noturno | F12: =HLOOKUP($B$5,'Dados Gerais'!$D$6:$L$52,47) -> 0 | H12: * Nota 1 - O Módulo 1 refere-se ao valor mensal devido ao empregado pela prestação do serviço no período de 12 meses.
C13: E | D13: Adicional de Hora Extra | F13: =HLOOKUP($B$5,'Dados Gerais'!$D$6:$L$69,64) -> 0 | H13: * Nota 2 - O adicional de hora extra no feriado trabalhado foi suprimido pela Lei 13.467/17
C14: F | D14: Outros (especificar) | F14: 0 | H14: * Nota 3 - ART. 7º, § 2º, DA LEI Nº 605/49.Sendo mensalista o obreiro, o adicional noturno pago de forma fixa já é considerado integrado para os efeitos do pagamento do repouso semanal remunerado, nos termos do art. 7º, § 2º, da Lei nº 605/49.
D16: TOTAL DA REMUNERAÇÃO | F16: =SUM(F9:F14) -> 2913.61
B18: MÓDULO 2 - ENCARGOS E BENEFÍCIOS ANUAIS, MENSAIS E DIÁRIOS | E18: Percentuais | F18: Valor
B19: Submódulo 2.1 - 13º Salário, Férias e Adicional de Férias
C20: A | D20: 13º Salário - Calculado no Módulo 7 - Destacado | E20: 0 | F20: =ROUND(E20*F$16,2) -> 0
C21: B | D21: Férias e Adicional de Férias | E21: ='Encargos Sociais'!E25+'Encargos Sociais'!E31 -> 0.0303030303 | F21: =ROUND(E21*F$16,2) -> 88.29 | H21: * Nota 1 - Provisiona-se, mensalmente, o proporcional a 1/12 dos valores referentes a gratificação natalina, férias e adicional de férias.
H22: * Nota 2 - O adicional de férias contido no Submódulo 2.1 corresponde a 1/3 da remuneração que, por sua vez, é dividida por 12 contome Nota 1.
B23: Submódulo 2.2 - Encargos Previdenciários (GPS), Fundo de Garantia por Tempo de Serviço (FGTS) e Outras Contribuições
C24: A | D24: INSS (art. 22, inciso I, Lei nº 8.212/91) | E24: ='Encargos Sociais'!E14 -> 0.2 | F24: =ROUND(E24*($F$16+$F$41+$F$73),2) -> 612.05
C25: B | D25: Salário Educação (art. 3º, inciso I, Decreto nº 87.043/82) | E25: ='Encargos Sociais'!E15 -> 0.025 | F25: 76.51
C26: C | D26: SAT/RAT (art. 22, II, Lei 8.212/91 e Anexo V, Decreto 6.042/07) - Enquadramento 8211-3/00 | E26: ='Encargos Sociais'!E16 -> 0.01 | F26: 30.6
C27: D | D27: SESC ou SESI (art. 30, Lei nº 8.036/90 e art. 1º, Lei 8.154/90) | E27: ='Encargos Sociais'!E17 -> 0.015 | F27: 45.9
C28: E | D28: SENAI ou SENAC (Decreto nº 2.318/86) | E28: ='Encargos Sociais'!E18 -> 0.01 | F28: 30.6
C29: F | D29: SEBRAE (§ 3º, art. 8º, Lei 8.029/90, alterada pela Lei nº 8.154/90) | E29: ='Encargos Sociais'!E19 -> 0.006 | F29: 18.36
C30: G | D30: INCRA (art. 1º, I, Decreto Lei 1.146/70 e Lei 7.787, de 30/06/89) | E30: ='Encargos Sociais'!E20 -> 0.002 | F30: 6.12 | H30: * Nota 1 - Os percentuais dos encargos previdenciários, do FGTS e demais contribuições são estabelecidos por legislação vigente.
C31: H | D31: FGTS (Lei Complementar nº 110/01 e art. 30, Lei nº 8.036/90) | E31: ='Encargos Sociais'!E21 -> 0.08 | F31: 244.82 | H31: * Nota 2 - O SAT, a depender do grau de risco do serviço, irá variar entre 1%, para risco leve, de 2%, para risco médio, e de 3% para risco grave.
C32: I | D32: SECONCI (Convenções Coletivas de Trabalho da construção) | E32: ='Encargos Sociais'!E22 -> 0 | F32: 0 | H32: * Nota 3 - Os percentuais do Submódulo 2.2 incidem sobre o Módulo 1 e o Submódulo 2.1.
B34: Submódulo 2.3 - Benefícios Mensais e Diários
C35: A | D35: Auxílio Transporte | F35: =HLOOKUP($B$5,'Dados Gerais'!$D$6:$L$95,83) -> 3.96
C36: B | D36: Auxílio Alimentação | F36: =HLOOKUP($B$5,'Dados Gerais'!$D$6:$L$95,90) -> 503.36
C37: C | D37: Assistência Médica e Familiar | F37: =HLOOKUP($B$5,'Dados Gerais'!$D$6:$L$103,98) -> 0
C38: D | D38: Outros (Seguro de vida, auxílio funeral, auxílio odontológico e auxílio creche) | F38: =HLOOKUP($B$5,'Dados Gerais'!$D$6:$L$133,127) -> 221.45 | H38: * Nota 1 - O valor informado deverá ser o custo real do benefício (descontado o valor eventualmente pago pelo empregado).
H39: * Nota 2 - Observar a previsão dos benefícios contidos em Acordos, Convenções e Dissídios Coletivos de Trabalho e o disposto no art. 6º da IN 5/2017
D40: QUADRO-RESUMO DO MÓDULO 2
D41: 2.1 - 13º Salário, Férias e Adicional de Férias - 13º Destacado - Calculado no Módulo 7 | E41: =SUM(E20:E21) -> 0.0303030303 | F41: =F20+F21 -> 88.29
D42: 2.2 - Encargos Previdenciários (GPS), Fundo de Garantia por Tempo de Serviço (FGTS) e Contribuições | E42: =SUM(E24:E32) -> 0.348 | F42: =SUM(F24:F32) -> 1064.96
D43: 2.3 - Benefícios Mensais e Diários | F43: =SUM(F35:F38) -> 728.77
D45: TOTAL DOS ENCARGOS E BENEFÍCIOS | F45: =SUM(F41:F43) -> 1882.02
B47: MÓDULO 3 - PREVISÃO PARA RESCISÃO | E47: Percentuais | F47: Valor
C48: A | D48: Aviso Prévio Indenizado (Art. 7º, inciso XXI, da CF/1988 e arts. 477, 487, §1º, e 491 da CLT) | E48: ='Encargos Sociais'!E36 -> 0.008333333333 | F48: =ROUND(E48*$F$16,2) -> 24.28
C49: B | D49: Incidência do FGTS sobre o Aviso Prévio Indenizado (Súmula 305 TST) | E49: ='Encargos Sociais'!E37 -> 0.0006666666667 | F49: 1.94 | H49: * Nota 1 - Adotou-se os parâmetros do estudo do STF (http://www.stf.jus.br/arquivo/cms/sobrestfestudosci/anexo/encargos_sociais_03102007.pdf), onde 5% do pessoal é demitido pelo empregador no decurso do contrato (para estes, considerou-se o aviso prévio indenizado). Desprezou-se as demissões por justa causa e os pedidos de demissão.
C50: C | D50: Multa do FGTS e Contribuição Social sobre o Aviso Prévio Indenizado (Art. 18, §1º, da Lei 8.036/1990 e art. 1º da LC nº 110/2001) | E50: ='Encargos Sociais'!E38 -> 0.001274074074 | F50: 3.71 | H50: * Nota 2 - No cálculo do percentual, considerou-se 36 dias, correspondendo à metade da duração média dos contratos (2 anos)
C51: D | D51: Aviso Prévio Trabalhado (Art. 488, parágrafo único, CLT) | E51: ='Encargos Sociais'!E39 -> 0.01203703704 | F51: 35.07 | H51: * Nota 3 - Incide sobre a Remuneração + 13º salário (1/12) + Férias (1/12) + Adicional de Férias (1/36) x 50% multa (40% para o empregado e 10% de contribuição social) x 8% FGTS
C52: E | D52: Incidência de GPS, FGTS e outras contribuições sobre o Aviso Prévio Trabalhado | E52: ='Encargos Sociais'!E40 -> 0.004188888889 | F52: 12.2 | H52: * Nota 4 - Os 95% restantes do cálculo, a um prazo médio de contrato de 4 anos. Assim, calcula-se 7 dias para o 1º ano de contrato e mais 3 dias para os 3 anos seguintes.
C53: F | D53: Multa do FGTS e Contribuição Social sobre o Aviso Prévio Trabalhado | E53: ='Encargos Sociais'!E41 -> 0.01146666667 | F53: 33.41
D55: TOTAL DE PREVISÃO PARA RESCISÃO | F55: =SUM(F48:F53) -> 110.61
B57: MÓDULO 4 - CUSTO DE REPOSIÇÃO DO PROFISSIONAL AUSENTE | E57: Percentuais | F57: Valor
B58: Submódulo 4.1 - Ausências Legais
C59: A | D59: Férias (Arts. 129 e 130, inc. I, da CLT) - Calculado no Submódulo 2.1 | E59: 0 | F59: =ROUND(E59*$F$16,2) -> 0 | H59: * Nota 1 - As alíneas “A” a “F” referem-se somente ao custo que será pago ao repositor pelos dias trabalhados quando da necessidade de substituir a mão de obra alocada na prestação do serviço.
C60: B | D60: Ausências Legais (Arts. 131 e 473 da CLT) | E60: ='Encargos Sociais'!E26 -> 0.007936507937 | F60: 23.12 | H60: * Nota 2 - Adotou-se a estimativa do SINAPI de 2 dias por ano.
C61: C | D61: Licença-Paternidade (Art. 7º, XIX, e art. 10, §1º, do ADCT, CF/1988 e Art. 1º, II, da Lei 11.770/2008) | E61: ='Encargos Sociais'!E27 -> 0.0008277777778 | F61: 2.41 | H61: * Nota 3 - Utilizada a proporção de 50% para homens, 5 dias de afastamento, e a probabilidade de um trabalhador requerer a Licença Paternidade em 5,22%, conforme SINAPI (citando dados da PNAD 2015)
C62: D | D62: Ausência por Acidente de Trabalho (Art. 131, III, da CLT) | E62: ='Encargos Sociais'!E28 -> 0.0008541666667 | F62: 2.49 | H62: * Nota 4 - Utilzada a estatística de 1,96% dos contribuintes beneficiados com a emissão do auxílio, conforme Anuário Estatístico da Previdência Social. Afastamento de 15 dias a cargo da empresa.
C63: E | D63: Afastamento Maternidade (Art. 71 da Lei nº 8.213/1991) | E63: ='Encargos Sociais'!E29 -> 0.003292592593 | F63: 9.59 | H63: * Nota 5 - Utilizada a proporção de 50% para mulheres, 180 dias de afastamento, e a probabilidade de uma trabalhadora requerer a Licença Maternidade em 4,91%, conforme SINAPI (citando dados do IBGE 2016)
C64: F | D64: Auxílio Enfermidade - Doença (Art. 59 da Lei nº 8.213/1991) | E64: ='Encargos Sociais'!E30 -> 0.007122222222 | F64: 20.75 | H64: * Nota 6 - Utilizada a estatística de 3,37% dos contribuintes beneficiados com o auxílio, conforme Anuário Estatístico da Previdência Social de 2015 (acrescidos de 2 dias ao ano, para os quais o trabalhador nem requer o benefício da Previdência - conforme SINAPI)
B66: Submódulo 4.2 - Intrajornada
C67: A | D67: Intervalo para repouso ou alimentação | E67: ='Encargos Sociais'!E33 -> 0 | F67: =ROUND(E67*$F$16,2) -> 0
D69: QUADRO-RESUMO DO MÓDULO 4 | F69: Valor
D70: 4.1 - Ausências Legais | E70: =SUM(E59:E64) -> 0.0200332672 | F70: =ROUND(E70*$F$16,2) -> 58.37
D71: 4.2 - Intrajornada | E71: =E67 -> 0 | F71: =ROUND(E71*$F$16,2) -> 0
D73: TOTAL DE PREVISÃO PARA RESCISÃO E INTERVALO INTRAJORNADA | F73: =SUM(F70:F71) -> 58.37
B75: MÓDULO 5 - INSUMOS DIVERSOS | F75: Valor
C76: A | D76: Uniformes - aquisição | F76: =ROUND(HLOOKUP($B$5,Uniformes!K4:DZ6,3)/12,2) -> 0
C77: B | D77: Materiais de consumo relacionados ao posto - aquisição | F77: 0
C78: C | D78: Ferramentas relacionadas ao posto - remuneração da sua depreciação / manutenção | F78: 0
C79: D | D79: Equipamentos relacionados ao posto - remuneração da sua depreciação / manutenção | F79: 0
C80: E | D80: Equipamentos de Proteção Individual - EPI - aquisição | F80: =ROUND(HLOOKUP(B5,EPI!I4:DX6,3)/12,2) -> 0
D82: TOTAL DE INSUMOS DIVERSOS | F82: =SUM(F76:F81) -> 0 | H82: * Nota - Valores mensais por empregado
B84: MÓDULO 6 - CUSTOS INDIRETOS, TRIBUTOS E LUCRO - BDI | E84: Percentuais | F84: Valor
C85: A | D85: Custos Indiretos | E85: ='BDI - Geral'!E7 -> 0.0314
C86: A.1 | D86: Administração Central | E86: ='BDI - Geral'!E8 -> 0.026
C87: A.2 | D87: Seguros, Garantias e Riscos | E87: ='BDI - Geral'!E9 -> 0.0054
C88: B | D88: Lucro | E88: ='BDI - Geral'!E11 -> 0.04
C89: C | D89: Tributos | E89: =SUM(E90:E91) -> 0.124
C90: C.1 | D90: Tributos Federais (COFINS, PIS e CPRB) | E90: ='BDI - Geral'!E19 -> 0.074
C91: C.2 | D91: Tributos Distritais (ISS) | E91: ='BDI - Geral'!E24 -> 0.05 | H91: * Nota - Utilizou-se o indicado pelo Sindicato da Arquitetura e da Engenharia (Sinaenco, 2008, p. 22), que adota um percentual redutor de 20% no cálculo dos custos tributários relativos às contribuições PIS e COFINS
C92: D | D92: Despesas Financeiras | E92: ='BDI - Geral'!E14 -> 0.004861120438
D94: TOTAL DE BDI | E94: ='BDI - Geral'!E27 -> 0.2304 | F94: =E94*E102 -> 1143.846144
D96: QUADRO-RESUMO DO CUSTO MENSAL POR EMPREGADO - SEM O 13º | E96: Valor
D97: Módulo 1 - Composição da Remuneração | E97: =F16 -> 2913.61
D98: Módulo 2 - Encargos e Benefícios Anuais, Mensais e Diários | E98: =F45 -> 1882.02
D99: Módulo 3 - Provisão para Rescisão | E99: =F55 -> 110.61
D100: Módulo 4 - Custo de Reposição do Profissional Ausente | E100: =F73 -> 58.37
D101: Módulo 5 - Insumos Diversos | E101: =F82 -> 0
D102: SUBTOTAL (A+B+C+D+E) | E102: =SUM(E97:E101) -> 4964.61
D103: Módulo 6 - Custos Indiretos, Tributos e Lucro | E103: =F94 -> 1143.846144
D105: TOTAL DO POSTO | E105: =SUM(E102:E103) -> 6108.456144
B107: MÓDULO 7 - DESTAQUE DO MÓDULO 2 - 13º SALÁRIO | E107: Percentuais | F107: Valor
C108: A | D108: 13º Salário | E108: ='Encargos Sociais'!E32 -> 0.08333333333 | F108: =ROUND(E108*F$16,2) -> 242.8
C109: B | D109: Encargos Sociais sobre o 13º Salário - Taxa calculada no SUBMÓDULO 2.2 | E109: =SUM($E$24:$E$32) -> 0.348 | F109: =ROUND(E109*$F$108,2) -> 84.49 | H109: * Nota 1 - Provisiona-se, mensalmente, o proporcional a 1/12 dos valores referentes a gratificação natalina e adicional de férias.
C110: C | D110: BDI sobre o 13º Salário - Taxa calculada no MÓDULO 6 | E110: =E94 -> 0.2304 | F110: =ROUND(E110*($F$108+$F$109),2) -> 75.41
D112: TOTAL DO DESTAQUE DO 13º SALÁRIO | F112: =SUM(F108:F110) -> 402.7
D114: QUADRO-RESUMO DO CUSTO MENSAL POR EMPREGADO | E114: Valor
D115: Custo total - sem o 13º Salário | E115: =E105 -> 6108.456144
D116: Destaque do 13º Salário (valor mensal) | E116: =F112 -> 402.7
D118: TOTAL DO POSTO | E118: =E115+E116 -> 6511.156144

Sheet 9
B2: PLANILHA DE ESTIMATIVA DE CUSTOS
B3: Padrão IN 05/2017 e IN 07/2018 - MPDG
B5: 9 | D5: =HLOOKUP($B$5,'Dados Gerais'!$D$6:$L$22,6) -> OPERADOR DE TRANSMISSOR – Rádio e TV - 24H | E5: QUANTIDADE | F5: =HLOOKUP($B$5,'Dados Gerais'!$D$6:$L$22,10) -> 5
B6: CCT | D6: =HLOOKUP($B$5,'Dados Gerais'!$D$6:$L$22,16) -> SINRAD/DF x SEAC/DF CCT 2022/2022 N.º DF000077/2022 | E6: DATA-BASE | F6: =HLOOKUP($B$5,'Dados Gerais'!$D$6:$L$22,17) -> 2022-01-01
B8: MÓDULO 1 - COMPOSIÇÃO DA REMUNERAÇÃO | F8: Valor
C9: A | D9: Salário-Base | F9: =HLOOKUP($B$5,'Dados Gerais'!$D$6:$L$22,8) -> 3454.59
C10: B | D10: Adicional de Periculosidade | F10: =HLOOKUP($B$5,'Dados Gerais'!$D$6:$L$39,26) -> 0
C11: C | D11: Adicional de Insalubridade | F11: =HLOOKUP($B$5,'Dados Gerais'!$D$6:$L$39,32) -> 0
C12: D | D12: Adicional Noturno | F12: =HLOOKUP($B$5,'Dados Gerais'!$D$6:$L$52,47) -> 0 | H12: * Nota 1 - O Módulo 1 refere-se ao valor mensal devido ao empregado pela prestação do serviço no período de 12 meses.
C13: E | D13: Adicional de Hora Extra | F13: =HLOOKUP($B$5,'Dados Gerais'!$D$6:$L$69,64) -> 0 | H13: * Nota 2 - O adicional de hora extra no feriado trabalhado foi suprimido pela Lei 13.467/17
C14: F | D14: Outros (especificar) | F14: 0 | H14: * Nota 3 - ART. 7º, § 2º, DA LEI Nº 605/49.Sendo mensalista o obreiro, o adicional noturno pago de forma fixa já é considerado integrado para os efeitos do pagamento do repouso semanal remunerado, nos termos do art. 7º, § 2º, da Lei nº 605/49.
D16: TOTAL DA REMUNERAÇÃO | F16: =SUM(F9:F14) -> 3454.59
B18: MÓDULO 2 - ENCARGOS E BENEFÍCIOS ANUAIS, MENSAIS E DIÁRIOS | E18: Percentuais | F18: Valor
B19: Submódulo 2.1 - 13º Salário, Férias e Adicional de Férias
C20: A | D20: 13º Salário - Calculado no Módulo 7 - Destacado | E20: 0 | F20: =ROUND(E20*F$16,2) -> 0
C21: B | D21: Férias e Adicional de Férias | E21: ='Encargos Sociais'!E25+'Encargos Sociais'!E31 -> 0.0303030303 | F21: =ROUND(E21*F$16,2) -> 104.68 | H21: * Nota 1 - Provisiona-se, mensalmente, o proporcional a 1/12 dos valores referentes a gratificação natalina, férias e adicional de férias.
H22: * Nota 2 - O adicional de férias contido no Submódulo 2.1 corresponde a 1/3 da remuneração que, por sua vez, é dividida por 12 contome Nota 1.
B23: Submódulo 2.2 - Encargos Previdenciários (GPS), Fundo de Garantia por Tempo de Serviço (FGTS) e Outras Contribuições
C24: A | D24: INSS (art. 22, inciso I, Lei nº 8.212/91) | E24: ='Encargos Sociais'!E14 -> 0.2 | F24: =ROUND(E24*($F$16+$F$41+$F$73),2) -> 725.7
C25: B | D25: Salário Educação (art. 3º, inciso I, Decreto nº 87.043/82) | E25: ='Encargos Sociais'!E15 -> 0.025 | F25: 90.71
C26: C | D26: SAT/RAT (art. 22, II, Lei 8.212/91 e Anexo V, Decreto 6.042/07) - Enquadramento 8211-3/00 | E26: ='Encargos Sociais'!E16 -> 0.01 | F26: 36.28
C27: D | D27: SESC ou SESI (art. 30, Lei nº 8.036/90 e art. 1º, Lei 8.154/90) | E27: ='Encargos Sociais'!E17 -> 0.015 | F27: 54.43
C28: E | D28: SENAI ou SENAC (Decreto nº 2.318/86) | E28: ='Encargos Sociais'!E18 -> 0.01 | F28: 36.28
C29: F | D29: SEBRAE (§ 3º, art. 8º, Lei 8.029/90, alterada pela Lei nº 8.154/90) | E29: ='Encargos Sociais'!E19 -> 0.006 | F29: 21.77
C30: G | D30: INCRA (art. 1º, I, Decreto Lei 1.146/70 e Lei 7.787, de 30/06/89) | E30: ='Encargos Sociais'!E20 -> 0.002 | F30: 7.26 | H30: * Nota 1 - Os percentuais dos encargos previdenciários, do FGTS e demais contribuições são estabelecidos por legislação vigente.
C31: H | D31: FGTS (Lei Complementar nº 110/01 e art. 30, Lei nº 8.036/90) | E31: ='Encargos Sociais'!E21 -> 0.08 | F31: 290.28 | H31: * Nota 2 - O SAT, a depender do grau de risco do serviço, irá variar entre 1%, para risco leve, de 2%, para risco médio, e de 3% para risco grave.
C32: I | D32: SECONCI (Convenções Coletivas de Trabalho da construção) | E32: ='Encargos Sociais'!E22 -> 0 | F32: 0 | H32: * Nota 3 - Os percentuais do Submódulo 2.2 incidem sobre o Módulo 1 e o Submódulo 2.1.
B34: Submódulo 2.3 - Benefícios Mensais e Diários
C35: A | D35: Auxílio Transporte | F35: =HLOOKUP($B$5,'Dados Gerais'!$D$6:$L$95,83) -> 26.5
C36: B | D36: Auxílio Alimentação | F36: =HLOOKUP($B$5,'Dados Gerais'!$D$6:$L$95,90) -> 658.24
C37: C | D37: Assistência Médica e Familiar | F37: =HLOOKUP($B$5,'Dados Gerais'!$D$6:$L$103,98) -> 0
C38: D | D38: Outros (Seguro de vida, auxílio funeral, auxílio odontológico e auxílio creche) | F38: =HLOOKUP($B$5,'Dados Gerais'!$D$6:$L$133,127) -> 52.41 | H38: * Nota 1 - O valor informado deverá ser o custo real do benefício (descontado o valor eventualmente pago pelo empregado).
H39: * Nota 2 - Observar a previsão dos benefícios contidos em Acordos, Convenções e Dissídios Coletivos de Trabalho e o disposto no art. 6º da IN 5/2017
D40: QUADRO-RESUMO DO MÓDULO 2
D41: 2.1 - 13º Salário, Férias e Adicional de Férias - 13º Destacado - Calculado no Módulo 7 | E41: =SUM(E20:E21) -> 0.0303030303 | F41: =F20+F21 -> 104.68
D42: 2.2 - Encargos Previdenciários (GPS), Fundo de Garantia por Tempo de Serviço (FGTS) e Contribuições | E42: =SUM(E24:E32) -> 0.348 | F42: =SUM(F24:F32) -> 1262.71
D43: 2.3 - Benefícios Mensais e Diários | F43: =SUM(F35:F38) -> 737.15
D45: TOTAL DOS ENCARGOS E BENEFÍCIOS | F45: =SUM(F41:F43) -> 2104.54
B47: MÓDULO 3 - PREVISÃO PARA RESCISÃO | E47: Percentuais | F47: Valor
C48: A | D48: Aviso Prévio Indenizado (Art. 7º, inciso XXI, da CF/1988 e arts. 477, 487, §1º, e 491 da CLT) | E48: ='Encargos Sociais'!E36 -> 0.008333333333 | F48: =ROUND(E48*$F$16,2) -> 28.79
C49: B | D49: Incidência do FGTS sobre o Aviso Prévio Indenizado (Súmula 305 TST) | E49: ='Encargos Sociais'!E37 -> 0.0006666666667 | F49: 2.3 | H49: * Nota 1 - Adotou-se os parâmetros do estudo do STF (http://www.stf.jus.br/arquivo/cms/sobrestfestudosci/anexo/encargos_sociais_03102007.pdf), onde 5% do pessoal é demitido pelo empregador no decurso do contrato (para estes, considerou-se o aviso prévio indenizado). Desprezou-se as demissões por justa causa e os pedidos de demissão.
C50: C | D50: Multa do FGTS e Contribuição Social sobre o Aviso Prévio Indenizado (Art. 18, §1º, da Lei 8.036/1990 e art. 1º da LC nº 110/2001) | E50: ='Encargos Sociais'!E38 -> 0.001274074074 | F50: 4.4 | H50: * Nota 2 - No cálculo do percentual, considerou-se 36 dias, correspondendo à metade da duração média dos contratos (2 anos)
C51: D | D51: Aviso Prévio Trabalhado (Art. 488, parágrafo único, CLT) | E51: ='Encargos Sociais'!E39 -> 0.01203703704 | F51: 41.58 | H51: * Nota 3 - Incide sobre a Remuneração + 13º salário (1/12) + Férias (1/12) + Adicional de Férias (1/36) x 50% multa (40% para o empregado e 10% de contribuição social) x 8% FGTS
C52: E | D52: Incidência de GPS, FGTS e outras contribuições sobre o Aviso Prévio Trabalhado | E52: ='Encargos Sociais'!E40 -> 0.004188888889 | F52: 14.47 | H52: * Nota 4 - Os 95% restantes do cálculo, a um prazo médio de contrato de 4 anos. Assim, calcula-se 7 dias para o 1º ano de contrato e mais 3 dias para os 3 anos seguintes.
C53: F | D53: Multa do FGTS e Contribuição Social sobre o Aviso Prévio Trabalhado | E53: ='Encargos Sociais'!E41 -> 0.01146666667 | F53: 39.61
D55: TOTAL DE PREVISÃO PARA RESCISÃO | F55: =SUM(F48:F53) -> 131.15
B57: MÓDULO 4 - CUSTO DE REPOSIÇÃO DO PROFISSIONAL AUSENTE | E57: Percentuais | F57: Valor
B58: Submódulo 4.1 - Ausências Legais
C59: A | D59: Férias (Arts. 129 e 130, inc. I, da CLT) - Calculado no Submódulo 2.1 | E59: 0 | F59: =ROUND(E59*$F$16,2) -> 0 | H59: * Nota 1 - As alíneas “A” a “F” referem-se somente ao custo que será pago ao repositor pelos dias trabalhados quando da necessidade de substituir a mão de obra alocada na prestação do serviço.
C60: B | D60: Ausências Legais (Arts. 131 e 473 da CLT) | E60: ='Encargos Sociais'!E26 -> 0.007936507937 | F60: 27.42 | H60: * Nota 2 - Adotou-se a estimativa do SINAPI de 2 dias por ano.
C61: C | D61: Licença-Paternidade (Art. 7º, XIX, e art. 10, §1º, do ADCT, CF/1988 e Art. 1º, II, da Lei 11.770/2008) | E61: ='Encargos Sociais'!E27 -> 0.0008277777778 | F61: 2.86 | H61: * Nota 3 - Utilizada a proporção de 50% para homens, 5 dias de afastamento, e a probabilidade de um trabalhador requerer a Licença Paternidade em 5,22%, conforme SINAPI (citando dados da PNAD 2015)
C62: D | D62: Ausência por Acidente de Trabalho (Art. 131, III, da CLT) | E62: ='Encargos Sociais'!E28 -> 0.0008541666667 | F62: 2.95 | H62: * Nota 4 - Utilzada a estatística de 1,96% dos contribuintes beneficiados com a emissão do auxílio, conforme Anuário Estatístico da Previdência Social. Afastamento de 15 dias a cargo da empresa.
C63: E | D63: Afastamento Maternidade (Art. 71 da Lei nº 8.213/1991) | E63: ='Encargos Sociais'!E29 -> 0.003292592593 | F63: 11.37 | H63: * Nota 5 - Utilizada a proporção de 50% para mulheres, 180 dias de afastamento, e a probabilidade de uma trabalhadora requerer a Licença Maternidade em 4,91%, conforme SINAPI (citando dados do IBGE 2016)
C64: F | D64: Auxílio Enfermidade - Doença (Art. 59 da Lei nº 8.213/1991) | E64: ='Encargos Sociais'!E30 -> 0.007122222222 | F64: 24.6 | H64: * Nota 6 - Utilizada a estatística de 3,37% dos contribuintes beneficiados com o auxílio, conforme Anuário Estatístico da Previdência Social de 2015 (acrescidos de 2 dias ao ano, para os quais o trabalhador nem requer o benefício da Previdência - conforme SINAPI)
B66: Submódulo 4.2 - Intrajornada
C67: A | D67: Intervalo para repouso ou alimentação | E67: ='Encargos Sociais'!E33 -> 0 | F67: =ROUND(E67*$F$16,2) -> 0
D69: QUADRO-RESUMO DO MÓDULO 4 | F69: Valor
D70: 4.1 - Ausências Legais | E70: =SUM(E59:E64) -> 0.0200332672 | F70: =ROUND(E70*$F$16,2) -> 69.21
D71: 4.2 - Intrajornada | E71: =E67 -> 0 | F71: =ROUND(E71*$F$16,2) -> 0
D73: TOTAL DE PREVISÃO PARA RESCISÃO E INTERVALO INTRAJORNADA | F73: =SUM(F70:F71) -> 69.21
B75: MÓDULO 5 - INSUMOS DIVERSOS | F75: Valor
C76: A | D76: Uniformes - aquisição | F76: =ROUND(HLOOKUP($B$5,Uniformes!K4:DZ6,3)/12,2) -> 81.92
C77: B | D77: Materiais de consumo relacionados ao posto - aquisição | F77: 0
C78: C | D78: Ferramentas relacionadas ao posto - remuneração da sua depreciação / manutenção | F78: 0
C79: D | D79: Equipamentos relacionados ao posto - remuneração da sua depreciação / manutenção | F79: 0
C80: E | D80: Equipamentos de Proteção Individual - EPI - aquisição | F80: =ROUND(HLOOKUP(B5,EPI!I4:DX6,3)/12,2) -> 17.11
D82: TOTAL DE INSUMOS DIVERSOS | F82: =SUM(F76:F81) -> 99.03 | H82: * Nota - Valores mensais por empregado
B84: MÓDULO 6 - CUSTOS INDIRETOS, TRIBUTOS E LUCRO - BDI | E84: Percentuais | F84: Valor
C85: A | D85: Custos Indiretos | E85: ='BDI - Geral'!E7 -> 0.0314
C86: A.1 | D86: Administração Central | E86: ='BDI - Geral'!E8 -> 0.026
C87: A.2 | D87: Seguros, Garantias e Riscos | E87: ='BDI - Geral'!E9 -> 0.0054
C88: B | D88: Lucro | E88: ='BDI - Geral'!E11 -> 0.04
C89: C | D89: Tributos | E89: =SUM(E90:E91) -> 0.124
C90: C.1 | D90: Tributos Federais (COFINS, PIS e CPRB) | E90: ='BDI - Geral'!E19 -> 0.074
C91: C.2 | D91: Tributos Distritais (ISS) | E91: ='BDI - Geral'!E24 -> 0.05 | H91: * Nota - Utilizou-se o indicado pelo Sindicato da Arquitetura e da Engenharia (Sinaenco, 2008, p. 22), que adota um percentual redutor de 20% no cálculo dos custos tributários relativos às contribuições PIS e COFINS
C92: D | D92: Despesas Financeiras | E92: ='BDI - Geral'!E14 -> 0.004861120438
D94: TOTAL DE BDI | E94: ='BDI - Geral'!E27 -> 0.2304 | F94: =E94*E102 -> 1349.803008
D96: QUADRO-RESUMO DO CUSTO MENSAL POR EMPREGADO - SEM O 13º | E96: Valor
D97: Módulo 1 - Composição da Remuneração | E97: =F16 -> 3454.59
D98: Módulo 2 - Encargos e Benefícios Anuais, Mensais e Diários | E98: =F45 -> 2104.54
D99: Módulo 3 - Provisão para Rescisão | E99: =F55 -> 131.15
D100: Módulo 4 - Custo de Reposição do Profissional Ausente | E100: =F73 -> 69.21
D101: Módulo 5 - Insumos Diversos | E101: =F82 -> 99.03
D102: SUBTOTAL (A+B+C+D+E) | E102: =SUM(E97:E101) -> 5858.52
D103: Módulo 6 - Custos Indiretos, Tributos e Lucro | E103: =F94 -> 1349.803008
D105: TOTAL DO POSTO | E105: =SUM(E102:E103) -> 7208.323008
B107: MÓDULO 7 - DESTAQUE DO MÓDULO 2 - 13º SALÁRIO | E107: Percentuais | F107: Valor
C108: A | D108: 13º Salário | E108: ='Encargos Sociais'!E32 -> 0.08333333333 | F108: =ROUND(E108*F$16,2) -> 287.88
C109: B | D109: Encargos Sociais sobre o 13º Salário - Taxa calculada no SUBMÓDULO 2.2 | E109: =SUM($E$24:$E$32) -> 0.348 | F109: =ROUND(E109*$F$108,2) -> 100.18 | H109: * Nota 1 - Provisiona-se, mensalmente, o proporcional a 1/12 dos valores referentes a gratificação natalina e adicional de férias.
C110: C | D110: BDI sobre o 13º Salário - Taxa calculada no MÓDULO 6 | E110: =E94 -> 0.2304 | F110: =ROUND(E110*($F$108+$F$109),2) -> 89.41
D112: TOTAL DO DESTAQUE DO 13º SALÁRIO | F112: =SUM(F108:F110) -> 477.47
D114: QUADRO-RESUMO DO CUSTO MENSAL POR EMPREGADO | E114: Valor
D115: Custo total - sem o 13º Salário | E115: =E105 -> 7208.323008
D116: Destaque do 13º Salário (valor mensal) | E116: =F112 -> 477.47
D118: TOTAL DO POSTO | E118: =E115+E116 -> 7685.793008

Sheet Dados Gerais
B4: INFORMAÇÕES DE ENTRADA
D6: 1 | E6: 2 | F6: 3 | G6: 4 | H6: 5 | I6: 6 | J6: 7 | K6: 8 | L6: 9
D7: CARGO 1 | E7: CARGO 2 | F7: CARGO 3 | G7: CARGO 4 | H7: CARGO 5 | I7: CARGO 6 | J7: CARGO 7 | K7: CARGO 8 | L7: CARGO 9
B8: INFORMAÇÕES BÁSICAS
B10: DESCRIÇÃO DOS POSTOS DE SERVIÇO
D11: SUPERVISOR TÉCNICO OPERACIONAL | E11: SUPERVISOR TÉCNICO | F11: SUPERVISOR OPERACIONAL | G11: DIRETOR DE IMAGENS – 30H | H11: DIRETOR DE IMAGENS – 18H | I11: TÉCNICO DE SISTEMAS AUDIOVISUAIS – especialidade Sistemas e Vídeo | J11: OPERADOR DE MÍDIA AUDIOVISUAL – 30H | K11: OPERADOR DE MÍDIA AUDIOVISUAL – 18H | L11: OPERADOR DE TRANSMISSOR – Rádio e TV - 24H
B12: REMUNERAÇÕES
D13: 12954.17 | E13: 9252.98 | F13: 8894.19 | G13: 5845.04 | H13: 3507.03 | I13: 4996.54 | J13: 4856.02 | K13: 2913.61 | L13: 3454.59
B14: QUANTIDADE DE POSTOS
D15: 2 | E15: 3 | F15: 2 | G15: 24 | H15: 21 | I15: 4 | J15: 34 | K15: 26 | L15: 5
B16: JORNADA
C17: HORAS/DIA | D17: 8 | E17: 8 | F17: 8 | G17: 6 | H17: 6 | I17: 6 | J17: 6 | K17: 6 | L17: 6
C18: DIAS/MÊS | D18: 22 | E18: 22 | F18: 22 | G18: 22 | H18: =3*52/12 -> 13 | I18: 22 | J18: 22 | K18: =H18 -> 13 | L18: =ROUNDDOWN(4*52/12,0) -> 17
C19: HORAS/MÊS | D19: =D17*5*5 -> 200 | E19: =E17*5*5 -> 200 | F19: =F17*5*5 -> 200 | G19: =G17*5*5 -> 150 | H19: =H17*3*5 -> 90 | I19: =I17*5*5 -> 150 | J19: =J17*5*5 -> 150 | K19: =K17*3*5 -> 90 | L19: =L17*6*5 -> 180
B20: CCT UTILIZADA
C21: SINDICATOS E REFERÊNCIA | D21: SINRAD/DF x SEAC/DF CCT 2022/2022 N.º DF000077/2022 | E21: SINRAD/DF x SEAC/DF CCT 2022/2022 N.º DF000077/2022 | F21: SINRAD/DF x SEAC/DF CCT 2022/2022 N.º DF000077/2022 | G21: SINRAD/DF x SEAC/DF CCT 2022/2022 N.º DF000077/2022 | H21: SINRAD/DF x SEAC/DF CCT 2022/2022 N.º DF000077/2022 | I21: SINRAD/DF x SEAC/DF CCT 2022/2022 N.º DF000077/2022 | J21: SINRAD/DF x SEAC/DF CCT 2022/2022 N.º DF000077/2022 | K21: SINRAD/DF x SEAC/DF CCT 2022/2022 N.º DF000077/2022 | L21: SINRAD/DF x SEAC/DF CCT 2022/2022 N.º DF000077/2022
C22: DATA-BASE | D22: 2022-01-01 | E22: 2022-01-01 | F22: 2022-01-01 | G22: 2022-01-01 | H22: 2022-01-01 | I22: 2022-01-01 | J22: 2022-01-01 | K22: 2022-01-01 | L22: 2022-01-01
B24: ADICIONAIS LEGAIS E GRATIFICAÇÕES
B26: PERICULOSIDADE (PERCENTUAL)
D27: 0 | E27: 0 | F27: 0 | G27: 0 | H27: 0 | I27: 0 | J27: 0 | K27: 0 | L27: 0
B28: BASE DE CÁLCULO DO ADICIONAL DE PERICULOSIDADE (SALÁRIO BÁSICO)
D29: =D13 -> 12954.17 | E29: 9252.98 | F29: 8894.19 | G29: 5845.04 | H29: 3507.03 | I29: 4996.54 | J29: 4856.02 | K29: 2913.61 | L29: 3454.59
B30: VALOR MENSAL DO ADICIONAL DE PERICULOSIDADE
D31: =ROUND(D27*D13,2) -> 0 | E31: 0 | F31: 0 | G31: 0 | H31: 0 | I31: 0 | J31: 0 | K31: 0 | L31: 0
B32: INSALUBRIDADE (PERCENTUAL)
D33: 0 | E33: 0 | F33: 0 | G33: 0 | H33: 0 | I33: 0 | J33: 0 | K33: 0 | L33: 0
B34: BASE DE CÁLCULO DO ADICIONAL DE INSALUBRIDADE (SALÁRIO MÍNIMO LEGAL)
D35: 1212 | E35: 1212 | F35: 1212 | G35: 1212 | H35: 1212 | I35: 1212 | J35: 1212 | K35: 1212 | L35: 1212
B36: VALOR MENSAL DO ADICIONAL DE INSALUBRIDADE
D37: =ROUND(D33*D35,2) -> 0 | E37: 0 | F37: 0 | G37: 0 | H37: 0 | I37: 0 | J37: 0 | K37: 0 | L37: 0
B38: GRATIFICAÇÃO - VALOR MENSAL (R$)
D39: 0 | E39: 0 | F39: 0 | G39: 0 | H39: 0 | I39: 0 | J39: 0 | K39: 0 | L39: 0
B41: ADICIONAL NOTURNO
B43: INCIDÊNCIA (PERCENTUAL)
D44: 0.4 | E44: 0.4 | F44: 0.4 | G44: 0.4 | H44: 0.4 | I44: 0.4 | J44: 0.4 | K44: 0.4 | L44: 0.4
B45: HORAS REAIS POR DIA
B47: HORAS FICTAS POR DIA
D48: =D46*8/7 -> 0 | E48: 0 | F48: =F46*8/7 -> 0 | G48: 0 | H48: =H46*8/7 -> 0 | I48: 0 | J48: 0 | K48: 0 | L48: 0
B49: BASE DE CÁLCULO DO ADICIONAL NOTURNO (INCLUINDO ADICIONAIS E GRATIFICAÇÕES)
D50: =D13+D31+D37+D39 -> 12954.17 | E50: 9252.98 | F50: 8894.19 | G50: 5845.04 | H50: 3507.03 | I50: 4996.54 | J50: 4856.02 | K50: 2913.61 | L50: 3454.59
B51: VALOR MENSAL DO ADICIONAL NOTURNO (HORA NORMAL + HORA REDUZIDA) - POR POSTO
D52: =ROUND(D48*D18*D44*D50/D19,2) -> 0 | E52: 0 | F52: 0 | G52: 0 | H52: 0 | I52: 0 | J52: 0 | K52: 0 | L52: 0
B54: ADICIONAL DE HORA EXTRA
B56: INCIDÊNCIA (PERCENTUAL 1)
D57: 0.5 | E57: 0.5 | F57: 0.5 | G57: 0.5 | H57: 0.5 | I57: 0.5 | J57: 0.5 | K57: 0.5 | L57: 0.5
B58: HORAS EXTRAS POR MÊS (PERCENTUAL 1)
D59: 0 | E59: 0 | F59: 0 | G59: 0 | H59: 0 | I59: 0 | J59: 0 | K59: 0 | L59: 0
B60: VALOR MENSAL DO ADICIONAL DE HORAS EXTRAS (PERCENTUAL 1) - POR POSTO
D61: =ROUND(D59*D57*D13/D19,2) -> 0 | E61: 0 | F61: 0 | G61: 0 | H61: 0 | I61: 0 | J61: 0 | K61: 0 | L61: 0
B62: INCIDÊNCIA (PERCENTUAL 2)
D63: 1 | E63: 1 | F63: 1 | G63: 1 | H63: 1 | I63: 1 | J63: 1 | K63: 1 | L63: 1
B64: HORAS EXTRAS POR MÊS (PERCENTUAL 2)
D65: 0 | E65: 0 | F65: 0 | G65: 0 | H65: 0 | I65: 0 | J65: 0 | K65: 0 | L65: 0
B66: VALOR MENSAL DO ADICIONAL DE HORAS EXTRAS (PERCENTUAL 2) - POR POSTO
D67: =ROUND(D65*D63*D13/D19,2) -> 0 | E67: 0 | F67: 0 | G67: 0 | H67: 0 | I67: 0 | J67: 0 | K67: 0 | L67: 0
B68: TOTAL MENSAL DOS ADICIONAIS DE HORAS EXTRAS - POR POSTO
D69: =D67+D61 -> 0 | E69: 0 | F69: 0 | G69: 0 | H69: 0 | I69: 0 | J69: 0 | K69: 0 | L69: 0
B71: BENEFÍCIOS COMUNS - AUXÍLIO TRANSPORTE
B73: DISTRIBUIÇÃO ESTIMADA DE PROCEDÊNCIA
C74: Cidade-satélite | D74: 0.68 | E74: 0.68 | F74: 0.68 | G74: 0.68 | H74: 0.68 | I74: 0.68 | J74: 0.68 | K74: 0.68 | L74: 0.68
C75: Região do entorno | D75: 0.32 | E75: 0.32 | F75: 0.32 | G75: 0.32 | H75: 0.32 | I75: 0.32 | J75: 0.32 | K75: 0.32 | L75: 0.32
C76: Esplanada - apenas para os que vêm do entorno | D76: =D75 -> 0.32 | E76: 0.32 | F76: 0.32 | G76: 0.32 | H76: 0.32 | I76: 0.32 | J76: 0.32 | K76: 0.32 | L76: 0.32
B77: VALORES DOS VALES
C78: Cidade-satélite | D78: 5.5 | E78: =D78 -> 5.5 | F78: 5.5 | G78: 5.5 | H78: 5.5 | I78: 5.5 | J78: 5.5 | K78: 5.5 | L78: 5.5
C79: Região do entorno | D79: 7.05 | E79: 7.05 | F79: 7.05 | G79: 7.05 | H79: 7.05 | I79: 7.05 | J79: 7.05 | K79: 7.05 | L79: 7.05
C80: Esplanada | D80: 2.75 | E80: 2.75 | F80: 2.75 | G80: 2.75 | H80: 2.75 | I80: 2.75 | J80: 2.75 | K80: 2.75 | L80: 2.75
B81: VALOR MENSAL BRUTO DE PAGAMENTO - POR POSTO
D82: =ROUND((D74*D78+D75*D79+D76*D80)*2*D18,2) -> 302.54 | E82: 302.54 | F82: 302.54 | G82: 302.54 | H82: 178.78 | I82: 302.54 | J82: 302.54 | K82: 178.78 | L82: 233.78
B83: PERCENTUAL DE DESCONTO
D84: 0.06 | E84: =D84 -> 0.06 | F84: 0.06 | G84: 0.06 | H84: 0.06 | I84: 0.06 | J84: 0.06 | K84: 0.06 | L84: 0.06
B85: VALOR MENSAL DO DESCONTO - POR POSTO
D86: =ROUND(D84*D13,2) -> 777.25 | E86: 555.18 | F86: 533.65 | G86: 350.7 | H86: 210.42 | I86: 299.79 | J86: 291.36 | K86: 174.82 | L86: 207.28
B87: VALOR MENSAL LÍQUIDO DO VALE TRANSPORTE - POR POSTO
D88: =IF(D82>D86,D82-D86,0) -> 0 | E88: 0 | F88: 0 | G88: 0 | H88: 0 | I88: 2.75 | J88: 11.18 | K88: 3.96 | L88: 26.5
D89: =D88*D15 -> 0 | E89: =E88*E15 -> 0 | F89: =F88*F15 -> 0 | G89: =G88*G15 -> 0
B90: BENEFÍCIOS COMUNS - AUXÍLIO ALIMENTAÇÃO
C92: VALOR CCT | D92: 38.72 | E92: =D92 -> 38.72 | F92: 38.72 | G92: 38.72 | H92: 38.72 | I92: 38.72 | J92: 38.72 | K92: 38.72 | L92: 38.72
C93: VALOR CD | D93: 35 | E93: 35 | F93: 35 | G93: 35 | H93: 35 | I93: 35 | J93: 35 | K93: 35 | L93: 35
B94: VALOR MENSAL DO AUXÍLIO ALIMENTAÇÃO - POR POSTO
D95: =ROUND(LARGE(D92:D93,1)*D18,2) -> 851.84 | E95: 851.84 | F95: 851.84 | G95: 851.84 | H95: 503.36 | I95: 851.84 | J95: 851.84 | K95: =ROUND(LARGE(K92:K93,1)*K18,2) -> 503.36 | L95: 658.24
D96: =D95*D15 -> 1703.68 | E96: =E95*E15 -> 2555.52 | F96: =F95*F15 -> 1703.68 | G96: =G95*G15 -> 20444.16
B97: BENEFÍCIOS ESPECIAIS - ASSISTÊNCIA MÉDICA E FAMILIAR
C99: OBRIGAÇÃO DE PAGTO | D99: NÃO | E99: NÃO | F99: NÃO | G99: NÃO | H99: NÃO | I99: NÃO | J99: NÃO | K99: NÃO | L99: NÃO
C100: VALOR CCT | D100: 0 | E100: 0 | F100: 0 | G100: 0 | H100: 0 | I100: 0 | J100: 0 | K100: 0 | L100: 0
C101: VALOR MERCADO | D101: 0 | E101: 0 | F101: 0 | G101: 0 | H101: 0 | I101: 0 | J101: 0 | K101: 0 | L101: 0
B102: VALOR MENSAL DO AUXÍLIO ESPECIAL - ASSISTÊNCIA MÉDICA E FAMILIAR - POR POSTO
D103: =IF(D99="SIM",ROUND(SMALL(D100:D101,1),2),0) -> 0 | E103: 0 | F103: 0 | G103: 0 | H103: 0 | I103: 0 | J103: 0 | K103: 0 | L103: 0
B105: BENEFÍCIOS ESPECIAIS - SEGURO DE VIDA E AUXÍLIO-FUNERAL, AUX ODONT, AUX CRECHE
B107: SEGURO DE VIDA E AUXÍLIO FUNERAL
C108: OBRIGAÇÃO DE PAGTO | D108: SIM | E108: SIM | F108: SIM | G108: SIM | H108: SIM | I108: SIM | J108: SIM | K108: SIM | L108: SIM
C109: VALOR CCT | D109: 3 | E109: =D109 -> 3 | F109: 3 | G109: 3 | H109: 3 | I109: 3 | J109: 3 | K109: 3 | L109: 3
C110: VALOR MERCADO | D110: 18.4 | E110: 18.4 | F110: 18.4 | G110: 18.4 | H110: 18.4 | I110: 18.4 | J110: 18.4 | K110: 18.4 | L110: 18.4
B111: VALOR MENSAL DO AUXÍLIO ESPECIAL - SEGURO DE VIDA E AUXÍLIO FUNERAL - POR POSTO
D112: =IF(D108="SIM",ROUND(SMALL(D109:D110,1),2),0) -> 3 | E112: 3 | F112: 3 | G112: 3 | H112: 3 | I112: 3 | J112: 3 | K112: 3 | L112: 3
B113: AUXÍLIO ODONTOLÓGICO
C114: OBRIGAÇÃO DE PAGTO | D114: NÃO | E114: NÃO | F114: NÃO | G114: NÃO | H114: NÃO | I114: NÃO | J114: NÃO | K114: NÃO | L114: NÃO
C115: VALOR CCT | D115: 0 | E115: 0 | F115: 0 | G115: 0 | H115: 0 | I115: 0 | J115: 0 | K115: 0 | L115: 0
C116: VALOR MERCADO | D116: 0 | E116: 0 | F116: 0 | G116: 0 | H116: 0 | I116: 0 | J116: 0 | K116: 0 | L116: 0
B117: VALOR MENSAL DO AUXÍLIO ESPECIAL - AUXILIO ODONTOLOGICO - POR POSTO
D118: =IF(D114="SIM",ROUND(SMALL(D115:D116,1),2),0) -> 0 | E118: 0 | F118: 0 | G118: 0 | H118: 0 | I118: 0 | J118: 0 | K118: 0 | L118: 0
B119: REEMBOLSO CRECHE
C120: OBRIGAÇÃO DE PAGTO | D120: SIM | E120: SIM | F120: SIM | G120: SIM | H120: SIM | I120: SIM | J120: SIM | K120: SIM | L120: SIM
C121: VALOR CCT
C122: VALOR CALCULADO - % MULHERES 50% - % PESSOAS COM CRIANCAS ATE 6A - 20% | D122: =494.06*0.5*0.2 -> 49.406 | E122: =494.06*0.5*0.2 -> 49.406 | F122: 49.406 | G122: 49.406 | H122: 49.406 | I122: 49.406 | J122: 49.406 | K122: 49.406 | L122: 49.406
B123: VALOR MENSAL DO AUXÍLIO ESPECIAL - REEMBOLSO CRECHE - POR POSTO
D124: =IF(D120="SIM",ROUND(SMALL(D121:D122,1),2),0) -> 49.41 | E124: 49.41 | F124: 49.41 | G124: 49.41 | H124: 49.41 | I124: 49.41 | J124: 49.41 | K124: 49.41 | L124: 49.41
B125: AUXÍLIO VESTUÁRIO ESPECIAL
C126: OBRIGAÇÃO DE PAGTO | D126: SIM | E126: SIM | F126: SIM | G126: SIM | H126: SIM | I126: SIM | J126: SIM | K126: SIM | L126: NÃO
C127: VALOR CCT | D127: =1014.25/6 -> 169.0416667 | E127: 169.0416667 | F127: =1014.25/6 -> 169.0416667 | G127: =1014.25/6 -> 169.0416667 | H127: 169.0416667 | I127: 169.0416667 | J127: 169.0416667 | K127: 169.0416667 | L127: 169.0416667
C128: VALOR MERCADO
B129: VALOR MENSAL DO AUXÍLIO ESPECIAL - VESTUTUÁRIO - POR POSTO
D130: =IF(D126="SIM",ROUND(SMALL(D127:D128,1),2),0) -> 169.04 | E130: 169.04 | F130: 169.04 | G130: 169.04 | H130: 169.04 | I130: 169.04 | J130: =IF(J126="SIM",ROUND(SMALL(J127:J128,1),2),0) -> 169.04 | K130: =IF(K126="SIM",ROUND(SMALL(K127:K128,1),2),0) -> 169.04 | L130: 0
B131: TOTAL MENSAL DOS AUXÍLIOS ESPECIAIS - POR POSTO
D132: =+D112+D118+D124+D130 -> 221.45 | E132: =+E112+E118+E124+E130 -> 221.45 | F132: =+F112+F118+F124+F130 -> 221.45 | G132: 221.45 | H132: 221.45 | I132: 221.45 | J132: 221.45 | K132: 221.45 | L132: 52.41
D136: =D95+D88 -> 851.84 | E136: 851.84 | F136: 851.84 | G136: 851.84 | H136: 503.36 | I136: 854.59 | J136: 863.02 | K136: 507.32 | L136: 684.74

Sheet Encargos Sociais
B4: ENCARGOS SOCIAIS SOBRE A MÃO DE OBRA
E5: Percentuais
B7: Referência:
C8: SINAPI OUT/2018
B10: Categorias:
C11: TODAS
B13: GRUPO A: Encargos Sociais Básicos - Previdenciários (GPS), Fundo de Garantia por Tempo de Serviço (FGTS) e Outras Contribuições | E13: =ROUND(SUM(E14:E22),4) -> 0.348
C14: A | D14: INSS (art. 22, inciso I, Lei nº 8.212/91) | E14: 0.2
C15: B | D15: Salário Educação (art. 3º, inciso I, Decreto nº 87.043/82) | E15: 0.025 | G15: * Nota 1 - Os percentuais dos encargos previdenciários, do FGTS e demais contribuições são estabelecidos por legislação vigente.
C16: C | D16: SAT/RAT (art. 22, II, Lei 8.212/91 e Anexo V, Decreto 6.042/07) - Enquadramento 3312-1/01/01 | E16: 0.01 | G16: * Nota 2 - O SAT, a depender do grau de risco do serviço, irá variar entre 1%, para risco leve, de 2%, para risco médio, e de 3% para risco grave.
C17: D | D17: SESC ou SESI (art. 30, Lei nº 8.036/90 e art. 1º, Lei 8.154/90) | E17: 0.015 | G17: * Nota 3 - Os percentuais do Submódulo 2.2 incidem sobre o Módulo 1, o Submódulo 2.1, o Módulo 3, o Módulo 4 e o Módulo 6.
C18: E | D18: SENAI ou SENAC (Decreto nº 2.318/86) | E18: 0.01
C19: F | D19: SEBRAE (§ 3º, art. 8º, Lei 8.029/90, alterada pela Lei nº 8.154/90) | E19: 0.006
C20: G | D20: INCRA (art. 1º, I, Decreto Lei 1.146/70 e Lei 7.787, de 30/06/89) | E20: 0.002
C21: H | D21: FGTS (Lei Complementar nº 110/01 e art. 30, Lei nº 8.036/90) | E21: 0.08
C22: I | D22: SECONCI (Convenções Coletivas de Trabalho da construção) | E22: 0
B24: GRUPO B: Encargos Sociais Relacionados ao Custo de Reposição do Profissional Ausente - Ausências Legais | E24: =ROUND(SUM(E25:E33),4) -> 0.1337
C25: A | D25: Férias (Arts. 129 e 130, inc. I, da CLT) | E25: =1/11*25% -> 0.02272727273 | G25: * Nota 1 - As alíneas “A” a “F” referem-se somente ao custo que será pago ao repositor pelos dias trabalhados quando da necessidade de substituir a mão de obra alocada na prestação do serviço.
C26: B | D26: Ausências Legais (Arts. 131 e 473 da CLT) | E26: =2/252 -> 0.007936507937 | G26: * Nota 2 - Adotou-se a estimativa do SINAPI de 2 dias por ano. Em 252 dias úteis por ano.
C27: C | D27: Licença-Paternidade (Art. 7º, XIX, e art. 10, §1º, do ADCT, CF/1988 e Art. 1º, II, da Lei 11.770/2008) | E27: =(5/(30*12))*0.0596 -> 0.0008277777778 | G27: * Nota 3 - Utilizada a proporção de 50% para homens, 5 dias de afastamento, e a probabilidade de um trabalhador requerer a Licença Paternidade em 5,96%, conforme SINAPI (Anuário Estatístico da Previdência Social - 2017)
C28: D | D28: Ausência por Acidente de Trabalho (Art. 131, III, da CLT) | E28: =0.0205*15/360 -> 0.0008541666667 | G28: * Nota 4 - Utilzada a estatística de 2,05% dos contribuintes beneficiados com a emissão do auxílio, conforme Anuário Estatístico da Previdência Social. Afastamento de 15 dias a cargo da empresa.
C29: E | D29: Afastamento Maternidade (Art. 71 da Lei nº 8.213/1991) | E29: =0.0508*(120/360)*(30+30*4/3)/360 -> 0.003292592593 | G29: * Nota 5 - Utilizada a estimativa de 120 dias de afastamento, e a probabilidade de uma trabalhadora requerer a Licença Maternidade em 5,08%, conforme SINAPI (citando dados do IBGE 2017) - A própria previdência paga o benefício pelos 120 dias, contudo o empregador arca com o 13º e com as férias
C30: F | D30: Auxílio Enfermidade - Doença (Art. 59 da Lei nº 8.213/1991) | E30: =((0.0376*15)+2)/360 -> 0.007122222222 | G30: * Nota 6 - Utilizada a estatística de 3,76% dos contribuintes beneficiados com o auxílio, conforme Anuário Estatístico da Previdência Social de 2016 (acrescidos de 2 dias ao ano, para os quais o trabalhador nem requer o benefício da Previdência - conforme SINAPI)
C31: G | D31: Adicional de Férias (componente do Submódulo 2.1) | E31: =1/3*1/11*25% -> 0.007575757576 | G31: * Nota 7 - O adicional de férias contido no Submódulo 2.1 corresponde a 1/3 da remuneração que, por sua vez, é dividida por 12 contome Nota 1.
C32: H | D32: 13º Salário (destacado na planilha de custos) | E32: =1/12 -> 0.08333333333 | G32: * Nota 8 - Provisiona-se, mensalmente, o proporcional a 1/12 dos valores referentes a gratificação natalina e adicional de férias.
C33: I | D33: Intervalo para repouso ou alimentação (componente do Submódulo 4.2) | E33: 0
B35: GRUPO C: Encargos Sociais Relacionados à Previsão para Rescisão Trabalhista | E35: =ROUND(SUM(E36:E41),4) -> 0.038
C36: A | D36: Aviso Prévio Indenizado (Art. 7º, inciso XXI, da CF/1988 e arts. 477, 487, §1º, e 491 da CLT) | E36: =0.1*30/360 -> 0.008333333333 | G36: * Nota 1 - Considerou-se demissões de 10% por ano para substituições, a um prazo estimado de contrato de 3 anos. Aviso prévio - 1º ano 30 dias. Considerou-se os 10% demitidos sem justa causa e recebendo aviso indenizado.
C37: B | D37: Incidência do FGTS sobre o Aviso Prévio Indenizado (Súmula 305 TST) | E37: =E21*E36 -> 0.0006666666667 | G37: * Nota 2 - No cálculo do percentual, considerou-se 36 dias, correspondendo à metade da duração média dos contratos (2 anos)
C38: C | D38: Multa do FGTS e Contribuição Social sobre o Aviso Prévio Indenizado (Art. 18, §1º, da Lei 8.036/1990 e art. 1º da LC nº 110/2001) | E38: =(1+1/12+1/12+1/36)*0.4*E21*0.1/3 -> 0.001274074074 | G38: * Nota 3 - Incide sobre a Remuneração + 13º salário (1/12) + Férias (1/12) + Adicional de Férias (1/36) x 40% multa para o empregador x 8% FGTS x 10% do pessoal, uma vez a cada 3 anos
C39: D | D39: Aviso Prévio Trabalhado (Art. 488, parágrafo único, CLT) | E39: =((7+2*3)*100%/360)/3 -> 0.01203703704 | G39: * Nota 3 - Considerou-se demissões de 100% ao final do contrato, com um prazo médio estimado de 3 anos. Assim, calcula-se 7 dias para o 1º ano de contrato e mais 3 dias para os 2 anos seguintes. Total 13 dias.
C40: E | D40: Incidência de GPS, FGTS e outras contribuições sobre o Aviso Prévio Trabalhado | E40: =E39*E13 -> 0.004188888889 | G40: * Nota 5 - Considerada a mesma previsão de 20,19% de demitidos sem justa causa, 30% dos funcionários acima dos 45 anos, e 30% destes com mais de 5 anos de empresa - custos distribuídos por 3 anos de contrato
C41: F | D41: Multa do FGTS e Contribuição Social sobre o Aviso Prévio Trabalhado | E41: =(1+1/12+1/12+1/36)*0.4*E21*0.9/3 -> 0.01146666667
B43: GRUPO D: Reincidências | E43: =ROUND(SUM(E44:E44),4) -> 0.0465
C44: A | D44: Reincidência do Grupo A sobre o Grupo B | E44: =E13*E24 -> 0.0465276
D46: SOMATÓRIO - ENCARGOS SOCIAIS SOBRE A MÃO DE OBRA | E46: =E43+E35+E24+E13 -> 0.5662

Sheet BDI - Geral
B4: COMPOSIÇÃO DA TAXA DE CUSTOS INDIRETOS, TRIBUTOS E LUCRO - BDI
B5: APLICAÇÃO: MÃO DE OBRA, 13º, MATERIAIS, EPC E EQUIPAMENTO DE REGISTRO DE FREQUÊNCIA | E5: Percentuais
B7: Custos Indiretos da Contratada | E7: =SUM(E8:E9) -> 0.0314
C8: A | D8: Administração Central | E8: 0.026 | G8: * Nota 1 - O Somatório da Administração Central com o Lucro deve ser inferior a 12%
C9: B | D9: Seguros, Garantias e Riscos | E9: =0.34%+0.2% -> 0.0054 | G9: * Nota 2 - O risco previsto para o porte do contrato majorado em mais 0,20% devido ao não pagamento dos insumos componentes do custo do posto quando da ausência do mesmo.
B11: Lucro | E11: =SUM(E12:E12) -> 0.04
C12: A | D12: Lucro Real sobre os Custos Administrados | E12: 0.04
B14: Despesas Financeiras | E14: =E15 -> 0.004861120438
C15: A | D15: Cálculo Baseado no Prazo para a Restituição dos Desembolsos Realizados pelo Contratado e na Taxa de Retorno Arbitrada | E15: =(1+E17)^(E16/252)-1 -> 0.004861120438 | G15: * Nota 1 - DF = [(1+TR)^(DU/252)]/100
C16: A.1 | D16: Dias Úteis Considerados | E16: 11 | G16: * Nota 2 - Diferença de dias entre o desembolso, pelo contratado, e o pagamento, pela Câmara
C17: A.2 | D17: Taxa de Retorno | E17: 0.1175 | G17: * Nota 3 - A taxa sugerida é a meta da SELIC
B19: Impostos - Tributos Federais | E19: =SUM(E20:E22) -> 0.074
C20: A | D20: Contribuição para o Financiamento da Seguridade Social - COFINS | E20: =0.8*7.6% -> 0.0608 | G20: * Nota 1 - Redução de 20% considerando as deduções permitidas em Lei, conforme SENGE, citado pelo TCU - Acórdão 2622/2013
C21: B | D21: Programa de Integração Social - PIS | E21: =0.8*1.65% -> 0.0132 | G21: * Nota 2 - Redução de 20% considerando as deduções permitidas em Lei, conforme SENGE, citado pelo TCU - Acórdão 2622/2013
C22: C | D22: Contribuição Previdenciária sobre a Receita Bruta - CPRB | E22: 0 | G22: * Nota 3 - Lei 12.546/2011 - Verificar atualizações e setores beneficiados
B24: Impostos - Tributos Distritais | E24: =SUM(E25:E25) -> 0.05
C25: A | D25: Imposto sobre Serviço de Qualquer Natureza - ISS | E25: 0.05
D27: SOMATÓRIO - BDI | E27: =ROUND((((1+E7)*(1+E11)*(1+E14)/(1-E19-E24))-1),4) -> 0.2304 | G27: * Nota 1 - [(1+AC+SGR)*(1+L)*(1+DF)/(1-CONFINS-PIS-CPRB-ISS)]-1

Sheet Uniformes
B4: UNIFORMES - AQUISIÇÃO | K4: 1 | M4: =K4+1 -> 2 | O4: =M4+1 -> 3 | Q4: =O4+1 -> 4 | S4: =Q4+1 -> 5 | U4: =S4+1 -> 6 | W4: =U4+1 -> 7 | Y4: =W4+1 -> 8 | AA4: =Y4+1 -> 9 | AC4: =AA4+1 -> 10 | AE4: =AC4+1 -> 11 | AG4: =AE4+1 -> 12 | AI4: =AG4+1 -> 13 | AK4: =AI4+1 -> 14 | AM4: =AK4+1 -> 15 | AO4: =AM4+1 -> 16 | AQ4: =AO4+1 -> 17 | AS4: =AQ4+1 -> 18 | AU4: =AS4+1 -> 19 | AW4: =AU4+1 -> 20 | AY4: =AW4+1 -> 21 | BA4: =AY4+1 -> 22 | BC4: =BA4+1 -> 23 | BE4: =BC4+1 -> 24 | BG4: =BE4+1 -> 25 | BI4: =BG4+1 -> 26 | BK4: =BI4+1 -> 27 | BM4: =BK4+1 -> 28 | BO4: =BM4+1 -> 29 | BQ4: =BO4+1 -> 30 | BS4: =BQ4+1 -> 31 | BU4: =BS4+1 -> 32 | BW4: =BU4+1 -> 33 | BY4: =BW4+1 -> 34 | CA4: =BY4+1 -> 35 | CC4: =CA4+1 -> 36 | CE4: =CC4+1 -> 37 | CG4: =CE4+1 -> 38 | CI4: =CG4+1 -> 39 | CK4: =CI4+1 -> 40 | CM4: =CK4+1 -> 41 | CO4: =CM4+1 -> 42 | CQ4: =CO4+1 -> 43 | CS4: =CQ4+1 -> 44 | CU4: =CS4+1 -> 45 | CW4: =CU4+1 -> 46 | CY4: =CW4+1 -> 47 | DA4: =CY4+1 -> 48 | DC4: =DA4+1 -> 49 | DE4: =DC4+1 -> 50 | DG4: =DE4+1 -> 51 | DI4: =DG4+1 -> 52 | DK4: =DI4+1 -> 53 | DM4: =DK4+1 -> 54 | DO4: =DM4+1 -> 55 | DQ4: =DO4+1 -> 56 | DS4: =DQ4+1 -> 57 | DU4: =DS4+1 -> 58 | DW4: =DU4+1 -> 59 | DY4: =DW4+1 -> 60
K6: =ROUND(SUM(L5:L40),2) -> 0 | M6: =ROUND(SUM(N5:N40),2) -> 0 | O6: =ROUND(SUM(P5:P40),2) -> 0 | Q6: =ROUND(SUM(R5:R40),2) -> 0 | S6: =ROUND(SUM(T5:T40),2) -> 0 | U6: =ROUND(SUM(V5:V40),2) -> 0 | W6: =ROUND(SUM(X5:X40),2) -> 0 | Y6: =ROUND(SUM(Z5:Z40),2) -> 0 | AA6: =ROUND(SUM(AB5:AB40),2) -> 983.08 | AC6: =ROUND(SUM(AD5:AD40),2) -> 0 | AE6: =ROUND(SUM(AF5:AF40),2) -> 0 | AG6: =ROUND(SUM(AH5:AH40),2) -> 0 | AI6: =ROUND(SUM(AJ5:AJ40),2) -> 0 | AK6: =ROUND(SUM(AL5:AL40),2) -> 0 | AM6: =ROUND(SUM(AN5:AN40),2) -> 0 | AO6: =ROUND(SUM(AP5:AP40),2) -> 0 | AQ6: =ROUND(SUM(AR5:AR40),2) -> 0 | AS6: =ROUND(SUM(AT5:AT40),2) -> 0 | AU6: =ROUND(SUM(AV5:AV40),2) -> 0 | AW6: =ROUND(SUM(AX5:AX40),2) -> 0 | AY6: =ROUND(SUM(AZ5:AZ40),2) -> 0 | BA6: =ROUND(SUM(BB5:BB40),2) -> 0 | BC6: =ROUND(SUM(BD5:BD40),2) -> 0 | BE6: =ROUND(SUM(BF5:BF40),2) -> 0 | BG6: =ROUND(SUM(BH5:BH40),2) -> 0 | BI6: =ROUND(SUM(BJ5:BJ40),2) -> 0 | BK6: =ROUND(SUM(BL5:BL40),2) -> 0 | BM6: =ROUND(SUM(BN5:BN40),2) -> 0 | BO6: =ROUND(SUM(BP5:BP40),2) -> 0 | BQ6: =ROUND(SUM(BR5:BR40),2) -> 0 | BS6: =ROUND(SUM(BT5:BT40),2) -> 0 | BU6: =ROUND(SUM(BV5:BV40),2) -> 0 | BW6: =ROUND(SUM(BX5:BX40),2) -> 0 | BY6: =ROUND(SUM(BZ5:BZ40),2) -> 0 | CA6: =ROUND(SUM(CB5:CB40),2) -> 0 | CC6: =ROUND(SUM(CD5:CD40),2) -> 0 | CE6: =ROUND(SUM(CF5:CF40),2) -> 0 | CG6: =ROUND(SUM(CH5:CH40),2) -> 0 | CI6: =ROUND(SUM(CJ5:CJ40),2) -> 0 | CK6: =ROUND(SUM(CL5:CL40),2) -> 0 | CM6: =ROUND(SUM(CN5:CN40),2) -> 0 | CO6: =ROUND(SUM(CP5:CP40),2) -> 0 | CQ6: =ROUND(SUM(CR5:CR40),2) -> 0 | CS6: =ROUND(SUM(CT5:CT40),2) -> 0 | CU6: =ROUND(SUM(CV5:CV40),2) -> 0 | CW6: =ROUND(SUM(CX5:CX40),2) -> 0 | CY6: =ROUND(SUM(CZ5:CZ40),2) -> 0 | DA6: =ROUND(SUM(DB5:DB40),2) -> 0 | DC6: =ROUND(SUM(DD5:DD40),2) -> 0 | DE6: =ROUND(SUM(DF5:DF40),2) -> 0 | DG6: =ROUND(SUM(DH5:DH40),2) -> 0 | DI6: =ROUND(SUM(DJ5:DJ40),2) -> 0 | DK6: =ROUND(SUM(DL5:DL40),2) -> 0 | DM6: =ROUND(SUM(DN5:DN40),2) -> 0 | DO6: =ROUND(SUM(DP5:DP40),2) -> 0 | DQ6: =ROUND(SUM(DR5:DR40),2) -> 0 | DS6: =ROUND(SUM(DT5:DT40),2) -> 0 | DU6: =ROUND(SUM(DV5:DV40),2) -> 0 | DW6: =ROUND(SUM(DX5:DX40),2) -> 0 | DY6: =ROUND(SUM(DZ5:DZ40),2) -> 0
C7: CATEGORIAS | H7: QUANTIDADE
C9: 9 | D9: =HLOOKUP($C9,'Dados Gerais'!$D$6:$L$11,6) -> OPERADOR DE TRANSMISSOR – Rádio e TV - 24H | H9: =HLOOKUP($C9,'Dados Gerais'!$D$6:$L$15,10) -> 5 | K9: =IF($C9=K$4,1,0) -> 0 | M9: =IF($C9=M$4,1,0) -> 0 | O9: =IF($C9=O$4,1,0) -> 0 | Q9: =IF($C9=Q$4,1,0) -> 0 | S9: =IF($C9=S$4,1,0) -> 0 | U9: =IF($C9=U$4,1,0) -> 0 | W9: =IF($C9=W$4,1,0) -> 0 | Y9: =IF($C9=Y$4,1,0) -> 0 | AA9: =IF($C9=AA$4,1,0) -> 1 | AC9: =IF($C9=AC$4,1,0) -> 0 | AE9: =IF($C9=AE$4,1,0) -> 0 | AG9: =IF($C9=AG$4,1,0) -> 0 | AI9: =IF($C9=AI$4,1,0) -> 0 | AK9: =IF($C9=AK$4,1,0) -> 0 | AM9: =IF($C9=AM$4,1,0) -> 0 | AO9: =IF($C9=AO$4,1,0) -> 0 | AQ9: =IF($C9=AQ$4,1,0) -> 0 | AS9: =IF($C9=AS$4,1,0) -> 0 | AU9: =IF($C9=AU$4,1,0) -> 0 | AW9: =IF($C9=AW$4,1,0) -> 0 | AY9: =IF($C9=AY$4,1,0) -> 0 | BA9: =IF($C9=BA$4,1,0) -> 0 | BC9: =IF($C9=BC$4,1,0) -> 0 | BE9: =IF($C9=BE$4,1,0) -> 0 | BG9: =IF($C9=BG$4,1,0) -> 0 | BI9: =IF($C9=BI$4,1,0) -> 0 | BK9: =IF($C9=BK$4,1,0) -> 0 | BM9: =IF($C9=BM$4,1,0) -> 0 | BO9: =IF($C9=BO$4,1,0) -> 0 | BQ9: =IF($C9=BQ$4,1,0) -> 0 | BS9: =IF($C9=BS$4,1,0) -> 0 | BU9: =IF($C9=BU$4,1,0) -> 0 | BW9: =IF($C9=BW$4,1,0) -> 0 | BY9: =IF($C9=BY$4,1,0) -> 0 | CA9: =IF($C9=CA$4,1,0) -> 0 | CC9: =IF($C9=CC$4,1,0) -> 0 | CE9: =IF($C9=CE$4,1,0) -> 0 | CG9: =IF($C9=CG$4,1,0) -> 0 | CI9: =IF($C9=CI$4,1,0) -> 0 | CK9: =IF($C9=CK$4,1,0) -> 0 | CM9: =IF($C9=CM$4,1,0) -> 0 | CO9: =IF($C9=CO$4,1,0) -> 0 | CQ9: =IF($C9=CQ$4,1,0) -> 0 | CS9: =IF($C9=CS$4,1,0) -> 0 | CU9: =IF($C9=CU$4,1,0) -> 0 | CW9: =IF($C9=CW$4,1,0) -> 0 | CY9: =IF($C9=CY$4,1,0) -> 0 | DA9: =IF($C9=DA$4,1,0) -> 0 | DC9: =IF($C9=DC$4,1,0) -> 0 | DE9: =IF($C9=DE$4,1,0) -> 0 | DG9: =IF($C9=DG$4,1,0) -> 0 | DI9: =IF($C9=DI$4,1,0) -> 0 | DK9: =IF($C9=DK$4,1,0) -> 0 | DM9: =IF($C9=DM$4,1,0) -> 0 | DO9: =IF($C9=DO$4,1,0) -> 0 | DQ9: =IF($C9=DQ$4,1,0) -> 0 | DS9: =IF($C9=DS$4,1,0) -> 0 | DU9: =IF($C9=DU$4,1,0) -> 0 | DW9: =IF($C9=DW$4,1,0) -> 0 | DY9: =IF($C9=DY$4,1,0) -> 0
C12: ITEM | D12: DESCRIÇÃO | E12: QUANT ANUAL POR POSTO | F12: Nº DE POSTOS | G12: QUANT ANUAL TOTAL | H12: VALOR
C14: U.008 | D14: Camisa social com manga comprida em poliéster na cor cinza | E14: 4 | F14: =SUM(H8:H10) -> 5 | G14: =E14*F14 -> 20 | H14: 66.3 | L14: =IF(SUM(K$9:K$11)>0,$E14*$H14,0) -> 0 | N14: =IF(SUM(M$9:M$11)>0,$E14*$H14,0) -> 0 | P14: =IF(SUM(O$9:O$11)>0,$E14*$H14,0) -> 0 | R14: =IF(SUM(Q$9:Q$11)>0,$E14*$H14,0) -> 0 | T14: =IF(SUM(S$9:S$11)>0,$E14*$H14,0) -> 0 | V14: =IF(SUM(U$9:U$11)>0,$E14*$H14,0) -> 0 | X14: =IF(SUM(W$9:W$11)>0,$E14*$H14,0) -> 0 | Z14: =IF(SUM(Y$9:Y$11)>0,$E14*$H14,0) -> 0 | AB14: =IF(SUM(AA$9:AA$11)>0,$E14*$H14,0) -> 265.2 | AD14: =IF(SUM(AC$9:AC$11)>0,$E14*$H14,0) -> 0 | AF14: =IF(SUM(AE$9:AE$11)>0,$E14*$H14,0) -> 0 | AH14: =IF(SUM(AG$9:AG$11)>0,$E14*$H14,0) -> 0 | AJ14: =IF(SUM(AI$9:AI$11)>0,$E14*$H14,0) -> 0 | AL14: =IF(SUM(AK$9:AK$11)>0,$E14*$H14,0) -> 0 | AN14: =IF(SUM(AM$9:AM$11)>0,$E14*$H14,0) -> 0 | AP14: =IF(SUM(AO$9:AO$11)>0,$E14*$H14,0) -> 0 | AR14: =IF(SUM(AQ$9:AQ$11)>0,$E14*$H14,0) -> 0 | AT14: =IF(SUM(AS$9:AS$11)>0,$E14*$H14,0) -> 0 | AV14: =IF(SUM(AU$9:AU$11)>0,$E14*$H14,0) -> 0 | AX14: =IF(SUM(AW$9:AW$11)>0,$E14*$H14,0) -> 0 | AZ14: =IF(SUM(AY$9:AY$11)>0,$E14*$H14,0) -> 0 | BB14: =IF(SUM(BA$9:BA$11)>0,$E14*$H14,0) -> 0 | BD14: =IF(SUM(BC$9:BC$11)>0,$E14*$H14,0) -> 0 | BF14: =IF(SUM(BE$9:BE$11)>0,$E14*$H14,0) -> 0 | BH14: =IF(SUM(BG$9:BG$11)>0,$E14*$H14,0) -> 0 | BJ14: =IF(SUM(BI$9:BI$11)>0,$E14*$H14,0) -> 0 | BL14: =IF(SUM(BK$9:BK$11)>0,$E14*$H14,0) -> 0 | BN14: =IF(SUM(BM$9:BM$11)>0,$E14*$H14,0) -> 0 | BP14: =IF(SUM(BO$9:BO$11)>0,$E14*$H14,0) -> 0 | BR14: =IF(SUM(BQ$9:BQ$11)>0,$E14*$H14,0) -> 0 | BT14: =IF(SUM(BS$9:BS$11)>0,$E14*$H14,0) -> 0 | BV14: =IF(SUM(BU$9:BU$11)>0,$E14*$H14,0) -> 0 | BX14: =IF(SUM(BW$9:BW$11)>0,$E14*$H14,0) -> 0 | BZ14: =IF(SUM(BY$9:BY$11)>0,$E14*$H14,0) -> 0 | CB14: =IF(SUM(CA$9:CA$11)>0,$E14*$H14,0) -> 0 | CD14: =IF(SUM(CC$9:CC$11)>0,$E14*$H14,0) -> 0 | CF14: =IF(SUM(CE$9:CE$11)>0,$E14*$H14,0) -> 0 | CH14: =IF(SUM(CG$9:CG$11)>0,$E14*$H14,0) -> 0 | CJ14: =IF(SUM(CI$9:CI$11)>0,$E14*$H14,0) -> 0 | CL14: =IF(SUM(CK$9:CK$11)>0,$E14*$H14,0) -> 0 | CN14: =IF(SUM(CM$9:CM$11)>0,$E14*$H14,0) -> 0 | CP14: =IF(SUM(CO$9:CO$11)>0,$E14*$H14,0) -> 0 | CR14: =IF(SUM(CQ$9:CQ$11)>0,$E14*$H14,0) -> 0 | CT14: =IF(SUM(CS$9:CS$11)>0,$E14*$H14,0) -> 0 | CV14: =IF(SUM(CU$9:CU$11)>0,$E14*$H14,0) -> 0 | CX14: =IF(SUM(CW$9:CW$11)>0,$E14*$H14,0) -> 0 | CZ14: =IF(SUM(CY$9:CY$11)>0,$E14*$H14,0) -> 0 | DB14: =IF(SUM(DA$9:DA$11)>0,$E14*$H14,0) -> 0 | DD14: =IF(SUM(DC$9:DC$11)>0,$E14*$H14,0) -> 0 | DF14: =IF(SUM(DE$9:DE$11)>0,$E14*$H14,0) -> 0 | DH14: =IF(SUM(DG$9:DG$11)>0,$E14*$H14,0) -> 0 | DJ14: =IF(SUM(DI$9:DI$11)>0,$E14*$H14,0) -> 0 | DL14: =IF(SUM(DK$9:DK$11)>0,$E14*$H14,0) -> 0 | DN14: =IF(SUM(DM$9:DM$11)>0,$E14*$H14,0) -> 0 | DP14: =IF(SUM(DO$9:DO$11)>0,$E14*$H14,0) -> 0 | DR14: =IF(SUM(DQ$9:DQ$11)>0,$E14*$H14,0) -> 0 | DT14: =IF(SUM(DS$9:DS$11)>0,$E14*$H14,0) -> 0 | DV14: =IF(SUM(DU$9:DU$11)>0,$E14*$H14,0) -> 0 | DX14: =IF(SUM(DW$9:DW$11)>0,$E14*$H14,0) -> 0 | DZ14: =IF(SUM(DY$9:DY$11)>0,$E14*$H14,0) -> 0
C15: U.009 | D15: Guarda-pó manga curta em poliéster na cor cinza | E15: 4 | F15: =F14 -> 5 | G15: 20 | H15: 47.9 | L15: 0 | N15: 0 | P15: 0 | R15: 0 | T15: 0 | V15: 0 | X15: 0 | Z15: 0 | AB15: 191.6 | AD15: 0 | AF15: 0 | AH15: 0 | AJ15: 0 | AL15: 0 | AN15: 0 | AP15: 0 | AR15: 0 | AT15: 0 | AV15: 0 | AX15: 0 | AZ15: 0 | BB15: 0 | BD15: 0 | BF15: 0 | BH15: 0 | BJ15: 0 | BL15: 0 | BN15: 0 | BP15: 0 | BR15: 0 | BT15: 0 | BV15: 0 | BX15: 0 | BZ15: 0 | CB15: 0 | CD15: 0 | CF15: 0 | CH15: 0 | CJ15: 0 | CL15: 0 | CN15: 0 | CP15: 0 | CR15: 0 | CT15: 0 | CV15: 0 | CX15: 0 | CZ15: 0 | DB15: 0 | DD15: 0 | DF15: 0 | DH15: 0 | DJ15: 0 | DL15: 0 | DN15: 0 | DP15: 0 | DR15: 0 | DT15: 0 | DV15: 0 | DX15: 0 | DZ15: 0
C16: U.003 | D16: Gravata preta | E16: 2 | F16: =F15 -> 5 | G16: 10 | H16: 19.47 | L16: 0 | N16: 0 | P16: 0 | R16: 0 | T16: 0 | V16: 0 | X16: 0 | Z16: 0 | AB16: 38.94 | AD16: 0 | AF16: 0 | AH16: 0 | AJ16: 0 | AL16: 0 | AN16: 0 | AP16: 0 | AR16: 0 | AT16: 0 | AV16: 0 | AX16: 0 | AZ16: 0 | BB16: 0 | BD16: 0 | BF16: 0 | BH16: 0 | BJ16: 0 | BL16: 0 | BN16: 0 | BP16: 0 | BR16: 0 | BT16: 0 | BV16: 0 | BX16: 0 | BZ16: 0 | CB16: 0 | CD16: 0 | CF16: 0 | CH16: 0 | CJ16: 0 | CL16: 0 | CN16: 0 | CP16: 0 | CR16: 0 | CT16: 0 | CV16: 0 | CX16: 0 | CZ16: 0 | DB16: 0 | DD16: 0 | DF16: 0 | DH16: 0 | DJ16: 0 | DL16: 0 | DN16: 0 | DP16: 0 | DR16: 0 | DT16: 0 | DV16: 0 | DX16: 0 | DZ16: 0
C17: U.004 | D17: Meia social, cano longo | E17: 4 | F17: =F16 -> 5 | G17: 20 | H17: 10.95 | L17: 0 | N17: 0 | P17: 0 | R17: 0 | T17: 0 | V17: 0 | X17: 0 | Z17: 0 | AB17: 43.8 | AD17: 0 | AF17: 0 | AH17: 0 | AJ17: 0 | AL17: 0 | AN17: 0 | AP17: 0 | AR17: 0 | AT17: 0 | AV17: 0 | AX17: 0 | AZ17: 0 | BB17: 0 | BD17: 0 | BF17: 0 | BH17: 0 | BJ17: 0 | BL17: 0 | BN17: 0 | BP17: 0 | BR17: 0 | BT17: 0 | BV17: 0 | BX17: 0 | BZ17: 0 | CB17: 0 | CD17: 0 | CF17: 0 | CH17: 0 | CJ17: 0 | CL17: 0 | CN17: 0 | CP17: 0 | CR17: 0 | CT17: 0 | CV17: 0 | CX17: 0 | CZ17: 0 | DB17: 0 | DD17: 0 | DF17: 0 | DH17: 0 | DJ17: 0 | DL17: 0 | DN17: 0 | DP17: 0 | DR17: 0 | DT17: 0 | DV17: 0 | DX17: 0 | DZ17: 0
C18: U.006 | D18: Sapato de couro preto com solado de borracha antiderrapante | E18: 4 | F18: =F17 -> 5 | G18: 20 | H18: 87.15 | L18: 0 | N18: 0 | P18: 0 | R18: 0 | T18: 0 | V18: 0 | X18: 0 | Z18: 0 | AB18: 348.6 | AD18: 0 | AF18: 0 | AH18: 0 | AJ18: 0 | AL18: 0 | AN18: 0 | AP18: 0 | AR18: 0 | AT18: 0 | AV18: 0 | AX18: 0 | AZ18: 0 | BB18: 0 | BD18: 0 | BF18: 0 | BH18: 0 | BJ18: 0 | BL18: 0 | BN18: 0 | BP18: 0 | BR18: 0 | BT18: 0 | BV18: 0 | BX18: 0 | BZ18: 0 | CB18: 0 | CD18: 0 | CF18: 0 | CH18: 0 | CJ18: 0 | CL18: 0 | CN18: 0 | CP18: 0 | CR18: 0 | CT18: 0 | CV18: 0 | CX18: 0 | CZ18: 0 | DB18: 0 | DD18: 0 | DF18: 0 | DH18: 0 | DJ18: 0 | DL18: 0 | DN18: 0 | DP18: 0 | DR18: 0 | DT18: 0 | DV18: 0 | DX18: 0 | DZ18: 0
C19: U.005 | D19: Cinto social em couro preto | E19: 2 | F19: =F18 -> 5 | G19: 10 | H19: 47.47 | L19: 0 | N19: 0 | P19: 0 | R19: 0 | T19: 0 | V19: 0 | X19: 0 | Z19: 0 | AB19: 94.94 | AD19: 0 | AF19: 0 | AH19: 0 | AJ19: 0 | AL19: 0 | AN19: 0 | AP19: 0 | AR19: 0 | AT19: 0 | AV19: 0 | AX19: 0 | AZ19: 0 | BB19: 0 | BD19: 0 | BF19: 0 | BH19: 0 | BJ19: 0 | BL19: 0 | BN19: 0 | BP19: 0 | BR19: 0 | BT19: 0 | BV19: 0 | BX19: 0 | BZ19: 0 | CB19: 0 | CD19: 0 | CF19: 0 | CH19: 0 | CJ19: 0 | CL19: 0 | CN19: 0 | CP19: 0 | CR19: 0 | CT19: 0 | CV19: 0 | CX19: 0 | CZ19: 0 | DB19: 0 | DD19: 0 | DF19: 0 | DH19: 0 | DJ19: 0 | DL19: 0 | DN19: 0 | DP19: 0 | DR19: 0 | DT19: 0 | DV19: 0 | DX19: 0 | DZ19: 0

Sheet EPI
B4: EQUIPAMENTOS DE PROTEÇÃO INDIVIDUAL - AQUISIÇÃO | K4: 1 | M4: =K4+1 -> 2 | O4: =M4+1 -> 3 | Q4: =O4+1 -> 4 | S4: =Q4+1 -> 5 | U4: =S4+1 -> 6 | W4: =U4+1 -> 7 | Y4: =W4+1 -> 8 | AA4: =Y4+1 -> 9 | AC4: =AA4+1 -> 10 | AE4: =AC4+1 -> 11 | AG4: =AE4+1 -> 12 | AI4: =AG4+1 -> 13 | AK4: =AI4+1 -> 14 | AM4: =AK4+1 -> 15 | AO4: =AM4+1 -> 16 | AQ4: =AO4+1 -> 17 | AS4: =AQ4+1 -> 18 | AU4: =AS4+1 -> 19 | AW4: =AU4+1 -> 20 | AY4: =AW4+1 -> 21 | BA4: =AY4+1 -> 22 | BC4: =BA4+1 -> 23 | BE4: =BC4+1 -> 24 | BG4: =BE4+1 -> 25 | BI4: =BG4+1 -> 26 | BK4: =BI4+1 -> 27 | BM4: =BK4+1 -> 28 | BO4: =BM4+1 -> 29 | BQ4: =BO4+1 -> 30 | BS4: =BQ4+1 -> 31 | BU4: =BS4+1 -> 32 | BW4: =BU4+1 -> 33 | BY4: =BW4+1 -> 34 | CA4: =BY4+1 -> 35 | CC4: =CA4+1 -> 36 | CE4: =CC4+1 -> 37 | CG4: =CE4+1 -> 38 | CI4: =CG4+1 -> 39 | CK4: =CI4+1 -> 40 | CM4: =CK4+1 -> 41 | CO4: =CM4+1 -> 42 | CQ4: =CO4+1 -> 43 | CS4: =CQ4+1 -> 44 | CU4: =CS4+1 -> 45 | CW4: =CU4+1 -> 46 | CY4: =CW4+1 -> 47 | DA4: =CY4+1 -> 48 | DC4: =DA4+1 -> 49 | DE4: =DC4+1 -> 50 | DG4: =DE4+1 -> 51 | DI4: =DG4+1 -> 52 | DK4: =DI4+1 -> 53 | DM4: =DK4+1 -> 54 | DO4: =DM4+1 -> 55 | DQ4: =DO4+1 -> 56 | DS4: =DQ4+1 -> 57 | DU4: =DS4+1 -> 58 | DW4: =DU4+1 -> 59 | DY4: =DW4+1 -> 60
K6: =ROUND(SUM(L8:L33),2) -> 0 | M6: =ROUND(SUM(N5:N34),2) -> 144.88 | O6: =ROUND(SUM(P5:P34),2) -> 0 | Q6: =ROUND(SUM(R5:R34),2) -> 0 | S6: =ROUND(SUM(T5:T34),2) -> 0 | U6: =ROUND(SUM(V5:V34),2) -> 0 | W6: =ROUND(SUM(X5:X34),2) -> 0 | Y6: =ROUND(SUM(Z5:Z34),2) -> 0 | AA6: =ROUND(SUM(AB5:AB34),2) -> 205.27 | AC6: =ROUND(SUM(AD5:AD34),2) -> 0 | AE6: =ROUND(SUM(AF5:AF34),2) -> 0 | AG6: =ROUND(SUM(AH5:AH34),2) -> 0 | AI6: =ROUND(SUM(AJ5:AJ34),2) -> 0 | AK6: =ROUND(SUM(AL5:AL34),2) -> 0 | AM6: =ROUND(SUM(AN5:AN34),2) -> 0 | AO6: =ROUND(SUM(AP5:AP34),2) -> 0 | AQ6: =ROUND(SUM(AR5:AR34),2) -> 0 | AS6: =ROUND(SUM(AT5:AT34),2) -> 0 | AU6: =ROUND(SUM(AV5:AV34),2) -> 0 | AW6: =ROUND(SUM(AX5:AX34),2) -> 0 | AY6: =ROUND(SUM(AZ5:AZ34),2) -> 0 | BA6: =ROUND(SUM(BB5:BB34),2) -> 0 | BC6: =ROUND(SUM(BD5:BD34),2) -> 0 | BE6: =ROUND(SUM(BF5:BF34),2) -> 0 | BG6: =ROUND(SUM(BH5:BH34),2) -> 0 | BI6: =ROUND(SUM(BJ5:BJ34),2) -> 0 | BK6: =ROUND(SUM(BL5:BL34),2) -> 0 | BM6: =ROUND(SUM(BN5:BN34),2) -> 0 | BO6: =ROUND(SUM(BP5:BP34),2) -> 0 | BQ6: =ROUND(SUM(BR5:BR34),2) -> 0 | BS6: =ROUND(SUM(BT5:BT34),2) -> 0 | BU6: =ROUND(SUM(BV5:BV34),2) -> 0 | BW6: =ROUND(SUM(BX5:BX34),2) -> 0 | BY6: =ROUND(SUM(BZ5:BZ34),2) -> 0 | CA6: =ROUND(SUM(CB5:CB34),2) -> 0 | CC6: =ROUND(SUM(CD5:CD34),2) -> 0 | CE6: =ROUND(SUM(CF5:CF34),2) -> 0 | CG6: =ROUND(SUM(CH5:CH34),2) -> 0 | CI6: =ROUND(SUM(CJ5:CJ34),2) -> 0 | CK6: =ROUND(SUM(CL5:CL34),2) -> 0 | CM6: =ROUND(SUM(CN5:CN34),2) -> 0 | CO6: =ROUND(SUM(CP5:CP34),2) -> 0 | CQ6: =ROUND(SUM(CR5:CR34),2) -> 0 | CS6: =ROUND(SUM(CT5:CT34),2) -> 0 | CU6: =ROUND(SUM(CV5:CV34),2) -> 0 | CW6: =ROUND(SUM(CX5:CX34),2) -> 0 | CY6: =ROUND(SUM(CZ5:CZ34),2) -> 0 | DA6: =ROUND(SUM(DB5:DB34),2) -> 0 | DC6: =ROUND(SUM(DD5:DD34),2) -> 0 | DE6: =ROUND(SUM(DF5:DF34),2) -> 0 | DG6: =ROUND(SUM(DH5:DH34),2) -> 0 | DI6: =ROUND(SUM(DJ5:DJ34),2) -> 0 | DK6: =ROUND(SUM(DL5:DL34),2) -> 0 | DM6: =ROUND(SUM(DN5:DN34),2) -> 0 | DO6: =ROUND(SUM(DP5:DP34),2) -> 0 | DQ6: =ROUND(SUM(DR5:DR34),2) -> 0 | DS6: =ROUND(SUM(DT5:DT34),2) -> 0 | DU6: =ROUND(SUM(DV5:DV34),2) -> 0 | DW6: =ROUND(SUM(DX5:DX34),2) -> 0 | DY6: =ROUND(SUM(DZ5:DZ34),2) -> 0
C7: CATEGORIAS | H7: QUANTIDADE
K8: =IF($C8=K$4,1,0) -> 0 | M8: =IF($C8=M$4,1,0) -> 0 | O8: =IF($C8=O$4,1,0) -> 0 | Q8: =IF($C8=Q$4,1,0) -> 0 | S8: =IF($C8=S$4,1,0) -> 0 | U8: =IF($C8=U$4,1,0) -> 0 | W8: =IF($C8=W$4,1,0) -> 0 | Y8: =IF($C8=Y$4,1,0) -> 0 | AA8: =IF($C8=AA$4,1,0) -> 0 | AC8: =IF($C8=AC$4,1,0) -> 0 | AE8: =IF($C8=AE$4,1,0) -> 0 | AG8: =IF($C8=AG$4,1,0) -> 0 | AI8: =IF($C8=AI$4,1,0) -> 0 | AK8: =IF($C8=AK$4,1,0) -> 0 | AM8: =IF($C8=AM$4,1,0) -> 0 | AO8: =IF($C8=AO$4,1,0) -> 0 | AQ8: =IF($C8=AQ$4,1,0) -> 0 | AS8: =IF($C8=AS$4,1,0) -> 0 | AU8: =IF($C8=AU$4,1,0) -> 0 | AW8: =IF($C8=AW$4,1,0) -> 0 | AY8: =IF($C8=AY$4,1,0) -> 0 | BA8: =IF($C8=BA$4,1,0) -> 0 | BC8: =IF($C8=BC$4,1,0) -> 0 | BE8: =IF($C8=BE$4,1,0) -> 0 | BG8: =IF($C8=BG$4,1,0) -> 0 | BI8: =IF($C8=BI$4,1,0) -> 0 | BK8: =IF($C8=BK$4,1,0) -> 0 | BM8: =IF($C8=BM$4,1,0) -> 0 | BO8: =IF($C8=BO$4,1,0) -> 0 | BQ8: =IF($C8=BQ$4,1,0) -> 0 | BS8: =IF($C8=BS$4,1,0) -> 0 | BU8: =IF($C8=BU$4,1,0) -> 0 | BW8: =IF($C8=BW$4,1,0) -> 0 | BY8: =IF($C8=BY$4,1,0) -> 0 | CA8: =IF($C8=CA$4,1,0) -> 0 | CC8: =IF($C8=CC$4,1,0) -> 0 | CE8: =IF($C8=CE$4,1,0) -> 0 | CG8: =IF($C8=CG$4,1,0) -> 0 | CI8: =IF($C8=CI$4,1,0) -> 0 | CK8: =IF($C8=CK$4,1,0) -> 0 | CM8: =IF($C8=CM$4,1,0) -> 0 | CO8: =IF($C8=CO$4,1,0) -> 0 | CQ8: =IF($C8=CQ$4,1,0) -> 0 | CS8: =IF($C8=CS$4,1,0) -> 0 | CU8: =IF($C8=CU$4,1,0) -> 0 | CW8: =IF($C8=CW$4,1,0) -> 0 | CY8: =IF($C8=CY$4,1,0) -> 0 | DA8: =IF($C8=DA$4,1,0) -> 0 | DC8: =IF($C8=DC$4,1,0) -> 0 | DE8: =IF($C8=DE$4,1,0) -> 0 | DG8: =IF($C8=DG$4,1,0) -> 0 | DI8: =IF($C8=DI$4,1,0) -> 0 | DK8: =IF($C8=DK$4,1,0) -> 0 | DM8: =IF($C8=DM$4,1,0) -> 0 | DO8: =IF($C8=DO$4,1,0) -> 0 | DQ8: =IF($C8=DQ$4,1,0) -> 0 | DS8: =IF($C8=DS$4,1,0) -> 0 | DU8: =IF($C8=DU$4,1,0) -> 0 | DW8: =IF($C8=DW$4,1,0) -> 0 | DY8: =IF($C8=DY$4,1,0) -> 0
C9: 2 | D9: =HLOOKUP($C9,'Dados Gerais'!$D$6:$L$11,6) -> SUPERVISOR TÉCNICO | H9: =HLOOKUP($C9,'Dados Gerais'!$D$6:$L$15,10) -> 3 | K9: =IF($C9=K$4,1,0) -> 0 | L9: =IF($C9=L$4,1,0) -> 0 | M9: =IF($C9=M$4,1,0) -> 1 | N9: =IF($C9=N$4,1,0) -> 0 | O9: =IF($C9=O$4,1,0) -> 0 | P9: =IF($C9=P$4,1,0) -> 0 | Q9: =IF($C9=Q$4,1,0) -> 0 | R9: =IF($C9=R$4,1,0) -> 0 | S9: =IF($C9=S$4,1,0) -> 0 | T9: =IF($C9=T$4,1,0) -> 0 | U9: =IF($C9=U$4,1,0) -> 0 | V9: =IF($C9=V$4,1,0) -> 0 | W9: =IF($C9=W$4,1,0) -> 0 | X9: =IF($C9=X$4,1,0) -> 0 | Y9: =IF($C9=Y$4,1,0) -> 0 | Z9: =IF($C9=Z$4,1,0) -> 0 | AA9: =IF($C9=AA$4,1,0) -> 0 | AB9: =IF($C9=AB$4,1,0) -> 0 | AC9: =IF($C9=AC$4,1,0) -> 0 | AD9: =IF($C9=AD$4,1,0) -> 0 | AE9: =IF($C9=AE$4,1,0) -> 0 | AF9: =IF($C9=AF$4,1,0) -> 0 | AG9: =IF($C9=AG$4,1,0) -> 0 | AH9: =IF($C9=AH$4,1,0) -> 0 | AI9: =IF($C9=AI$4,1,0) -> 0 | AJ9: =IF($C9=AJ$4,1,0) -> 0 | AK9: =IF($C9=AK$4,1,0) -> 0 | AL9: =IF($C9=AL$4,1,0) -> 0 | AM9: =IF($C9=AM$4,1,0) -> 0 | AN9: =IF($C9=AN$4,1,0) -> 0 | AO9: =IF($C9=AO$4,1,0) -> 0 | AP9: =IF($C9=AP$4,1,0) -> 0 | AQ9: =IF($C9=AQ$4,1,0) -> 0 | AR9: =IF($C9=AR$4,1,0) -> 0 | AS9: =IF($C9=AS$4,1,0) -> 0 | AT9: =IF($C9=AT$4,1,0) -> 0 | AU9: =IF($C9=AU$4,1,0) -> 0 | AV9: =IF($C9=AV$4,1,0) -> 0 | AW9: =IF($C9=AW$4,1,0) -> 0 | AX9: =IF($C9=AX$4,1,0) -> 0 | AY9: =IF($C9=AY$4,1,0) -> 0 | AZ9: =IF($C9=AZ$4,1,0) -> 0 | BA9: =IF($C9=BA$4,1,0) -> 0 | BB9: =IF($C9=BB$4,1,0) -> 0 | BC9: =IF($C9=BC$4,1,0) -> 0 | BD9: =IF($C9=BD$4,1,0) -> 0 | BE9: =IF($C9=BE$4,1,0) -> 0 | BF9: =IF($C9=BF$4,1,0) -> 0 | BG9: =IF($C9=BG$4,1,0) -> 0 | BH9: =IF($C9=BH$4,1,0) -> 0 | BI9: =IF($C9=BI$4,1,0) -> 0 | BJ9: =IF($C9=BJ$4,1,0) -> 0 | BK9: =IF($C9=BK$4,1,0) -> 0 | BL9: =IF($C9=BL$4,1,0) -> 0 | BM9: =IF($C9=BM$4,1,0) -> 0 | BN9: =IF($C9=BN$4,1,0) -> 0 | BO9: =IF($C9=BO$4,1,0) -> 0 | BP9: =IF($C9=BP$4,1,0) -> 0 | BQ9: =IF($C9=BQ$4,1,0) -> 0 | BR9: =IF($C9=BR$4,1,0) -> 0 | BS9: =IF($C9=BS$4,1,0) -> 0 | BT9: =IF($C9=BT$4,1,0) -> 0 | BU9: =IF($C9=BU$4,1,0) -> 0 | BV9: =IF($C9=BV$4,1,0) -> 0 | BW9: =IF($C9=BW$4,1,0) -> 0 | BX9: =IF($C9=BX$4,1,0) -> 0 | BY9: =IF($C9=BY$4,1,0) -> 0 | BZ9: =IF($C9=BZ$4,1,0) -> 0 | CA9: =IF($C9=CA$4,1,0) -> 0 | CB9: =IF($C9=CB$4,1,0) -> 0 | CC9: =IF($C9=CC$4,1,0) -> 0 | CD9: =IF($C9=CD$4,1,0) -> 0 | CE9: =IF($C9=CE$4,1,0) -> 0 | CF9: =IF($C9=CF$4,1,0) -> 0 | CG9: =IF($C9=CG$4,1,0) -> 0 | CH9: =IF($C9=CH$4,1,0) -> 0 | CI9: =IF($C9=CI$4,1,0) -> 0 | CJ9: =IF($C9=CJ$4,1,0) -> 0 | CK9: =IF($C9=CK$4,1,0) -> 0 | CL9: =IF($C9=CL$4,1,0) -> 0 | CM9: =IF($C9=CM$4,1,0) -> 0 | CN9: =IF($C9=CN$4,1,0) -> 0 | CO9: =IF($C9=CO$4,1,0) -> 0 | CP9: =IF($C9=CP$4,1,0) -> 0 | CQ9: =IF($C9=CQ$4,1,0) -> 0 | CR9: =IF($C9=CR$4,1,0) -> 0 | CS9: =IF($C9=CS$4,1,0) -> 0 | CT9: =IF($C9=CT$4,1,0) -> 0 | CU9: =IF($C9=CU$4,1,0) -> 0 | CV9: =IF($C9=CV$4,1,0) -> 0 | CW9: =IF($C9=CW$4,1,0) -> 0 | CX9: =IF($C9=CX$4,1,0) -> 0 | CY9: =IF($C9=CY$4,1,0) -> 0 | CZ9: =IF($C9=CZ$4,1,0) -> 0 | DA9: =IF($C9=DA$4,1,0) -> 0 | DB9: =IF($C9=DB$4,1,0) -> 0 | DC9: =IF($C9=DC$4,1,0) -> 0 | DD9: =IF($C9=DD$4,1,0) -> 0 | DE9: =IF($C9=DE$4,1,0) -> 0 | DF9: =IF($C9=DF$4,1,0) -> 0 | DG9: =IF($C9=DG$4,1,0) -> 0 | DH9: =IF($C9=DH$4,1,0) -> 0 | DI9: =IF($C9=DI$4,1,0) -> 0 | DJ9: =IF($C9=DJ$4,1,0) -> 0 | DK9: =IF($C9=DK$4,1,0) -> 0 | DL9: =IF($C9=DL$4,1,0) -> 0 | DM9: =IF($C9=DM$4,1,0) -> 0 | DN9: =IF($C9=DN$4,1,0) -> 0 | DO9: =IF($C9=DO$4,1,0) -> 0 | DP9: =IF($C9=DP$4,1,0) -> 0 | DQ9: =IF($C9=DQ$4,1,0) -> 0 | DR9: =IF($C9=DR$4,1,0) -> 0 | DS9: =IF($C9=DS$4,1,0) -> 0 | DT9: =IF($C9=DT$4,1,0) -> 0 | DU9: =IF($C9=DU$4,1,0) -> 0 | DV9: =IF($C9=DV$4,1,0) -> 0 | DW9: =IF($C9=DW$4,1,0) -> 0 | DX9: =IF($C9=DX$4,1,0) -> 0 | DY9: =IF($C9=DY$4,1,0) -> 0 | DZ9: =IF($C9=DZ$4,1,0) -> 0
K10: =IF($C10=K$4,1,0) -> 0 | M10: =IF($C10=M$4,1,0) -> 0 | O10: =IF($C10=O$4,1,0) -> 0 | Q10: =IF($C10=Q$4,1,0) -> 0 | S10: =IF($C10=S$4,1,0) -> 0 | U10: =IF($C10=U$4,1,0) -> 0 | W10: =IF($C10=W$4,1,0) -> 0 | Y10: =IF($C10=Y$4,1,0) -> 0 | AA10: =IF($C10=AA$4,1,0) -> 0 | AC10: =IF($C10=AC$4,1,0) -> 0 | AE10: =IF($C10=AE$4,1,0) -> 0 | AG10: =IF($C10=AG$4,1,0) -> 0 | AI10: =IF($C10=AI$4,1,0) -> 0 | AK10: =IF($C10=AK$4,1,0) -> 0 | AM10: =IF($C10=AM$4,1,0) -> 0 | AO10: =IF($C10=AO$4,1,0) -> 0 | AQ10: =IF($C10=AQ$4,1,0) -> 0 | AS10: =IF($C10=AS$4,1,0) -> 0 | AU10: =IF($C10=AU$4,1,0) -> 0 | AW10: =IF($C10=AW$4,1,0) -> 0 | AY10: =IF($C10=AY$4,1,0) -> 0 | BA10: =IF($C10=BA$4,1,0) -> 0 | BC10: =IF($C10=BC$4,1,0) -> 0 | BE10: =IF($C10=BE$4,1,0) -> 0 | BG10: =IF($C10=BG$4,1,0) -> 0 | BI10: =IF($C10=BI$4,1,0) -> 0 | BK10: =IF($C10=BK$4,1,0) -> 0 | BM10: =IF($C10=BM$4,1,0) -> 0 | BO10: =IF($C10=BO$4,1,0) -> 0 | BQ10: =IF($C10=BQ$4,1,0) -> 0 | BS10: =IF($C10=BS$4,1,0) -> 0 | BU10: =IF($C10=BU$4,1,0) -> 0 | BW10: =IF($C10=BW$4,1,0) -> 0 | BY10: =IF($C10=BY$4,1,0) -> 0 | CA10: =IF($C10=CA$4,1,0) -> 0 | CC10: =IF($C10=CC$4,1,0) -> 0 | CE10: =IF($C10=CE$4,1,0) -> 0 | CG10: =IF($C10=CG$4,1,0) -> 0 | CI10: =IF($C10=CI$4,1,0) -> 0 | CK10: =IF($C10=CK$4,1,0) -> 0 | CM10: =IF($C10=CM$4,1,0) -> 0 | CO10: =IF($C10=CO$4,1,0) -> 0 | CQ10: =IF($C10=CQ$4,1,0) -> 0 | CS10: =IF($C10=CS$4,1,0) -> 0 | CU10: =IF($C10=CU$4,1,0) -> 0 | CW10: =IF($C10=CW$4,1,0) -> 0 | CY10: =IF($C10=CY$4,1,0) -> 0 | DA10: =IF($C10=DA$4,1,0) -> 0 | DC10: =IF($C10=DC$4,1,0) -> 0 | DE10: =IF($C10=DE$4,1,0) -> 0 | DG10: =IF($C10=DG$4,1,0) -> 0 | DI10: =IF($C10=DI$4,1,0) -> 0 | DK10: =IF($C10=DK$4,1,0) -> 0 | DM10: =IF($C10=DM$4,1,0) -> 0 | DO10: =IF($C10=DO$4,1,0) -> 0 | DQ10: =IF($C10=DQ$4,1,0) -> 0 | DS10: =IF($C10=DS$4,1,0) -> 0 | DU10: =IF($C10=DU$4,1,0) -> 0 | DW10: =IF($C10=DW$4,1,0) -> 0 | DY10: =IF($C10=DY$4,1,0) -> 0
C12: ITEM | D12: DESCRIÇÃO | E12: QUANT ANUAL POR POSTO | F12: Nº DE POSTOS | G12: QUANT ANUAL TOTAL | H12: VALOR
L13: =IF(SUM(K$8:K$8)>0,$E13*$H13,0) -> 0 | N13: =IF(SUM(M$8:M$8)>0,$E13*$H13,0) -> 0 | P13: =IF(SUM(O$8:O$8)>0,$E13*$H13,0) -> 0 | R13: =IF(SUM(Q$8:Q$8)>0,$E13*$H13,0) -> 0 | T13: =IF(SUM(S$8:S$8)>0,$E13*$H13,0) -> 0 | V13: =IF(SUM(U$8:U$8)>0,$E13*$H13,0) -> 0 | X13: =IF(SUM(W$8:W$8)>0,$E13*$H13,0) -> 0 | Z13: =IF(SUM(Y$8:Y$8)>0,$E13*$H13,0) -> 0 | AB13: =IF(SUM(AA$8:AA$8)>0,$E13*$H13,0) -> 0 | AD13: =IF(SUM(AC$8:AC$8)>0,$E13*$H13,0) -> 0 | AF13: =IF(SUM(AE$8:AE$8)>0,$E13*$H13,0) -> 0 | AH13: =IF(SUM(AG$8:AG$8)>0,$E13*$H13,0) -> 0 | AJ13: =IF(SUM(AI$8:AI$8)>0,$E13*$H13,0) -> 0 | AL13: =IF(SUM(AK$8:AK$8)>0,$E13*$H13,0) -> 0 | AN13: =IF(SUM(AM$8:AM$8)>0,$E13*$H13,0) -> 0 | AP13: =IF(SUM(AO$8:AO$8)>0,$E13*$H13,0) -> 0 | AR13: =IF(SUM(AQ$8:AQ$8)>0,$E13*$H13,0) -> 0 | AT13: =IF(SUM(AS$8:AS$8)>0,$E13*$H13,0) -> 0 | AV13: =IF(SUM(AU$8:AU$8)>0,$E13*$H13,0) -> 0 | AX13: =IF(SUM(AW$8:AW$8)>0,$E13*$H13,0) -> 0 | AZ13: =IF(SUM(AY$8:AY$8)>0,$E13*$H13,0) -> 0 | BB13: =IF(SUM(BA$8:BA$8)>0,$E13*$H13,0) -> 0 | BD13: =IF(SUM(BC$8:BC$8)>0,$E13*$H13,0) -> 0 | BF13: =IF(SUM(BE$8:BE$8)>0,$E13*$H13,0) -> 0 | BH13: =IF(SUM(BG$8:BG$8)>0,$E13*$H13,0) -> 0 | BJ13: =IF(SUM(BI$8:BI$8)>0,$E13*$H13,0) -> 0 | BL13: =IF(SUM(BK$8:BK$8)>0,$E13*$H13,0) -> 0 | BN13: =IF(SUM(BM$8:BM$8)>0,$E13*$H13,0) -> 0 | BP13: =IF(SUM(BO$8:BO$8)>0,$E13*$H13,0) -> 0 | BR13: =IF(SUM(BQ$8:BQ$8)>0,$E13*$H13,0) -> 0 | BT13: =IF(SUM(BS$8:BS$8)>0,$E13*$H13,0) -> 0 | BV13: =IF(SUM(BU$8:BU$8)>0,$E13*$H13,0) -> 0 | BX13: =IF(SUM(BW$8:BW$8)>0,$E13*$H13,0) -> 0 | BZ13: =IF(SUM(BY$8:BY$8)>0,$E13*$H13,0) -> 0 | CB13: =IF(SUM(CA$8:CA$8)>0,$E13*$H13,0) -> 0 | CD13: =IF(SUM(CC$8:CC$8)>0,$E13*$H13,0) -> 0 | CF13: =IF(SUM(CE$8:CE$8)>0,$E13*$H13,0) -> 0 | CH13: =IF(SUM(CG$8:CG$8)>0,$E13*$H13,0) -> 0 | CJ13: =IF(SUM(CI$8:CI$8)>0,$E13*$H13,0) -> 0 | CL13: =IF(SUM(CK$8:CK$8)>0,$E13*$H13,0) -> 0 | CN13: =IF(SUM(CM$8:CM$8)>0,$E13*$H13,0) -> 0 | CP13: =IF(SUM(CO$8:CO$8)>0,$E13*$H13,0) -> 0 | CR13: =IF(SUM(CQ$8:CQ$8)>0,$E13*$H13,0) -> 0 | CT13: =IF(SUM(CS$8:CS$8)>0,$E13*$H13,0) -> 0 | CV13: =IF(SUM(CU$8:CU$8)>0,$E13*$H13,0) -> 0 | CX13: =IF(SUM(CW$8:CW$8)>0,$E13*$H13,0) -> 0 | CZ13: =IF(SUM(CY$8:CY$8)>0,$E13*$H13,0) -> 0 | DB13: =IF(SUM(DA$8:DA$8)>0,$E13*$H13,0) -> 0 | DD13: =IF(SUM(DC$8:DC$8)>0,$E13*$H13,0) -> 0 | DF13: =IF(SUM(DE$8:DE$8)>0,$E13*$H13,0) -> 0 | DH13: =IF(SUM(DG$8:DG$8)>0,$E13*$H13,0) -> 0 | DJ13: =IF(SUM(DI$8:DI$8)>0,$E13*$H13,0) -> 0 | DL13: =IF(SUM(DK$8:DK$8)>0,$E13*$H13,0) -> 0 | DN13: =IF(SUM(DM$8:DM$8)>0,$E13*$H13,0) -> 0 | DP13: =IF(SUM(DO$8:DO$8)>0,$E13*$H13,0) -> 0 | DR13: =IF(SUM(DQ$8:DQ$8)>0,$E13*$H13,0) -> 0 | DT13: =IF(SUM(DS$8:DS$8)>0,$E13*$H13,0) -> 0 | DV13: =IF(SUM(DU$8:DU$8)>0,$E13*$H13,0) -> 0 | DX13: =IF(SUM(DW$8:DW$8)>0,$E13*$H13,0) -> 0 | DZ13: =IF(SUM(DY$8:DY$8)>0,$E13*$H13,0) -> 0
C14: EPI.001 | D14: Máscara PFF2 com válvula de exalação MARCA(S) DE REFERÊNCIA: Produto equivalente ou similar a 3M CARACTERÍSTICA(S): Respirador purificador de ar tipo, peça semifacial filtrante para partículas(PFF2), com formato dobrável, solda ultrassônica em todo o seu perímetro. Fita elástica branca fixada nas laterais externas do respirador, perfazendo uma alça na para fixação na parte superior da cabeça e a outra na parte inferior, para fixação na altura da nuca do usuário. Aparte superior externa da peça possui tira de material metálico moldável, utilizada para ajuste no septo nasal. Na face lateral do respirador existe um dispositivo de material plástico, dota do internamente de uma válvula de exalação. DEVERÁ APRESENTAR O SELO DE APROVAÇÃO DO INMETRO. | E14: 6 | F14: =SUM(H8:H10) -> 3 | G14: =E14*F14 -> 18 | H14: 4.59 | L14: =IF(SUM(K$8:K$10)>0,$E14*$H14,0) -> 0 | M14: 0 | N14: 27.54 | O14: 0 | P14: 0 | Q14: 0 | R14: 0 | S14: 0 | T14: 0 | U14: 0 | V14: 0 | W14: 0 | X14: 0 | Y14: 0 | Z14: 0 | AA14: 0 | AB14: 0 | AC14: 0 | AD14: 0 | AE14: 0 | AF14: 0 | AG14: 0 | AH14: 0 | AI14: 0 | AJ14: 0 | AK14: 0 | AL14: 0 | AM14: 0 | AN14: 0 | AO14: 0 | AP14: 0 | AQ14: 0 | AR14: =IF(SUM(AQ$8:AQ$10)>0,$E14*$H14,0) -> 0 | AS14: 0 | AT14: 0 | AU14: 0 | AV14: 0 | AW14: 0 | AX14: 0 | AY14: 0 | AZ14: 0 | BA14: 0 | BB14: 0 | BC14: 0 | BD14: 0 | BE14: 0 | BF14: 0 | BG14: 0 | BH14: 0 | BI14: 0 | BJ14: 0 | BK14: 0 | BL14: 0 | BM14: 0 | BN14: 0 | BO14: 0 | BP14: 0 | BQ14: 0 | BR14: 0 | BS14: 0 | BT14: 0 | BU14: 0 | BV14: 0 | BW14: 0 | BX14: =IF(SUM(BW$8:BW$10)>0,$E14*$H14,0) -> 0 | BY14: 0 | BZ14: 0 | CA14: 0 | CB14: 0 | CC14: 0 | CD14: 0 | CE14: 0 | CF14: 0 | CG14: 0 | CH14: 0 | CI14: 0 | CJ14: 0 | CK14: 0 | CL14: 0 | CM14: 0 | CN14: 0 | CO14: 0 | CP14: 0 | CQ14: 0 | CR14: 0 | CS14: 0 | CT14: 0 | CU14: 0 | CV14: 0 | CW14: 0 | CX14: 0 | CY14: 0 | CZ14: 0 | DA14: 0 | DB14: 0 | DC14: 0 | DD14: =IF(SUM(DC$8:DC$10)>0,$E14*$H14,0) -> 0 | DE14: 0 | DF14: 0 | DG14: 0 | DH14: 0 | DI14: 0 | DJ14: 0 | DK14: 0 | DL14: 0 | DM14: 0 | DN14: 0 | DO14: 0 | DP14: 0 | DQ14: 0 | DR14: 0 | DS14: 0 | DT14: 0 | DU14: 0 | DV14: 0 | DW14: 0 | DX14: 0 | DY14: 0 | DZ14: 0
C15: EPI.002 | D15: Protetor auditivo tipo plug MARCA(S) DE REFERÊNCIA: Produto equivalente ou similar a 3M; MSA; VONDER CARACTERÍSTICA(S): Protetor auricular tipo plug em silicone, lavável com proteção mínima de 15 dB (A) de atenuação pelo método NRRsf. APLICAÇÃO: E.P.I.; proteção auditiva do usuário contra ruídos. OBSERVAÇÃO (ÕES): Deverá possuir C.A Aprovado pelo MTE e válido ACONDICIONAMENTO: embalagem original de fábrica, com identificação e quantidade do material. GARANTIA MÍNIMA: 06(seis) meses, contados da data do recebimento definitivo. | E15: 2 | F15: =F14 -> 3 | G15: =E15*F15 -> 6 | H15: 3.13 | L15: =IF(SUM(K$8:K$10)>0,$E15*$H15,0) -> 0 | M15: 0 | N15: 6.26 | O15: 0 | P15: 0 | Q15: 0 | R15: 0 | S15: 0 | T15: 0 | U15: 0 | V15: 0 | W15: 0 | X15: 0 | Y15: 0 | Z15: 0 | AA15: 0 | AB15: 0 | AC15: 0 | AD15: 0 | AE15: 0 | AF15: 0 | AG15: 0 | AH15: 0 | AI15: 0 | AJ15: 0 | AK15: 0 | AL15: 0 | AM15: 0 | AN15: 0 | AO15: 0 | AP15: 0 | AQ15: 0 | AR15: =IF(SUM(AQ$8:AQ$10)>0,$E15*$H15,0) -> 0 | AS15: 0 | AT15: 0 | AU15: 0 | AV15: 0 | AW15: 0 | AX15: 0 | AY15: 0 | AZ15: 0 | BA15: 0 | BB15: 0 | BC15: 0 | BD15: 0 | BE15: 0 | BF15: 0 | BG15: 0 | BH15: 0 | BI15: 0 | BJ15: 0 | BK15: 0 | BL15: 0 | BM15: 0 | BN15: 0 | BO15: 0 | BP15: 0 | BQ15: 0 | BR15: 0 | BS15: 0 | BT15: 0 | BU15: 0 | BV15: 0 | BW15: 0 | BX15: =IF(SUM(BW$8:BW$10)>0,$E15*$H15,0) -> 0 | BY15: 0 | BZ15: 0 | CA15: 0 | CB15: 0 | CC15: 0 | CD15: 0 | CE15: 0 | CF15: 0 | CG15: 0 | CH15: 0 | CI15: 0 | CJ15: 0 | CK15: 0 | CL15: 0 | CM15: 0 | CN15: 0 | CO15: 0 | CP15: 0 | CQ15: 0 | CR15: 0 | CS15: 0 | CT15: 0 | CU15: 0 | CV15: 0 | CW15: 0 | CX15: 0 | CY15: 0 | CZ15: 0 | DA15: 0 | DB15: 0 | DC15: 0 | DD15: =IF(SUM(DC$8:DC$10)>0,$E15*$H15,0) -> 0 | DE15: 0 | DF15: 0 | DG15: 0 | DH15: 0 | DI15: 0 | DJ15: 0 | DK15: 0 | DL15: 0 | DM15: 0 | DN15: 0 | DO15: 0 | DP15: 0 | DQ15: 0 | DR15: 0 | DS15: 0 | DT15: 0 | DU15: 0 | DV15: 0 | DW15: 0 | DX15: 0 | DY15: 0 | DZ15: 0
C16: EPI.003 | D16: Bota de segurança - biqueira em composite ou polipropileno MARLUVAS. CARACTERÍSTICA(S): Botina de segurança, fechamento em elástico, sem componentes metálicos, confeccionada em couro curtido ao cromo, na cor preta, elásticos laterais, BIQUEIRA EM COMPOSITE ou POLIPROPILENO, solado de poliuretano bidensidade injetado diretamente ao cabedal, solado com perfil antiderrapante e sistemas de absorção de impacto. Com selo conforto. Em conformidade com as Normas de segurança da ABNT NBR ISO 20344 e 20347. | E16: 2 | F16: =F15 -> 3 | G16: =E16*F16 -> 6 | H16: 48.9 | L16: =IF(SUM(K$8:K$10)>0,$E16*$H16,0) -> 0 | M16: 0 | N16: 97.8 | O16: 0 | P16: 0 | Q16: 0 | R16: 0 | S16: 0 | T16: 0 | U16: 0 | V16: 0 | W16: 0 | X16: 0 | Y16: 0 | Z16: 0 | AA16: 0 | AB16: 0 | AC16: 0 | AD16: 0 | AE16: 0 | AF16: 0 | AG16: 0 | AH16: 0 | AI16: 0 | AJ16: 0 | AK16: 0 | AL16: 0 | AM16: 0 | AN16: 0 | AO16: 0 | AP16: 0 | AQ16: 0 | AR16: =IF(SUM(AQ$8:AQ$10)>0,$E16*$H16,0) -> 0 | AS16: 0 | AT16: 0 | AU16: 0 | AV16: 0 | AW16: 0 | AX16: 0 | AY16: 0 | AZ16: 0 | BA16: 0 | BB16: 0 | BC16: 0 | BD16: 0 | BE16: 0 | BF16: 0 | BG16: 0 | BH16: 0 | BI16: 0 | BJ16: 0 | BK16: 0 | BL16: 0 | BM16: 0 | BN16: 0 | BO16: 0 | BP16: 0 | BQ16: 0 | BR16: 0 | BS16: 0 | BT16: 0 | BU16: 0 | BV16: 0 | BW16: 0 | BX16: =IF(SUM(BW$8:BW$10)>0,$E16*$H16,0) -> 0 | BY16: 0 | BZ16: 0 | CA16: 0 | CB16: 0 | CC16: 0 | CD16: 0 | CE16: 0 | CF16: 0 | CG16: 0 | CH16: 0 | CI16: 0 | CJ16: 0 | CK16: 0 | CL16: 0 | CM16: 0 | CN16: 0 | CO16: 0 | CP16: 0 | CQ16: 0 | CR16: 0 | CS16: 0 | CT16: 0 | CU16: 0 | CV16: 0 | CW16: 0 | CX16: 0 | CY16: 0 | CZ16: 0 | DA16: 0 | DB16: 0 | DC16: 0 | DD16: =IF(SUM(DC$8:DC$10)>0,$E16*$H16,0) -> 0 | DE16: 0 | DF16: 0 | DG16: 0 | DH16: 0 | DI16: 0 | DJ16: 0 | DK16: 0 | DL16: 0 | DM16: 0 | DN16: 0 | DO16: 0 | DP16: 0 | DQ16: 0 | DR16: 0 | DS16: 0 | DT16: 0 | DU16: 0 | DV16: 0 | DW16: 0 | DX16: 0 | DY16: 0 | DZ16: 0
C17: EPI.004 | D17: Luva tipo multitato REFERÊNCIA: Produto equivalente ou similar a Promat modelo multitato 750 PT. CARACTERÍSTICA (S): Luvas em poliuretano, cor preta, acabamento liso, com forro em poliamida, sem costura, punho tricotado c/ elástico. Tamanhos P, M e G | E17: 2 | F17: =F16 -> 3 | G17: =E17*F17 -> 6 | H17: 6.64 | L17: =IF(SUM(K$8:K$10)>0,$E17*$H17,0) -> 0 | M17: 0 | N17: 13.28 | O17: 0 | P17: 0 | Q17: 0 | R17: 0 | S17: 0 | T17: 0 | U17: 0 | V17: 0 | W17: 0 | X17: 0 | Y17: 0 | Z17: 0 | AA17: 0 | AB17: 0 | AC17: 0 | AD17: 0 | AE17: 0 | AF17: 0 | AG17: 0 | AH17: 0 | AI17: 0 | AJ17: 0 | AK17: 0 | AL17: 0 | AM17: 0 | AN17: 0 | AO17: 0 | AP17: 0 | AQ17: 0 | AR17: =IF(SUM(AQ$8:AQ$10)>0,$E17*$H17,0) -> 0 | AS17: 0 | AT17: 0 | AU17: 0 | AV17: 0 | AW17: 0 | AX17: 0 | AY17: 0 | AZ17: 0 | BA17: 0 | BB17: 0 | BC17: 0 | BD17: 0 | BE17: 0 | BF17: 0 | BG17: 0 | BH17: 0 | BI17: 0 | BJ17: 0 | BK17: 0 | BL17: 0 | BM17: 0 | BN17: 0 | BO17: 0 | BP17: 0 | BQ17: 0 | BR17: 0 | BS17: 0 | BT17: 0 | BU17: 0 | BV17: 0 | BW17: 0 | BX17: =IF(SUM(BW$8:BW$10)>0,$E17*$H17,0) -> 0 | BY17: 0 | BZ17: 0 | CA17: 0 | CB17: 0 | CC17: 0 | CD17: 0 | CE17: 0 | CF17: 0 | CG17: 0 | CH17: 0 | CI17: 0 | CJ17: 0 | CK17: 0 | CL17: 0 | CM17: 0 | CN17: 0 | CO17: 0 | CP17: 0 | CQ17: 0 | CR17: 0 | CS17: 0 | CT17: 0 | CU17: 0 | CV17: 0 | CW17: 0 | CX17: 0 | CY17: 0 | CZ17: 0 | DA17: 0 | DB17: 0 | DC17: 0 | DD17: =IF(SUM(DC$8:DC$10)>0,$E17*$H17,0) -> 0 | DE17: 0 | DF17: 0 | DG17: 0 | DH17: 0 | DI17: 0 | DJ17: 0 | DK17: 0 | DL17: 0 | DM17: 0 | DN17: 0 | DO17: 0 | DP17: 0 | DQ17: 0 | DR17: 0 | DS17: 0 | DT17: 0 | DU17: 0 | DV17: 0 | DW17: 0 | DX17: 0 | DY17: 0 | DZ17: 0
L18: =IF(SUM(K$8:K$10)>0,$E18*$H18,0) -> 0 | N18: =IF(SUM(M$8:M$10)>0,$E18*$H18,0) -> 0 | P18: =IF(SUM(O$8:O$10)>0,$E18*$H18,0) -> 0 | R18: =IF(SUM(Q$8:Q$10)>0,$E18*$H18,0) -> 0 | T18: =IF(SUM(S$8:S$10)>0,$E18*$H18,0) -> 0 | V18: =IF(SUM(U$8:U$10)>0,$E18*$H18,0) -> 0 | X18: =IF(SUM(W$8:W$10)>0,$E18*$H18,0) -> 0 | Z18: =IF(SUM(Y$8:Y$10)>0,$E18*$H18,0) -> 0 | AB18: =IF(SUM(AA$8:AA$10)>0,$E18*$H18,0) -> 0 | AD18: =IF(SUM(AC$8:AC$10)>0,$E18*$H18,0) -> 0 | AF18: =IF(SUM(AE$8:AE$10)>0,$E18*$H18,0) -> 0 | AH18: =IF(SUM(AG$8:AG$10)>0,$E18*$H18,0) -> 0 | AJ18: =IF(SUM(AI$8:AI$10)>0,$E18*$H18,0) -> 0 | AL18: =IF(SUM(AK$8:AK$10)>0,$E18*$H18,0) -> 0 | AN18: =IF(SUM(AM$8:AM$10)>0,$E18*$H18,0) -> 0 | AP18: =IF(SUM(AO$8:AO$10)>0,$E18*$H18,0) -> 0 | AR18: =IF(SUM(AQ$8:AQ$10)>0,$E18*$H18,0) -> 0 | AT18: =IF(SUM(AS$8:AS$10)>0,$E18*$H18,0) -> 0 | AV18: =IF(SUM(AU$8:AU$10)>0,$E18*$H18,0) -> 0 | AX18: =IF(SUM(AW$8:AW$10)>0,$E18*$H18,0) -> 0 | AZ18: =IF(SUM(AY$8:AY$10)>0,$E18*$H18,0) -> 0 | BB18: =IF(SUM(BA$8:BA$10)>0,$E18*$H18,0) -> 0 | BD18: =IF(SUM(BC$8:BC$10)>0,$E18*$H18,0) -> 0 | BF18: =IF(SUM(BE$8:BE$10)>0,$E18*$H18,0) -> 0 | BH18: =IF(SUM(BG$8:BG$10)>0,$E18*$H18,0) -> 0 | BJ18: =IF(SUM(BI$8:BI$10)>0,$E18*$H18,0) -> 0 | BL18: =IF(SUM(BK$8:BK$10)>0,$E18*$H18,0) -> 0 | BN18: =IF(SUM(BM$8:BM$10)>0,$E18*$H18,0) -> 0 | BP18: =IF(SUM(BO$8:BO$10)>0,$E18*$H18,0) -> 0 | BR18: =IF(SUM(BQ$8:BQ$10)>0,$E18*$H18,0) -> 0 | BT18: =IF(SUM(BS$8:BS$10)>0,$E18*$H18,0) -> 0 | BV18: =IF(SUM(BU$8:BU$10)>0,$E18*$H18,0) -> 0 | BX18: =IF(SUM(BW$8:BW$10)>0,$E18*$H18,0) -> 0 | BZ18: =IF(SUM(BY$8:BY$10)>0,$E18*$H18,0) -> 0 | CB18: =IF(SUM(CA$8:CA$10)>0,$E18*$H18,0) -> 0 | CD18: =IF(SUM(CC$8:CC$10)>0,$E18*$H18,0) -> 0 | CF18: =IF(SUM(CE$8:CE$10)>0,$E18*$H18,0) -> 0
C19: CATEGORIAS | H19: QUANTIDADE
K20: =IF($C20=K$4,1,0) -> 0 | M20: =IF($C20=M$4,1,0) -> 0 | O20: =IF($C20=O$4,1,0) -> 0 | Q20: =IF($C20=Q$4,1,0) -> 0 | S20: =IF($C20=S$4,1,0) -> 0 | U20: =IF($C20=U$4,1,0) -> 0 | W20: =IF($C20=W$4,1,0) -> 0 | Y20: =IF($C20=Y$4,1,0) -> 0 | AA20: =IF($C20=AA$4,1,0) -> 0 | AC20: =IF($C20=AC$4,1,0) -> 0 | AE20: =IF($C20=AE$4,1,0) -> 0 | AG20: =IF($C20=AG$4,1,0) -> 0 | AI20: =IF($C20=AI$4,1,0) -> 0 | AK20: =IF($C20=AK$4,1,0) -> 0 | AM20: =IF($C20=AM$4,1,0) -> 0 | AO20: =IF($C20=AO$4,1,0) -> 0 | AQ20: =IF($C20=AQ$4,1,0) -> 0 | AS20: =IF($C20=AS$4,1,0) -> 0 | AU20: =IF($C20=AU$4,1,0) -> 0 | AW20: =IF($C20=AW$4,1,0) -> 0 | AY20: =IF($C20=AY$4,1,0) -> 0 | BA20: =IF($C20=BA$4,1,0) -> 0 | BC20: =IF($C20=BC$4,1,0) -> 0 | BE20: =IF($C20=BE$4,1,0) -> 0 | BG20: =IF($C20=BG$4,1,0) -> 0 | BI20: =IF($C20=BI$4,1,0) -> 0 | BK20: =IF($C20=BK$4,1,0) -> 0 | BM20: =IF($C20=BM$4,1,0) -> 0 | BO20: =IF($C20=BO$4,1,0) -> 0 | BQ20: =IF($C20=BQ$4,1,0) -> 0 | BS20: =IF($C20=BS$4,1,0) -> 0 | BU20: =IF($C20=BU$4,1,0) -> 0 | BW20: =IF($C20=BW$4,1,0) -> 0 | BY20: =IF($C20=BY$4,1,0) -> 0 | CA20: =IF($C20=CA$4,1,0) -> 0 | CC20: =IF($C20=CC$4,1,0) -> 0 | CE20: =IF($C20=CE$4,1,0) -> 0 | CG20: =IF($C20=CG$4,1,0) -> 0 | CI20: =IF($C20=CI$4,1,0) -> 0 | CK20: =IF($C20=CK$4,1,0) -> 0 | CM20: =IF($C20=CM$4,1,0) -> 0 | CO20: =IF($C20=CO$4,1,0) -> 0 | CQ20: =IF($C20=CQ$4,1,0) -> 0 | CS20: =IF($C20=CS$4,1,0) -> 0 | CU20: =IF($C20=CU$4,1,0) -> 0 | CW20: =IF($C20=CW$4,1,0) -> 0 | CY20: =IF($C20=CY$4,1,0) -> 0 | DA20: =IF($C20=DA$4,1,0) -> 0 | DC20: =IF($C20=DC$4,1,0) -> 0 | DE20: =IF($C20=DE$4,1,0) -> 0 | DG20: =IF($C20=DG$4,1,0) -> 0 | DI20: =IF($C20=DI$4,1,0) -> 0 | DK20: =IF($C20=DK$4,1,0) -> 0 | DM20: =IF($C20=DM$4,1,0) -> 0 | DO20: =IF($C20=DO$4,1,0) -> 0 | DQ20: =IF($C20=DQ$4,1,0) -> 0 | DS20: =IF($C20=DS$4,1,0) -> 0 | DU20: =IF($C20=DU$4,1,0) -> 0 | DW20: =IF($C20=DW$4,1,0) -> 0 | DY20: =IF($C20=DY$4,1,0) -> 0
C21: 9 | D21: =HLOOKUP($C21,'Dados Gerais'!$D$6:$L$11,6) -> OPERADOR DE TRANSMISSOR – Rádio e TV - 24H | H21: =HLOOKUP($C21,'Dados Gerais'!$D$6:$L$15,10) -> 5 | K21: =IF($C21=K$4,1,0) -> 0 | M21: =IF($C21=M$4,1,0) -> 0 | O21: =IF($C21=O$4,1,0) -> 0 | Q21: =IF($C21=Q$4,1,0) -> 0 | S21: =IF($C21=S$4,1,0) -> 0 | U21: =IF($C21=U$4,1,0) -> 0 | W21: =IF($C21=W$4,1,0) -> 0 | Y21: =IF($C21=Y$4,1,0) -> 0 | AA21: =IF($C21=AA$4,1,0) -> 1 | AC21: =IF($C21=AC$4,1,0) -> 0 | AE21: =IF($C21=AE$4,1,0) -> 0 | AG21: =IF($C21=AG$4,1,0) -> 0 | AI21: =IF($C21=AI$4,1,0) -> 0 | AK21: =IF($C21=AK$4,1,0) -> 0 | AM21: =IF($C21=AM$4,1,0) -> 0 | AO21: =IF($C21=AO$4,1,0) -> 0 | AQ21: =IF($C21=AQ$4,1,0) -> 0 | AS21: =IF($C21=AS$4,1,0) -> 0 | AU21: =IF($C21=AU$4,1,0) -> 0 | AW21: =IF($C21=AW$4,1,0) -> 0 | AY21: =IF($C21=AY$4,1,0) -> 0 | BA21: =IF($C21=BA$4,1,0) -> 0 | BC21: =IF($C21=BC$4,1,0) -> 0 | BE21: =IF($C21=BE$4,1,0) -> 0 | BG21: =IF($C21=BG$4,1,0) -> 0 | BI21: =IF($C21=BI$4,1,0) -> 0 | BK21: =IF($C21=BK$4,1,0) -> 0 | BM21: =IF($C21=BM$4,1,0) -> 0 | BO21: =IF($C21=BO$4,1,0) -> 0 | BQ21: =IF($C21=BQ$4,1,0) -> 0 | BS21: =IF($C21=BS$4,1,0) -> 0 | BU21: =IF($C21=BU$4,1,0) -> 0 | BW21: =IF($C21=BW$4,1,0) -> 0 | BY21: =IF($C21=BY$4,1,0) -> 0 | CA21: =IF($C21=CA$4,1,0) -> 0 | CC21: =IF($C21=CC$4,1,0) -> 0 | CE21: =IF($C21=CE$4,1,0) -> 0 | CG21: =IF($C21=CG$4,1,0) -> 0 | CI21: =IF($C21=CI$4,1,0) -> 0 | CK21: =IF($C21=CK$4,1,0) -> 0 | CM21: =IF($C21=CM$4,1,0) -> 0 | CO21: =IF($C21=CO$4,1,0) -> 0 | CQ21: =IF($C21=CQ$4,1,0) -> 0 | CS21: =IF($C21=CS$4,1,0) -> 0 | CU21: =IF($C21=CU$4,1,0) -> 0 | CW21: =IF($C21=CW$4,1,0) -> 0 | CY21: =IF($C21=CY$4,1,0) -> 0 | DA21: =IF($C21=DA$4,1,0) -> 0 | DC21: =IF($C21=DC$4,1,0) -> 0 | DE21: =IF($C21=DE$4,1,0) -> 0 | DG21: =IF($C21=DG$4,1,0) -> 0 | DI21: =IF($C21=DI$4,1,0) -> 0 | DK21: =IF($C21=DK$4,1,0) -> 0 | DM21: =IF($C21=DM$4,1,0) -> 0 | DO21: =IF($C21=DO$4,1,0) -> 0 | DQ21: =IF($C21=DQ$4,1,0) -> 0 | DS21: =IF($C21=DS$4,1,0) -> 0 | DU21: =IF($C21=DU$4,1,0) -> 0 | DW21: =IF($C21=DW$4,1,0) -> 0 | DY21: =IF($C21=DY$4,1,0) -> 0
K22: =IF($C22=K$4,1,0) -> 0 | M22: =IF($C22=M$4,1,0) -> 0 | O22: =IF($C22=O$4,1,0) -> 0 | Q22: =IF($C22=Q$4,1,0) -> 0 | S22: =IF($C22=S$4,1,0) -> 0 | U22: =IF($C22=U$4,1,0) -> 0 | W22: =IF($C22=W$4,1,0) -> 0 | Y22: =IF($C22=Y$4,1,0) -> 0 | AA22: =IF($C22=AA$4,1,0) -> 0 | AC22: =IF($C22=AC$4,1,0) -> 0 | AE22: =IF($C22=AE$4,1,0) -> 0 | AG22: =IF($C22=AG$4,1,0) -> 0 | AI22: =IF($C22=AI$4,1,0) -> 0 | AK22: =IF($C22=AK$4,1,0) -> 0 | AM22: =IF($C22=AM$4,1,0) -> 0 | AO22: =IF($C22=AO$4,1,0) -> 0 | AQ22: =IF($C22=AQ$4,1,0) -> 0 | AS22: =IF($C22=AS$4,1,0) -> 0 | AU22: =IF($C22=AU$4,1,0) -> 0 | AW22: =IF($C22=AW$4,1,0) -> 0 | AY22: =IF($C22=AY$4,1,0) -> 0 | BA22: =IF($C22=BA$4,1,0) -> 0 | BC22: =IF($C22=BC$4,1,0) -> 0 | BE22: =IF($C22=BE$4,1,0) -> 0 | BG22: =IF($C22=BG$4,1,0) -> 0 | BI22: =IF($C22=BI$4,1,0) -> 0 | BK22: =IF($C22=BK$4,1,0) -> 0 | BM22: =IF($C22=BM$4,1,0) -> 0 | BO22: =IF($C22=BO$4,1,0) -> 0 | BQ22: =IF($C22=BQ$4,1,0) -> 0 | BS22: =IF($C22=BS$4,1,0) -> 0 | BU22: =IF($C22=BU$4,1,0) -> 0 | BW22: =IF($C22=BW$4,1,0) -> 0 | BY22: =IF($C22=BY$4,1,0) -> 0 | CA22: =IF($C22=CA$4,1,0) -> 0 | CC22: =IF($C22=CC$4,1,0) -> 0 | CE22: =IF($C22=CE$4,1,0) -> 0 | CG22: =IF($C22=CG$4,1,0) -> 0 | CI22: =IF($C22=CI$4,1,0) -> 0 | CK22: =IF($C22=CK$4,1,0) -> 0 | CM22: =IF($C22=CM$4,1,0) -> 0 | CO22: =IF($C22=CO$4,1,0) -> 0 | CQ22: =IF($C22=CQ$4,1,0) -> 0 | CS22: =IF($C22=CS$4,1,0) -> 0 | CU22: =IF($C22=CU$4,1,0) -> 0 | CW22: =IF($C22=CW$4,1,0) -> 0 | CY22: =IF($C22=CY$4,1,0) -> 0 | DA22: =IF($C22=DA$4,1,0) -> 0 | DC22: =IF($C22=DC$4,1,0) -> 0 | DE22: =IF($C22=DE$4,1,0) -> 0 | DG22: =IF($C22=DG$4,1,0) -> 0 | DI22: =IF($C22=DI$4,1,0) -> 0 | DK22: =IF($C22=DK$4,1,0) -> 0 | DM22: =IF($C22=DM$4,1,0) -> 0 | DO22: =IF($C22=DO$4,1,0) -> 0 | DQ22: =IF($C22=DQ$4,1,0) -> 0 | DS22: =IF($C22=DS$4,1,0) -> 0 | DU22: =IF($C22=DU$4,1,0) -> 0 | DW22: =IF($C22=DW$4,1,0) -> 0 | DY22: =IF($C22=DY$4,1,0) -> 0
C24: ITEM | D24: DESCRIÇÃO | E24: QUANT ANUAL POR POSTO | F24: Nº DE POSTOS | G24: QUANT ANUAL TOTAL | H24: VALOR
L25: =IF(SUM(K$20:K$22)>0,$E25*$H25,0) -> 0 | N25: =IF(SUM(M$20:M$22)>0,$E25*$H25,0) -> 0 | P25: =IF(SUM(O$20:O$22)>0,$E25*$H25,0) -> 0 | R25: =IF(SUM(Q$20:Q$22)>0,$E25*$H25,0) -> 0 | T25: =IF(SUM(S$20:S$22)>0,$E25*$H25,0) -> 0 | V25: =IF(SUM(U$20:U$22)>0,$E25*$H25,0) -> 0 | X25: =IF(SUM(W$20:W$22)>0,$E25*$H25,0) -> 0 | Z25: =IF(SUM(Y$20:Y$22)>0,$E25*$H25,0) -> 0 | AB25: =IF(SUM(AA$20:AA$22)>0,$E25*$H25,0) -> 0 | AD25: =IF(SUM(AC$8:AC$8)>0,$E25*$H25,0) -> 0 | AF25: =IF(SUM(AE$8:AE$8)>0,$E25*$H25,0) -> 0 | AH25: =IF(SUM(AG$8:AG$8)>0,$E25*$H25,0) -> 0 | AJ25: =IF(SUM(AI$8:AI$8)>0,$E25*$H25,0) -> 0 | AL25: =IF(SUM(AK$8:AK$8)>0,$E25*$H25,0) -> 0 | AN25: =IF(SUM(AM$8:AM$8)>0,$E25*$H25,0) -> 0 | AP25: =IF(SUM(AO$8:AO$8)>0,$E25*$H25,0) -> 0 | AR25: =IF(SUM(AQ$8:AQ$8)>0,$E25*$H25,0) -> 0 | AT25: =IF(SUM(AS$8:AS$8)>0,$E25*$H25,0) -> 0 | AV25: =IF(SUM(AU$8:AU$8)>0,$E25*$H25,0) -> 0 | AX25: =IF(SUM(AW$8:AW$8)>0,$E25*$H25,0) -> 0 | AZ25: =IF(SUM(AY$8:AY$8)>0,$E25*$H25,0) -> 0 | BB25: =IF(SUM(BA$8:BA$8)>0,$E25*$H25,0) -> 0 | BD25: =IF(SUM(BC$8:BC$8)>0,$E25*$H25,0) -> 0 | BF25: =IF(SUM(BE$8:BE$8)>0,$E25*$H25,0) -> 0 | BH25: =IF(SUM(BG$8:BG$8)>0,$E25*$H25,0) -> 0 | BJ25: =IF(SUM(BI$8:BI$8)>0,$E25*$H25,0) -> 0 | BL25: =IF(SUM(BK$8:BK$8)>0,$E25*$H25,0) -> 0 | BN25: =IF(SUM(BM$8:BM$8)>0,$E25*$H25,0) -> 0 | BP25: =IF(SUM(BO$8:BO$8)>0,$E25*$H25,0) -> 0 | BR25: =IF(SUM(BQ$8:BQ$8)>0,$E25*$H25,0) -> 0 | BT25: =IF(SUM(BS$8:BS$8)>0,$E25*$H25,0) -> 0 | BV25: =IF(SUM(BU$8:BU$8)>0,$E25*$H25,0) -> 0 | BX25: =IF(SUM(BW$8:BW$8)>0,$E25*$H25,0) -> 0 | BZ25: =IF(SUM(BY$8:BY$8)>0,$E25*$H25,0) -> 0 | CB25: =IF(SUM(CA$8:CA$8)>0,$E25*$H25,0) -> 0 | CD25: =IF(SUM(CC$8:CC$8)>0,$E25*$H25,0) -> 0 | CF25: =IF(SUM(CE$8:CE$8)>0,$E25*$H25,0) -> 0 | CH25: =IF(SUM(CG$8:CG$8)>0,$E25*$H25,0) -> 0 | CJ25: =IF(SUM(CI$8:CI$8)>0,$E25*$H25,0) -> 0 | CL25: =IF(SUM(CK$8:CK$8)>0,$E25*$H25,0) -> 0 | CN25: =IF(SUM(CM$8:CM$8)>0,$E25*$H25,0) -> 0 | CP25: =IF(SUM(CO$8:CO$8)>0,$E25*$H25,0) -> 0 | CR25: =IF(SUM(CQ$8:CQ$8)>0,$E25*$H25,0) -> 0 | CT25: =IF(SUM(CS$8:CS$8)>0,$E25*$H25,0) -> 0 | CV25: =IF(SUM(CU$8:CU$8)>0,$E25*$H25,0) -> 0 | CX25: =IF(SUM(CW$8:CW$8)>0,$E25*$H25,0) -> 0 | CZ25: =IF(SUM(CY$8:CY$8)>0,$E25*$H25,0) -> 0 | DB25: =IF(SUM(DA$8:DA$8)>0,$E25*$H25,0) -> 0 | DD25: =IF(SUM(DC$8:DC$8)>0,$E25*$H25,0) -> 0 | DF25: =IF(SUM(DE$8:DE$8)>0,$E25*$H25,0) -> 0 | DH25: =IF(SUM(DG$8:DG$8)>0,$E25*$H25,0) -> 0 | DJ25: =IF(SUM(DI$8:DI$8)>0,$E25*$H25,0) -> 0 | DL25: =IF(SUM(DK$8:DK$8)>0,$E25*$H25,0) -> 0 | DN25: =IF(SUM(DM$8:DM$8)>0,$E25*$H25,0) -> 0 | DP25: =IF(SUM(DO$8:DO$8)>0,$E25*$H25,0) -> 0 | DR25: =IF(SUM(DQ$8:DQ$8)>0,$E25*$H25,0) -> 0 | DT25: =IF(SUM(DS$8:DS$8)>0,$E25*$H25,0) -> 0 | DV25: =IF(SUM(DU$8:DU$8)>0,$E25*$H25,0) -> 0 | DX25: =IF(SUM(DW$8:DW$8)>0,$E25*$H25,0) -> 0 | DZ25: =IF(SUM(DY$8:DY$8)>0,$E25*$H25,0) -> 0
C26: EPI.001 | D26: Máscara PFF2 com válvula de exalação MARCA(S) DE REFERÊNCIA: Produto equivalente ou similar a 3M CARACTERÍSTICA(S): Respirador purificador de ar tipo, peça semifacial filtrante para partículas (PFF2), com formato dobrável, solda ultrassônica em todo o seu perímetro. Fita elástica branca fixada nas laterais externas do respirador, perfazendo uma alça na para fixação na parte superior da cabeça e a outra na parte inferior, para fixação na altura da nuca do usuário. Aparte superior externa da peça possui tira de material metálico moldável, utilizada para ajuste no septo nasal. Na face lateral do respirador existe um dispositivo de material plástico, dota do internamente de uma válvula de exalação. DEVERÁ APRESENTAR O SELO DE APROVAÇÃO DO INMETRO. | E26: 10 | F26: =SUM(H20:H22) -> 5 | G26: =E26*F26 -> 50 | H26: =H14 -> 4.59 | K26: =IF(SUM(J$8:J$10)>0,$E26*$H26,0) -> 0 | L26: =IF(SUM(K$20:K$22)>0,$E26*$H26,0) -> 0 | M26: =IF(SUM(L$8:L$10)>0,$E26*$H26,0) -> 0 | N26: 0 | O26: =IF(SUM(N$8:N$10)>0,$E26*$H26,0) -> 0 | P26: 0 | Q26: =IF(SUM(P$8:P$10)>0,$E26*$H26,0) -> 0 | R26: 0 | S26: =IF(SUM(R$8:R$10)>0,$E26*$H26,0) -> 0 | T26: 0 | U26: =IF(SUM(T$8:T$10)>0,$E26*$H26,0) -> 0 | V26: 0 | W26: =IF(SUM(V$8:V$10)>0,$E26*$H26,0) -> 0 | X26: 0 | Y26: =IF(SUM(X$8:X$10)>0,$E26*$H26,0) -> 0 | Z26: 0 | AA26: =IF(SUM(Z$8:Z$10)>0,$E26*$H26,0) -> 0 | AB26: 45.9 | AC26: 0 | AD26: 0 | AE26: 0 | AF26: 0 | AG26: 0 | AH26: 0 | AI26: 0 | AJ26: 0 | AK26: 0 | AL26: 0 | AM26: 0 | AN26: 0 | AO26: 0 | AP26: 0 | AQ26: 0 | AR26: =IF(SUM(AQ$8:AQ$10)>0,$E26*$H26,0) -> 0 | AS26: 0 | AT26: 0 | AU26: 0 | AV26: 0 | AW26: 0 | AX26: 0 | AY26: 0 | AZ26: 0 | BA26: 0 | BB26: 0 | BC26: 0 | BD26: 0 | BE26: 0 | BF26: 0 | BG26: 0 | BH26: 0 | BI26: 0 | BJ26: 0 | BK26: 0 | BL26: 0 | BM26: 0 | BN26: 0 | BO26: 0 | BP26: 0 | BQ26: 0 | BR26: 0 | BS26: 0 | BT26: 0 | BU26: 0 | BV26: 0 | BW26: 0 | BX26: =IF(SUM(BW$8:BW$10)>0,$E26*$H26,0) -> 0 | BY26: 0 | BZ26: 0 | CA26: 0 | CB26: 0 | CC26: 0 | CD26: 0 | CE26: 0 | CF26: 0 | CG26: 0 | CH26: 0 | CI26: 0 | CJ26: 0 | CK26: 0 | CL26: 0 | CM26: 0 | CN26: 0 | CO26: 0 | CP26: 0 | CQ26: 0 | CR26: 0 | CS26: 0 | CT26: 0 | CU26: 0 | CV26: 0 | CW26: 0 | CX26: 0 | CY26: 0 | CZ26: 0 | DA26: 0 | DB26: 0 | DC26: 0 | DD26: =IF(SUM(DC$8:DC$10)>0,$E26*$H26,0) -> 0 | DE26: 0 | DF26: 0 | DG26: 0 | DH26: 0 | DI26: 0 | DJ26: 0 | DK26: 0 | DL26: 0 | DM26: 0 | DN26: 0 | DO26: 0 | DP26: 0 | DQ26: 0 | DR26: 0 | DS26: 0 | DT26: 0 | DU26: 0 | DV26: 0 | DW26: 0 | DX26: 0 | DY26: 0 | DZ26: 0
C27: EPI.002 | D27: Protetor auditivo tipo plug MARCA(S) DE REFERÊNCIA: Produto equivalente ou similar a 3M; MSA; VONDER CARACTERÍSTICA(S): Protetor auricular tipo plug em silicone, lavável com proteção mínima de 15 dB (A) de atenuação pelo método NRRsf. APLICAÇÃO: E.P.I.; proteção auditiva do usuário contra ruídos. OBSERVAÇÃO (ÕES): Deverá possuir C.A Aprovado pelo MTE e válido ACONDICIONAMENTO: embalagem original de fábrica, com identificação e quantidade do material. GARANTIA MÍNIMA: 06(seis) meses, contados da data do recebimento definitivo. | E27: 4 | F27: =F26 -> 5 | G27: =E27*F27 -> 20 | H27: =H15 -> 3.13 | K27: =IF(SUM(J$8:J$10)>0,$E27*$H27,0) -> 0 | L27: 0 | M27: =IF(SUM(L$8:L$10)>0,$E27*$H27,0) -> 0 | N27: 0 | O27: =IF(SUM(N$8:N$10)>0,$E27*$H27,0) -> 0 | P27: 0 | Q27: =IF(SUM(P$8:P$10)>0,$E27*$H27,0) -> 0 | R27: 0 | S27: =IF(SUM(R$8:R$10)>0,$E27*$H27,0) -> 0 | T27: 0 | U27: =IF(SUM(T$8:T$10)>0,$E27*$H27,0) -> 0 | V27: 0 | W27: =IF(SUM(V$8:V$10)>0,$E27*$H27,0) -> 0 | X27: 0 | Y27: =IF(SUM(X$8:X$10)>0,$E27*$H27,0) -> 0 | Z27: 0 | AA27: =IF(SUM(Z$8:Z$10)>0,$E27*$H27,0) -> 0 | AB27: 12.52 | AC27: 0 | AD27: 0 | AE27: 0 | AF27: 0 | AG27: 0 | AH27: 0 | AI27: 0 | AJ27: 0 | AK27: 0 | AL27: 0 | AM27: 0 | AN27: 0 | AO27: 0 | AP27: 0 | AQ27: 0 | AR27: =IF(SUM(AQ$8:AQ$10)>0,$E27*$H27,0) -> 0 | AS27: 0 | AT27: 0 | AU27: 0 | AV27: 0 | AW27: 0 | AX27: 0 | AY27: 0 | AZ27: 0 | BA27: 0 | BB27: 0 | BC27: 0 | BD27: 0 | BE27: 0 | BF27: 0 | BG27: 0 | BH27: 0 | BI27: 0 | BJ27: 0 | BK27: 0 | BL27: 0 | BM27: 0 | BN27: 0 | BO27: 0 | BP27: 0 | BQ27: 0 | BR27: 0 | BS27: 0 | BT27: 0 | BU27: 0 | BV27: 0 | BW27: 0 | BX27: =IF(SUM(BW$8:BW$10)>0,$E27*$H27,0) -> 0 | BY27: 0 | BZ27: 0 | CA27: 0 | CB27: 0 | CC27: 0 | CD27: 0 | CE27: 0 | CF27: 0 | CG27: 0 | CH27: 0 | CI27: 0 | CJ27: 0 | CK27: 0 | CL27: 0 | CM27: 0 | CN27: 0 | CO27: 0 | CP27: 0 | CQ27: 0 | CR27: 0 | CS27: 0 | CT27: 0 | CU27: 0 | CV27: 0 | CW27: 0 | CX27: 0 | CY27: 0 | CZ27: 0 | DA27: 0 | DB27: 0 | DC27: 0 | DD27: =IF(SUM(DC$8:DC$10)>0,$E27*$H27,0) -> 0 | DE27: 0 | DF27: 0 | DG27: 0 | DH27: 0 | DI27: 0 | DJ27: 0 | DK27: 0 | DL27: 0 | DM27: 0 | DN27: 0 | DO27: 0 | DP27: 0 | DQ27: 0 | DR27: 0 | DS27: 0 | DT27: 0 | DU27: 0 | DV27: 0 | DW27: 0 | DX27: 0 | DY27: 0 | DZ27: 0
C28: EPI.003 | D28: Bota de segurança - biqueira em composite ou polipropileno REFERÊNCIA: Produto equivalente ou similar a MARLUVAS. CARACTERÍSTICA(S): Botina de segurança, fechamento em elástico, sem componentes metálicos, confeccionada em couro curtido ao cromo, na cor preta, elásticos laterais, BIQUEIRA EM COMPOSITE ou POLIPROPILENO, solado de poliuretano bidensidade injetado diretamente ao cabedal, solado com perfil antiderrapante e sistemas de absorção de impacto. Com selo conforto. Em conformidade com as Normas de segurança da ABNT NBR ISO 20344 e 20347. | E28: 2 | F28: =F27 -> 5 | G28: =E28*F28 -> 10 | H28: =H16 -> 48.9 | K28: =IF(SUM(J$8:J$10)>0,$E28*$H28,0) -> 0 | L28: 0 | M28: =IF(SUM(L$8:L$10)>0,$E28*$H28,0) -> 0 | N28: 0 | O28: =IF(SUM(N$8:N$10)>0,$E28*$H28,0) -> 0 | P28: 0 | Q28: =IF(SUM(P$8:P$10)>0,$E28*$H28,0) -> 0 | R28: 0 | S28: =IF(SUM(R$8:R$10)>0,$E28*$H28,0) -> 0 | T28: 0 | U28: =IF(SUM(T$8:T$10)>0,$E28*$H28,0) -> 0 | V28: 0 | W28: =IF(SUM(V$8:V$10)>0,$E28*$H28,0) -> 0 | X28: 0 | Y28: =IF(SUM(X$8:X$10)>0,$E28*$H28,0) -> 0 | Z28: 0 | AA28: =IF(SUM(Z$8:Z$10)>0,$E28*$H28,0) -> 0 | AB28: 97.8 | AC28: 0 | AD28: 0 | AE28: 0 | AF28: 0 | AG28: 0 | AH28: 0 | AI28: 0 | AJ28: 0 | AK28: 0 | AL28: 0 | AM28: 0 | AN28: 0 | AO28: 0 | AP28: 0 | AQ28: 0 | AR28: =IF(SUM(AQ$8:AQ$10)>0,$E28*$H28,0) -> 0 | AS28: 0 | AT28: 0 | AU28: 0 | AV28: 0 | AW28: 0 | AX28: 0 | AY28: 0 | AZ28: 0 | BA28: 0 | BB28: 0 | BC28: 0 | BD28: 0 | BE28: 0 | BF28: 0 | BG28: 0 | BH28: 0 | BI28: 0 | BJ28: 0 | BK28: 0 | BL28: 0 | BM28: 0 | BN28: 0 | BO28: 0 | BP28: 0 | BQ28: 0 | BR28: 0 | BS28: 0 | BT28: 0 | BU28: 0 | BV28: 0 | BW28: 0 | BX28: =IF(SUM(BW$8:BW$10)>0,$E28*$H28,0) -> 0 | BY28: 0 | BZ28: 0 | CA28: 0 | CB28: 0 | CC28: 0 | CD28: 0 | CE28: 0 | CF28: 0 | CG28: 0 | CH28: 0 | CI28: 0 | CJ28: 0 | CK28: 0 | CL28: 0 | CM28: 0 | CN28: 0 | CO28: 0 | CP28: 0 | CQ28: 0 | CR28: 0 | CS28: 0 | CT28: 0 | CU28: 0 | CV28: 0 | CW28: 0 | CX28: 0 | CY28: 0 | CZ28: 0 | DA28: 0 | DB28: 0 | DC28: 0 | DD28: =IF(SUM(DC$8:DC$10)>0,$E28*$H28,0) -> 0 | DE28: 0 | DF28: 0 | DG28: 0 | DH28: 0 | DI28: 0 | DJ28: 0 | DK28: 0 | DL28: 0 | DM28: 0 | DN28: 0 | DO28: 0 | DP28: 0 | DQ28: 0 | DR28: 0 | DS28: 0 | DT28: 0 | DU28: 0 | DV28: 0 | DW28: 0 | DX28: 0 | DY28: 0 | DZ28: 0
C29: EPI.004 | D29: Luva tipo multitato MARCA(S) DE REFERÊNCIA: Produto equivalente ou similar a Promat modelo multitato 750 PT. CARACTERÍSTICA(S): Luvas em poliuretano, cor preta, acabamento liso, com forro em poliamida, sem costura, punho tricotado c/ elástico. Tamanhos P, M, G | E29: 6 | F29: =F28 -> 5 | G29: =E29*F29 -> 30 | H29: =H17 -> 6.64 | K29: =IF(SUM(J$8:J$10)>0,$E29*$H29,0) -> 0 | L29: 0 | M29: =IF(SUM(L$8:L$10)>0,$E29*$H29,0) -> 0 | N29: 0 | O29: =IF(SUM(N$8:N$10)>0,$E29*$H29,0) -> 0 | P29: 0 | Q29: =IF(SUM(P$8:P$10)>0,$E29*$H29,0) -> 0 | R29: 0 | S29: =IF(SUM(R$8:R$10)>0,$E29*$H29,0) -> 0 | T29: 0 | U29: =IF(SUM(T$8:T$10)>0,$E29*$H29,0) -> 0 | V29: 0 | W29: =IF(SUM(V$8:V$10)>0,$E29*$H29,0) -> 0 | X29: 0 | Y29: =IF(SUM(X$8:X$10)>0,$E29*$H29,0) -> 0 | Z29: 0 | AA29: =IF(SUM(Z$8:Z$10)>0,$E29*$H29,0) -> 0 | AB29: 39.84 | AC29: 0 | AD29: 0 | AE29: 0 | AF29: 0 | AG29: 0 | AH29: 0 | AI29: 0 | AJ29: 0 | AK29: 0 | AL29: 0 | AM29: 0 | AN29: 0 | AO29: 0 | AP29: 0 | AQ29: 0 | AR29: =IF(SUM(AQ$8:AQ$10)>0,$E29*$H29,0) -> 0 | AS29: 0 | AT29: 0 | AU29: 0 | AV29: 0 | AW29: 0 | AX29: 0 | AY29: 0 | AZ29: 0 | BA29: 0 | BB29: 0 | BC29: 0 | BD29: 0 | BE29: 0 | BF29: 0 | BG29: 0 | BH29: 0 | BI29: 0 | BJ29: 0 | BK29: 0 | BL29: 0 | BM29: 0 | BN29: 0 | BO29: 0 | BP29: 0 | BQ29: 0 | BR29: 0 | BS29: 0 | BT29: 0 | BU29: 0 | BV29: 0 | BW29: 0 | BX29: =IF(SUM(BW$8:BW$10)>0,$E29*$H29,0) -> 0 | BY29: 0 | BZ29: 0 | CA29: 0 | CB29: 0 | CC29: 0 | CD29: 0 | CE29: 0 | CF29: 0 | CG29: 0 | CH29: 0 | CI29: 0 | CJ29: 0 | CK29: 0 | CL29: 0 | CM29: 0 | CN29: 0 | CO29: 0 | CP29: 0 | CQ29: 0 | CR29: 0 | CS29: 0 | CT29: 0 | CU29: 0 | CV29: 0 | CW29: 0 | CX29: 0 | CY29: 0 | CZ29: 0 | DA29: 0 | DB29: 0 | DC29: 0 | DD29: =IF(SUM(DC$8:DC$10)>0,$E29*$H29,0) -> 0 | DE29: 0 | DF29: 0 | DG29: 0 | DH29: 0 | DI29: 0 | DJ29: 0 | DK29: 0 | DL29: 0 | DM29: 0 | DN29: 0 | DO29: 0 | DP29: 0 | DQ29: 0 | DR29: 0 | DS29: 0 | DT29: 0 | DU29: 0 | DV29: 0 | DW29: 0 | DX29: 0 | DY29: 0 | DZ29: 0
C30: EPI.005 | D30: Óculos de segurança incolor MARCA(S) DE REFERÊNCIA: Produto equivalente ou similar ao 3M modelo Virtua V4. CARACTERÍSTICA(S): Óculos de segurança constituídos de armação e visor confeccionados em uma única peça de policarbonato INCOLOR, anti-risco, apoio nasal de plástico maleável. Hastes emborrachadas. | E30: 1 | F30: =F29 -> 5 | G30: =E30*F30 -> 5 | H30: 9.21 | K30: =IF(SUM(J$8:J$10)>0,$E30*$H30,0) -> 0 | L30: 0 | M30: =IF(SUM(L$8:L$10)>0,$E30*$H30,0) -> 0 | N30: 0 | O30: =IF(SUM(N$8:N$10)>0,$E30*$H30,0) -> 0 | P30: 0 | Q30: =IF(SUM(P$8:P$10)>0,$E30*$H30,0) -> 0 | R30: 0 | S30: =IF(SUM(R$8:R$10)>0,$E30*$H30,0) -> 0 | T30: 0 | U30: =IF(SUM(T$8:T$10)>0,$E30*$H30,0) -> 0 | V30: 0 | W30: =IF(SUM(V$8:V$10)>0,$E30*$H30,0) -> 0 | X30: 0 | Y30: =IF(SUM(X$8:X$10)>0,$E30*$H30,0) -> 0 | Z30: 0 | AA30: =IF(SUM(Z$8:Z$10)>0,$E30*$H30,0) -> 0 | AB30: 9.21 | AC30: 0 | AD30: 0 | AE30: 0 | AF30: 0 | AG30: 0 | AH30: 0 | AI30: 0 | AJ30: 0 | AK30: 0 | AL30: 0 | AM30: 0 | AN30: 0 | AO30: 0 | AP30: 0 | AQ30: 0 | AR30: =IF(SUM(AQ$8:AQ$10)>0,$E30*$H30,0) -> 0 | AS30: 0 | AT30: 0 | AU30: 0 | AV30: 0 | AW30: 0 | AX30: 0 | AY30: 0 | AZ30: 0 | BA30: 0 | BB30: 0 | BC30: 0 | BD30: 0 | BE30: 0 | BF30: 0 | BG30: 0 | BH30: 0 | BI30: 0 | BJ30: 0 | BK30: 0 | BL30: 0 | BM30: 0 | BN30: 0 | BO30: 0 | BP30: 0 | BQ30: 0 | BR30: 0 | BS30: 0 | BT30: 0 | BU30: 0 | BV30: 0 | BW30: 0 | BX30: =IF(SUM(BW$8:BW$10)>0,$E30*$H30,0) -> 0 | BY30: 0 | BZ30: 0 | CA30: 0 | CB30: 0 | CC30: 0 | CD30: 0 | CE30: 0 | CF30: 0 | CG30: 0 | CH30: 0 | CI30: 0 | CJ30: 0 | CK30: 0 | CL30: 0 | CM30: 0 | CN30: 0 | CO30: 0 | CP30: 0 | CQ30: 0 | CR30: 0 | CS30: 0 | CT30: 0 | CU30: 0 | CV30: 0 | CW30: 0 | CX30: 0 | CY30: 0 | CZ30: 0 | DA30: 0 | DB30: 0 | DC30: 0 | DD30: =IF(SUM(DC$8:DC$10)>0,$E30*$H30,0) -> 0 | DE30: 0 | DF30: 0 | DG30: 0 | DH30: 0 | DI30: 0 | DJ30: 0 | DK30: 0 | DL30: 0 | DM30: 0 | DN30: 0 | DO30: 0 | DP30: 0 | DQ30: 0 | DR30: 0 | DS30: 0 | DT30: 0 | DU30: 0 | DV30: 0 | DW30: 0 | DX30: 0 | DY30: 0 | DZ30: 0
L31: 0 | N31: 0 | P31: 0 | R31: 0 | T31: 0 | V31: 0 | X31: 0 | Z31: 0 | AB31: 0 | AD31: =IF(SUM(AC$8:AC$10)>0,$E31*$H31,0) -> 0 | AF31: =IF(SUM(AE$8:AE$10)>0,$E31*$H31,0) -> 0 | AH31: =IF(SUM(AG$8:AG$10)>0,$E31*$H31,0) -> 0 | AJ31: =IF(SUM(AI$8:AI$10)>0,$E31*$H31,0) -> 0 | AL31: =IF(SUM(AK$8:AK$10)>0,$E31*$H31,0) -> 0 | AN31: =IF(SUM(AM$8:AM$10)>0,$E31*$H31,0) -> 0 | AP31: =IF(SUM(AO$8:AO$10)>0,$E31*$H31,0) -> 0 | AR31: =IF(SUM(AQ$8:AQ$10)>0,$E31*$H31,0) -> 0 | AT31: =IF(SUM(AS$8:AS$10)>0,$E31*$H31,0) -> 0 | AV31: =IF(SUM(AU$8:AU$10)>0,$E31*$H31,0) -> 0 | AX31: =IF(SUM(AW$8:AW$10)>0,$E31*$H31,0) -> 0 | AZ31: =IF(SUM(AY$8:AY$10)>0,$E31*$H31,0) -> 0 | BB31: =IF(SUM(BA$8:BA$10)>0,$E31*$H31,0) -> 0 | BD31: =IF(SUM(BC$8:BC$10)>0,$E31*$H31,0) -> 0 | BF31: =IF(SUM(BE$8:BE$10)>0,$E31*$H31,0) -> 0 | BH31: =IF(SUM(BG$8:BG$10)>0,$E31*$H31,0) -> 0 | BJ31: =IF(SUM(BI$8:BI$10)>0,$E31*$H31,0) -> 0 | BL31: =IF(SUM(BK$8:BK$10)>0,$E31*$H31,0) -> 0 | BN31: =IF(SUM(BM$8:BM$10)>0,$E31*$H31,0) -> 0 | BP31: =IF(SUM(BO$8:BO$10)>0,$E31*$H31,0) -> 0 | BR31: =IF(SUM(BQ$8:BQ$10)>0,$E31*$H31,0) -> 0 | BT31: =IF(SUM(BS$8:BS$10)>0,$E31*$H31,0) -> 0 | BV31: =IF(SUM(BU$8:BU$10)>0,$E31*$H31,0) -> 0 | BX31: =IF(SUM(BW$8:BW$10)>0,$E31*$H31,0) -> 0 | BZ31: =IF(SUM(BY$8:BY$10)>0,$E31*$H31,0) -> 0 | CB31: =IF(SUM(CA$8:CA$10)>0,$E31*$H31,0) -> 0 | CD31: =IF(SUM(CC$8:CC$10)>0,$E31*$H31,0) -> 0 | CF31: =IF(SUM(CE$8:CE$10)>0,$E31*$H31,0) -> 0
L32: 0 | N32: 0 | P32: 0 | R32: 0 | T32: 0 | V32: 0 | X32: 0 | Z32: 0 | AB32: 0 | AD32: =IF(SUM(AC$8:AC$10)>0,$E32*$H32,0) -> 0 | AF32: =IF(SUM(AE$8:AE$10)>0,$E32*$H32,0) -> 0 | AH32: =IF(SUM(AG$8:AG$10)>0,$E32*$H32,0) -> 0 | AJ32: =IF(SUM(AI$8:AI$10)>0,$E32*$H32,0) -> 0 | AL32: =IF(SUM(AK$8:AK$10)>0,$E32*$H32,0) -> 0 | AN32: =IF(SUM(AM$8:AM$10)>0,$E32*$H32,0) -> 0 | AP32: =IF(SUM(AO$8:AO$10)>0,$E32*$H32,0) -> 0 | AR32: =IF(SUM(AQ$8:AQ$10)>0,$E32*$H32,0) -> 0 | AT32: =IF(SUM(AS$8:AS$10)>0,$E32*$H32,0) -> 0 | AV32: =IF(SUM(AU$8:AU$10)>0,$E32*$H32,0) -> 0 | AX32: =IF(SUM(AW$8:AW$10)>0,$E32*$H32,0) -> 0 | AZ32: =IF(SUM(AY$8:AY$10)>0,$E32*$H32,0) -> 0 | BB32: =IF(SUM(BA$8:BA$10)>0,$E32*$H32,0) -> 0 | BD32: =IF(SUM(BC$8:BC$10)>0,$E32*$H32,0) -> 0 | BF32: =IF(SUM(BE$8:BE$10)>0,$E32*$H32,0) -> 0 | BH32: =IF(SUM(BG$8:BG$10)>0,$E32*$H32,0) -> 0 | BJ32: =IF(SUM(BI$8:BI$10)>0,$E32*$H32,0) -> 0 | BL32: =IF(SUM(BK$8:BK$10)>0,$E32*$H32,0) -> 0 | BN32: =IF(SUM(BM$8:BM$10)>0,$E32*$H32,0) -> 0 | BP32: =IF(SUM(BO$8:BO$10)>0,$E32*$H32,0) -> 0 | BR32: =IF(SUM(BQ$8:BQ$10)>0,$E32*$H32,0) -> 0 | BT32: =IF(SUM(BS$8:BS$10)>0,$E32*$H32,0) -> 0 | BV32: =IF(SUM(BU$8:BU$10)>0,$E32*$H32,0) -> 0 | BX32: =IF(SUM(BW$8:BW$10)>0,$E32*$H32,0) -> 0 | BZ32: =IF(SUM(BY$8:BY$10)>0,$E32*$H32,0) -> 0 | CB32: =IF(SUM(CA$8:CA$10)>0,$E32*$H32,0) -> 0 | CD32: =IF(SUM(CC$8:CC$10)>0,$E32*$H32,0) -> 0 | CF32: =IF(SUM(CE$8:CE$10)>0,$E32*$H32,0) -> 0

Sheet SREP
B4: SISTEMA DE REGISTRO ELETRÔNICO DE PRESENÇA - SREP
C7: PAGAMENTO DA DEPRECIAÇÃO
B8: Cód. | C8: ITEM | D8: DESCRIÇÃO | E8: QUANT ANUAL | F8: CONTA SIAFI | G8: VALOR DE AQ. | H8: % RESIDUAL | I8: VIDA ÚTIL | J8: DEP. MENSAL | K8: CUSTO TOTAL | L8: BDI (%) | M8: PREÇO TOTAL | N8: FONTE | O8: REFERÊNCIA
B10: 10.01.01 | C10: E.024 | D10: Equipamento de Registro Eletrônico de Ponto, de parede, com teclado externo e leitor biométrico, em conformidade com a Portaria 1.510/2009 do MT | E10: 4 | F10: 12311.01.24 (máquinas e equip eletrônicos) | G10: 1661.4 | H10: 0.1 | I10: 10 | J10: =G10*(1-H10)/(I10*12) -> 12.4605 | K10: =ROUND(J10*E10,3) -> 49.842 | L10: ='BDI - Geral'!E27 -> 0.2304 | M10: =ROUND(K10*(1+L10),2) -> 61.33 | N10: COTAÇÃO | O10: P_232.692/2021
C13: PAGAMENTO DA MANUTENÇÃO
C14: ITEM | D14: DESCRIÇÃO | H14: K (calculado) | I14: MENSAL DEPR. | J14: % MAN X DEP | K14: MENSAL MAN. | L14: BDI (%) | M14: PREÇO TOTAL
D16: Todos os itens | H16: =H23 -> 1.90003968 | I16: =K10 -> 49.842 | J16: =H16 -> 1.90003968 | K16: =I16*H16 -> 94.70177773 | L16: =L10 -> 0.2304 | M16: =ROUND(K16*(1+L16),2) -> 116.52
E18: K1 | F18: K2 | G18: K3 | H18: K4
E19: 0.85 | F19: 1 | G19: 0.8 | H19: 1.4
E20: K5 | F20: K6 | G20: K7 | H20: K8
E21: 1 | F21: 0.6 | G21: 1.6 | H21: 1.1
E22: K9 | F22: K10 | G22: K11 | H22: RESULTADO
D23: * a descrição de cada coeficiente segue abaixo | E23: 1.5 | F23: 0.9 | G23: 1.4 | H23: =E19*F19*G19*H19*E21*F21*G21*H21*E23*F23*G23 -> 1.90003968
C26: PAGAMENTO DO SOFTWARE
B27: Cód. | C27: ITEM | D27: DESCRIÇÃO | I27: QUANTIDADE | J27: UNIDADE | K27: UNIT. MENSAL | L27: BDI (%) | M27: PREÇO TOTAL
B29: 10.03.01 | C29: E.025 | D29: Software Ponto Secullum 4 - manutenção e suporte técnico com backup - Web Nuvem - Mensalidade | I29: 1 | J29: Licença/mês | K29: 452.25 | L29: =L35 -> 0.2304 | M29: =ROUND(I29*K29*(1+L29),2) -> 556.45 | N29: COTAÇÃO | O29: P_232.692/2021
C32: MATERIAL DE CONSUMO ASSOCIADO
B33: Cód. | C33: ITEM | D33: DESCRIÇÃO | G33: QUANTID/ANO | H33: UNIDADE | I33: VALOR DE AQ. | J33: ANUAL MAT | K33: MENSAL MAT | L33: BDI (%) | M33: PREÇO TOTAL
B35: 10.04.01 | C35: E.026 | D35: Bobina térmica específica para o registrador eletrônico de ponto, com papel termossensível, superfície de impressão externa ao rolo, durabilidade de impressão mínima de 5 anos e comprimento mínimo de 300m | G35: =ROUNDUP(((SUM(Resumo!E7:E15))*4*0.07*52*5/300),0) -> 30 | H35: Bobina | I35: 31.37 | J35: =I35*G35 -> 941.1 | K35: =J35/12 -> 78.425 | L35: =L16 -> 0.2304 | M35: =ROUNDUP(K35*(1+L35),2) -> 96.5 | N35: COTAÇÃO | O35: P_232.692/2021
C38: MATERIAL DE CONSUMO ASSOCIADO
C39: ITEM | D39: DESCRIÇÃO | M39: PREÇO TOTAL
C41: 1 | D41: Componente DEPRECIAÇÃO | M41: =M10 -> 61.33
C42: 2 | D42: Componente MANUTENÇÃO | M42: =M16 -> 116.52
C43: 3 | D43: Componente SOFTWARE | M43: =M29 -> 556.45
C44: 4 | D44: Componente MATERIAL DE CONSUMO ASSOCIADO | M44: =M35 -> 96.5
L46: SOMATÓRIO TOTAL MENSAL | M46: =SUM(M40:M45) -> 830.8
L47: SOMATÓRIO TOTAL ANUAL | M47: =M46*12 -> 9969.6
C50: MATERIAL DE CONSUMO ASSOCIADO
C51: MEMÓRIA DE CÁLCULO DO COEFICIENTE DE CORRELAÇÃO MANUTENÇÃO X DEPRECIAÇÃO (K)
C53: JUSTIFICATIVAS | E53: TIPO | F53: K1 | H53: Condições de Trab | I53: K4 | K53: Tempo Vida (anos) | L53: K6 | N53: Temperatura | O53: K8
E54: Guindaste | F54: 0.5 | H54: Em espera | I54: 0.4 | K54: 1 | L54: 0.6 | N54: Muito quente (> 40º C) | O54: 1.3
C55: K1 | D55: Considerado o valor médio de 0,85 | E55: Caminhão-comum | F55: 0.8 | H55: Leves | I55: 0.8 | K55: 2 | L55: 0.7 | N55: Quente (30º a 40º C) | O55: 1.1
C56: K2 | D56: Considerado o operador médio | E56: Fora-de-estrada | F56: 1 | H56: Médias | I56: 1 | K56: 3 | L56: 0.8 | N56: Médio (10º a 30º C) | O56: 1
C57: K3 | D57: Consideradas ferramentas de primeira qualidade | E57: Carregadeira | F57: 1 | H57: Pesadas | I57: 1.4 | K57: 4 | L57: 0.9 | N57: Frio (< 10º C) | O57: 1.2
C58: K4 | D58: Há todo o tipo de trabalho, foi considerado condições pesadas | E58: Escavadeira | F58: 1.4 | H58: Severas | I58: 2 | K58: 5 | L58: 1
C59: K5 | D59: Considerando manutenção normal | E59: Motoescrêiper | F59: 1.1 | K59: 6 | L59: 1 | N59: Ritmo de Trabalho | O59: K9
C60: K6 | D60: Equipamentos novos | E60: Trator de esteira | F60: 1.2 | H60: Manutenção | I60: K5 | K60: 7 | L60: 1 | N60: Folgado | O60: 0.9
C61: K7 | D61: 44h por dia, 252 dias por ano | H61: Excelente | I61: 0.6 | K61: 8 | L61: 1.2 | N61: Médio | O61: 1
C62: K8 | D62: Clima quente, acima de 30º C | E62: Qualid do Operador | F62: K2 | H62: Boa | I62: 0.8 | K62: 9 | L62: 1.3 | N62: Com pressa | O62: 1.5
C63: K9 | D63: Ritmo de trabalho usualmente com pressa | E63: Excelente | F63: 0.8 | H63: Média | I63: 1 | K63: 10 | L63: 1.4
C64: K10 | D64: Considerado o operador médio | E64: Boa | F64: 0.9 | H64: Ruim | I64: 1.5 | K64: 11 | L64: 2 | N64: Conh do Serviço | O64: K10
C65: K11 | D65: Foi considerada a opção de aluguel a terceiros, ainda que a simulação seja dos custos do contratado, contudo a execução dos serviços é em local de terceiros | E65: Média | F65: 1 | H65: Inexistente | I65: 3 | K65: 15 | L65: 2 | N65: Grande | O65: 0.8
E66: Ruim | F66: 1.2 | N66: Médio | O66: 0.9
E67: Péssima | F67: 2 | H67: Horas de Uso | I67: K7 | J67: 6000 | K67: 1 | N67: Pouco | O67: 1
H68: 1000 | I68: 0.5 | J68: 8000 | K68: 1.3
E69: Qualidade do Equip | F69: K3 | H69: 2000 | I69: 0.5 | J69: 10000 | K69: 1.6 | N69: Tipo do Serviço | O69: K11
E70: De primeira | F70: 0.8 | H70: 3000 | I70: 0.6 | J70: 12000 | K70: 1.9 | N70: Mina ou Pedreira | O70: 0.8
E71: Média | F71: 1 | H71: 4000 | I71: 0.7 | J71: 15000 | K71: 2.3 | N71: Construção Geral | O71: 1
E72: Ruim | F72: 1.5 | H72: 5000 | I72: 0.9 | J72: 20000 | K72: 3 | N72: Aluguel a Terceiros | O72: 1.4
E74: Fonte:
E75: MATTOS, Aldo Dórea. Como preparar orçamentos de obras. São Paulo: Pini, 2006. 281 p., il

Sheet Not. Demanda
B4: ADICIONAL NOTURNO SOB DEMANDA
C7: CATEGORIAS | G7: HORAS / MÊS | H7: % NOTURNA
C9: 4 | D9: =HLOOKUP($C9,'Dados Gerais'!$6:$11,6) -> DIRETOR DE IMAGENS – 30H | G9: =ROUND(10/12,0) -> 1 | H9: 0.4
C10: 5 | D10: =HLOOKUP($C10,'Dados Gerais'!$6:$11,6) -> DIRETOR DE IMAGENS – 18H | G10: =ROUND(10/12,0) -> 1 | H10: 0.4
C11: 7 | D11: =HLOOKUP($C11,'Dados Gerais'!$6:$11,6) -> OPERADOR DE MÍDIA AUDIOVISUAL – 30H | G11: =90/12 -> 7.5 | H11: 0.4
C12: 8 | D12: =HLOOKUP($C12,'Dados Gerais'!$6:$11,6) -> OPERADOR DE MÍDIA AUDIOVISUAL – 18H | G12: =90/12 -> 7.5 | H12: 0.4
C13: 9 | D13: =HLOOKUP($C13,'Dados Gerais'!$6:$11,6) -> OPERADOR DE TRANSMISSOR – Rádio e TV - 24H | G13: 154 | H13: 0.4
C16: AJUSTE DE HORAS FICTAS | E16: AJUSTE H.NOT | F16: HORA NORMAL | G16: H.FICTAS/MÊS | H16: H.ÚTEIS/MÊS
C18: 4 | D18: =HLOOKUP($C18,'Dados Gerais'!$6:$11,6) -> DIRETOR DE IMAGENS – 30H | E18: 52.5 | F18: 60 | G18: =G9*(F18/E18) -> 1.142857143 | H18: =HLOOKUP(C18,'Dados Gerais'!$6:$19,14,0) -> 150
C19: 5 | D19: =HLOOKUP($C19,'Dados Gerais'!$6:$11,6) -> DIRETOR DE IMAGENS – 18H | E19: 52.5 | F19: 60 | G19: =G10*(F19/E19) -> 1.142857143 | H19: =HLOOKUP(C19,'Dados Gerais'!$6:$19,14,0) -> 90
C20: 7 | D20: =HLOOKUP($C20,'Dados Gerais'!$6:$11,6) -> OPERADOR DE MÍDIA AUDIOVISUAL – 30H | E20: 52.5 | F20: 60 | G20: =G11*(F20/E20) -> 8.571428571 | H20: =HLOOKUP(C20,'Dados Gerais'!$6:$19,14,0) -> 150
C21: 8 | D21: =HLOOKUP($C21,'Dados Gerais'!$6:$11,6) -> OPERADOR DE MÍDIA AUDIOVISUAL – 18H | E21: 52.5 | F21: 60 | G21: =G12*(F21/E21) -> 8.571428571 | H21: =HLOOKUP(C21,'Dados Gerais'!$6:$19,14,0) -> 90
C22: 9 | D22: =HLOOKUP($C22,'Dados Gerais'!$6:$11,6) -> OPERADOR DE TRANSMISSOR – Rádio e TV - 24H | E22: 52.5 | F22: 60 | G22: =G13*(F22/E22) -> 176 | H22: =HLOOKUP(C22,'Dados Gerais'!$6:$19,14,0) -> 180
C25: VALOR DO ADICIONAL NOTURNO | F25: SALÁRIO MÊS | G25: VL.H.NORMAL | H25: ADIC.H.FICTAS
C27: 4 | D27: =HLOOKUP($C27,'Dados Gerais'!$6:$11,6) -> DIRETOR DE IMAGENS – 30H | F27: =HLOOKUP(C27,'Dados Gerais'!$6:$13,8,0) -> 5845.04 | G27: =F27/H18 -> 38.96693333 | H27: =G27*(H9) -> 15.58677333
C28: 5 | D28: =HLOOKUP($C28,'Dados Gerais'!$6:$11,6) -> DIRETOR DE IMAGENS – 18H | F28: =HLOOKUP(C28,'Dados Gerais'!$6:$13,8,0) -> 3507.03 | G28: =F28/H19 -> 38.967 | H28: =G28*(H10) -> 15.5868
C29: 7 | D29: =HLOOKUP($C29,'Dados Gerais'!$6:$11,6) -> OPERADOR DE MÍDIA AUDIOVISUAL – 30H | F29: =HLOOKUP(C29,'Dados Gerais'!$6:$13,8,0) -> 4856.02 | G29: =F29/H20 -> 32.37346667 | H29: =G29*(H11) -> 12.94938667
C30: 8 | D30: =HLOOKUP($C30,'Dados Gerais'!$6:$11,6) -> OPERADOR DE MÍDIA AUDIOVISUAL – 18H | F30: =HLOOKUP(C30,'Dados Gerais'!$6:$13,8,0) -> 2913.61 | G30: =F30/H21 -> 32.37344444 | H30: =G30*(H12) -> 12.94937778
C31: 9 | D31: =HLOOKUP($C31,'Dados Gerais'!$6:$11,6) -> OPERADOR DE TRANSMISSOR – Rádio e TV - 24H | F31: =HLOOKUP(C31,'Dados Gerais'!$6:$13,8,0) -> 3454.59 | G31: =F31/H22 -> 19.19216667 | H31: =G31*(H13) -> 7.676866667
C34: RESUMO DO ADICIONAL NOTURNO SOB DEMANDA
C35: TOTAIS MENSAIS | G35: PREÇO MENSAL
C37: 4 | D37: =HLOOKUP($C37,'Dados Gerais'!$6:$11,6) -> DIRETOR DE IMAGENS – 30H | G37: 17.81345524
C38: 5 | D38: =HLOOKUP($C38,'Dados Gerais'!$6:$11,6) -> DIRETOR DE IMAGENS – 18H | G38: 17.81348571
C39: 7 | D39: =HLOOKUP($C39,'Dados Gerais'!$6:$11,6) -> OPERADOR DE MÍDIA AUDIOVISUAL – 30H | G39: 110.9947429
C40: 8 | D40: =HLOOKUP($C40,'Dados Gerais'!$6:$11,6) -> OPERADOR DE MÍDIA AUDIOVISUAL – 18H | G40: 110.9946667
C41: 9 | D41: =HLOOKUP($C41,'Dados Gerais'!$6:$11,6) -> OPERADOR DE TRANSMISSOR – Rádio e TV - 24H | G41: 1351.128533
F43: SOMATÓRIO TOTAL MENSAL | G43: 1608.744884
F44: SOMATÓRIO TOTAL ANUAL | G44: 19304.93861
C47: ENCARGOS SOCIAIS E BDI SOBRE ADICIONAL NOTURNO SOB DEMANDA
C48: TOTAIS MENSAIS | F48: PERCENTUAIS | G48: PREÇO MENSAL
D50: ENCARGOS SOCIAIS | F50: ='Encargos Sociais'!E46 -> 0.5662 | G50: 910.8713532
D51: BDI | F51: ='BDI - Geral'!E27 -> 0.2304 | G51: 580.519581
F53: SOMATÓRIO TOTAL MENSAL | G53: 1491.390934
F54: SOMATÓRIO TOTAL ANUAL | G54: 17896.69121
C57: VALOR TOTAL ADICIONAL NOTURNO SOB DEMANDA (COM ENCARGOS SOCIAIS E BDI INCLUSOS)
C58: TOTAIS MENSAIS | F58: PERCENTUAIS | G58: PREÇO MENSAL
F63: SOMATÓRIO TOTAL MENSAL | G63: 3100.135818
F64: SOMATÓRIO TOTAL ANUAL | G64: 37201.62982
